Workbook

Sheet Правила расчёта
A2: Рейтинг трассы (сложность) | B2: =Y+X/100
A3: Расстояние, км | B3: Y
A4: Набор высоты, м | B4: X
A5: Количество пунктов питания | B5: Z
A7: Средний интервал между пунктами питания (к-т автономности) | B7: =(Y+X/100)/Z
A9: Штраф за автономность
A10: Коэф-т автономности | B10: 13 и более | C10: 11 - 12 | D10: 9 - 10 | E10: 7 - 8 | F10: 5 - 6 | G10: меньше 5
A11: Штраф в очках | B11: 0 | C11: -10 | D11: -15 | E11: -20 | F11: -25 | G11: -30
C12: -2 | D12: -3 | E12: -4 | F12: -15 | G12: -30
A13: Коэф-т автономности | B13: 13 | C13: 12 | D13: 11 | E13: 10 | F13: 9 | G13: 8 | H13: 7 | I13: 6 | J13: 5 | K13: 4 | L13: 3 | M13: 2 | N13: 1 | O13: 0
A14: Штраф в очках | B14: 0 | C14: -10 | D14: -10 | E14: -15 | F14: -15 | G14: -20 | H14: -20 | I14: -25 | J14: -25 | K14: -30 | L14: -30 | M14: -30 | N14: -30 | O14: 0
A15: Штрафы новые в очках | B15: 0 | C15: -2 | D15: -2 | E15: -3 | F15: -3 | G15: -4 | H15: -4 | I15: -15 | J15: -15 | K15: -30 | L15: -30 | M15: -30 | N15: -30 | O15: 0
A16: Штраф за круги
A17: Кол-во кругов | B17: 0 | C17: 1 | D17: 2 | E17: 3 | F17: 4 | G17: 5 | H17: 6 | I17: 7 | J17: 8 | K17: 9 | L17: 10 | M17: 11
A18: Штраф в очках | B18: 0 | C18: 0 | D18: 0 | E18: -10 | F18: -15 | G18: -20 | H18: -25 | I18: -30 | J18: -35 | K18: -40 | L18: -45 | M18: -50
B19: 0 | C19: 0 | D19: 0 | E19: -2 | F19: -4 | G19: -10 | H19: -20 | I19: -30 | J19: -35 | K19: -40 | L19: -45 | M19: -50
A21: Итог ОЧКИ дистанции = Сложность МИНУС штраф за автономность МИНУС штраф за круги | I21: Округление до двух знаков
A23: Формула личного рез-та дистанции = 100 - ((место участника в итоговом протоколе-1)/количество стартовавших) × 100.
A25: Формула личного результата за соревнования = Квадратный корень ( Итог ОЧКИ за дистанцию) умножить на личный результат

Sheet Гонки
A1: № | B1: дата | C1: название гонки | D1: название дистанции | E1: Служебн 1 - где | F1: длина | G1: набор высоты | H1: сложность | I1: круги | J1: штраф круги | K1: ПП | L1: К-т автономности | M1: штраф пп | N1: Итог ОЧКИ | O1: кол-во стартов. Ж. | P1: кол-во стартов. М.
A2: 1 | B2: 2018-01-27 | C2: Зима минус 100 | D2: Трейл 50 | E2: =CONCATENATE(C2," ",D2,) -> Зима минус 100 Трейл 50 | F2: 50.8 | G2: 350 | H2: =F2+G2/100 -> 54.3 | I2: 0 | J2: =HLOOKUP(I2,'Правила расчёта'!$A$17:$M$19,3,FALSE) -> 0 | K2: 0 | L2: =MROUND(IF(K2=0,0,H2/K2),0) -> 0 | M2: =IF(L2=0,0,IF(L2>=13,0,HLOOKUP(Гонки!L2,'Правила расчёта'!$A$13:$O$15,3,FALSE))) -> 0 | N2: =H2+J2+M2 -> 54.3 | O2: 14 | P2: 34
A3: 2 | B3: 2018-01-27 | C3: Зима минус 100 | D3: Трейл 100 | E3: =CONCATENATE(C3," ",D3,) -> Зима минус 100 Трейл 100 | F3: 106.2 | G3: 760 | H3: =F3+G3/100 -> 113.8 | I3: 0 | J3: =HLOOKUP(I3,'Правила расчёта'!$A$17:$M$19,3,FALSE) -> 0 | K3: 1 | L3: =MROUND(IF(K3=0,0,H3/K3),1) -> 114 | M3: =IF(L3=0,0,IF(L3>=13,0,HLOOKUP(Гонки!L3,'Правила расчёта'!$A$13:$O$15,3,FALSE))) -> 0 | N3: =H3+J3+M3 -> 113.8 | O3: 5 | P3: 25
A4: 3 | B4: 2018-03-04 | C4: Жук-трейл # 4 Минское Море | D4: Трейл 25 | E4: =CONCATENATE(C4," ",D4,) -> Жук-трейл # 4 Минское Море Трейл 25 | F4: =8.45*3 -> 25.35 | G4: =112*3 -> 336 | H4: =F4+G4/100 -> 28.71 | I4: 3 | J4: =HLOOKUP(I4,'Правила расчёта'!$A$17:$M$19,3,FALSE) -> -2 | K4: 2 | L4: =MROUND(IF(K4=0,0,H4/K4),1) -> 14 | M4: =IF(L4=0,0,IF(L4>=13,0,HLOOKUP(Гонки!L4,'Правила расчёта'!$A$13:$O$15,3,FALSE))) -> 0 | N4: =H4+J4+M4 -> 26.71 | O4: 11 | P4: 81
A5: 4 | B5: 2018-03-04 | C5: Жук-трейл # 4 Минское Море | D5: Трейл 16 | E5: =CONCATENATE(C5," ",D5,) -> Жук-трейл # 4 Минское Море Трейл 16 | F5: =8.45*2 -> 16.9 | G5: =112*2 -> 224 | H5: =F5+G5/100 -> 19.14 | I5: 2 | J5: =HLOOKUP(I5,'Правила расчёта'!$A$17:$M$19,3,FALSE) -> 0 | K5: 1 | L5: 19 | M5: =IF(L5=0,0,IF(L5>=13,0,HLOOKUP(Гонки!L5,'Правила расчёта'!$A$13:$O$15,3,FALSE))) -> 0 | N5: =H5+J5+M5 -> 19.14 | O5: 27 | P5: 51
A6: 5 | B6: 2018-03-04 | C6: Жук-трейл # 4 Минское Море | D6: Трейл 8 | E6: =CONCATENATE(C6," ",D6,) -> Жук-трейл # 4 Минское Море Трейл 8 | F6: =8.45*1 -> 8.45 | G6: 112 | H6: =F6+G6/100 -> 9.57 | I6: 1 | J6: =HLOOKUP(I6,'Правила расчёта'!$A$17:$M$19,3,FALSE) -> 0 | K6: 0 | L6: 0 | M6: =IF(L6=0,0,IF(L6>=13,0,HLOOKUP(Гонки!L6,'Правила расчёта'!$A$13:$O$15,3,FALSE))) -> 0 | N6: =H6+J6+M6 -> 9.57 | O6: 24 | P6: 36
A7: 6 | B7: 2018-04-15 | C7: Жук-трейл # 5 Крево | D7: Трейл 70 | E7: Жук-трейл # 5 Крево Трейл 70 | F7: 70.4 | G7: 961 | H7: =F7+G7/100 -> 80.01 | I7: 1 | J7: =HLOOKUP(I7,'Правила расчёта'!$A$17:$M$19,3,FALSE) -> 0 | K7: 5 | L7: 16 | M7: =IF(L7=0,0,IF(L7>=13,0,HLOOKUP(Гонки!L7,'Правила расчёта'!$A$13:$O$15,3,FALSE))) -> 0 | N7: =H7+J7+M7 -> 80.01 | O7: 3 | P7: 15
A8: 7 | B8: 2018-04-15 | C8: Жук-трейл # 5 Крево | D8: Трейл 45 | E8: Жук-трейл # 5 Крево Трейл 45 | F8: 44.7 | G8: 632 | H8: 51.02 | I8: 1 | J8: =HLOOKUP(I8,'Правила расчёта'!$A$17:$M$19,3,FALSE) -> 0 | K8: 3 | L8: 17 | M8: =IF(L8=0,0,IF(L8>=13,0,HLOOKUP(Гонки!L8,'Правила расчёта'!$A$13:$O$15,3,FALSE))) -> 0 | N8: 51.02 | O8: 3 | P8: 20
A9: 8 | B9: 2018-04-15 | C9: Жук-трейл # 5 Крево | D9: Трейл 21 | E9: Жук-трейл # 5 Крево Трейл 21 | F9: 21.3 | G9: 308 | H9: 24.38 | I9: 1 | J9: =HLOOKUP(I9,'Правила расчёта'!$A$17:$M$19,3,FALSE) -> 0 | K9: 1 | L9: 24 | M9: =IF(L9=0,0,IF(L9>=13,0,HLOOKUP(Гонки!L9,'Правила расчёта'!$A$13:$O$15,3,FALSE))) -> 0 | N9: 24.38 | O9: 15 | P9: 46
A10: 9 | B10: 2018-04-15 | C10: Жук-трейл # 5 Крево | D10: Трейл 10 | E10: Жук-трейл # 5 Крево Трейл 10 | F10: 11.9 | G10: 198 | H10: 13.88 | I10: 1 | J10: =HLOOKUP(I10,'Правила расчёта'!$A$17:$M$19,3,FALSE) -> 0 | K10: 0 | L10: 0 | M10: =IF(L10=0,0,IF(L10>=13,0,HLOOKUP(Гонки!L10,'Правила расчёта'!$A$13:$O$15,3,FALSE))) -> 0 | N10: 13.88 | O10: 26 | P10: 56
A11: 10 | B11: 2018-05-26 | C11: "Налибоки 2018" | D11: Трейл 21 | E11: "Налибоки 2018" Трейл 21 | F11: 22.41 | G11: 262 | H11: 25.03 | I11: 1 | J11: =HLOOKUP(I11,'Правила расчёта'!$A$17:$M$19,3,FALSE) -> 0 | K11: 1 | L11: 25 | M11: =IF(L11=0,0,IF(L11>=13,0,HLOOKUP(Гонки!L11,'Правила расчёта'!$A$13:$O$15,3,FALSE))) -> 0 | N11: 25.03 | O11: 40 | P11: 57
A12: 11 | B12: 2018-05-26 | C12: "Налибоки 2018" | D12: Трейл 42 | E12: "Налибоки 2018" Трейл 42 | F12: 46.86 | G12: 494 | H12: 51.8 | I12: 1 | J12: =HLOOKUP(I12,'Правила расчёта'!$A$17:$M$19,3,FALSE) -> 0 | K12: 2 | L12: 26 | M12: =IF(L12=0,0,IF(L12>=13,0,HLOOKUP(Гонки!L12,'Правила расчёта'!$A$13:$O$15,3,FALSE))) -> 0 | N12: 51.8 | O12: 13 | P12: 41
A13: 12 | B13: 2018-05-26 | C13: "Налибоки 2018" | D13: Трейл 100 | E13: "Налибоки 2018" Трейл 100 | F13: 98.27 | G13: 1013 | H13: 108.4 | I13: 1 | J13: =HLOOKUP(I13,'Правила расчёта'!$A$17:$M$19,3,FALSE) -> 0 | K13: 5 | L13: 22 | M13: =IF(L13=0,0,IF(L13>=13,0,HLOOKUP(Гонки!L13,'Правила расчёта'!$A$13:$O$15,3,FALSE))) -> 0 | N13: 108.4 | O13: 3 | P13: 36
A14: 13 | B14: 2018-07-07 | C14: Жук-трейл #6 Купалье | D14: Трейл 5 | E14: Жук-трейл #6 Купалье Трейл 5 | F14: 5.32 | G14: 36 | H14: 5.68 | I14: 1 | J14: =HLOOKUP(I14,'Правила расчёта'!$A$17:$M$19,3,FALSE) -> 0 | K14: 0 | L14: 0 | M14: =IF(L14=0,0,IF(L14>=13,0,HLOOKUP(Гонки!L14,'Правила расчёта'!$A$13:$O$15,3,FALSE))) -> 0 | N14: 5.68 | O14: 28 | P14: 23
A15: 14 | B15: 2018-07-07 | C15: Жук-трейл #6 Купалье | D15: Трейл 10 | E15: Жук-трейл #6 Купалье Трейл 10 | F15: =5.32*2 -> 10.64 | G15: =G14*2 -> 72 | H15: 11.36 | I15: 2 | J15: =HLOOKUP(I15,'Правила расчёта'!$A$17:$M$19,3,FALSE) -> 0 | K15: 1 | L15: 11 | M15: =IF(L15=0,0,IF(L15>=13,0,HLOOKUP(Гонки!L15,'Правила расчёта'!$A$13:$O$15,3,FALSE))) -> -2 | N15: 9.36 | O15: 37 | P15: 60
A16: 15 | B16: 2018-07-07 | C16: Жук-трейл #6 Купалье | D16: Трейл 21 | E16: Жук-трейл #6 Купалье Трейл 21 | F16: =5.32*4 -> 21.28 | G16: =G14*4 -> 144 | H16: 22.72 | I16: 4 | J16: =HLOOKUP(I16,'Правила расчёта'!$A$17:$M$19,3,FALSE) -> -4 | K16: 3 | L16: 8 | M16: =IF(L16=0,0,IF(L16>=13,0,HLOOKUP(Гонки!L16,'Правила расчёта'!$A$13:$O$15,3,FALSE))) -> -4 | N16: 14.72 | O16: 14 | P16: 80
A17: 16 | B17: 2018-07-27 | C17: Жук-трейл #7 Раубичи | D17: Трейл 5 | E17: Жук-трейл #7 Раубичи Трейл 5 | F17: 5.5 | G17: 250 | H17: =F17+G17/100 -> 8 | I17: 1 | J17: =HLOOKUP(I17,'Правила расчёта'!$A$17:$M$19,3,FALSE) -> 0 | K17: 0 | L17: 0 | M17: =IF(L17=0,0,IF(L17>=13,0,HLOOKUP(Гонки!L17,'Правила расчёта'!$A$13:$O$15,3,FALSE))) -> 0 | N17: 8 | O17: 41 | P17: 30
A18: 17 | B18: 2018-07-27 | C18: Жук-трейл #7 Раубичи | D18: Трейл 10 | E18: Жук-трейл #7 Раубичи Трейл 10 | F18: =F17*2 -> 11 | G18: =G17*2 -> 500 | H18: 16 | I18: 2 | J18: =HLOOKUP(I18,'Правила расчёта'!$A$17:$M$19,3,FALSE) -> 0 | K18: 1 | L18: =MROUND(IF(K18=0,0,H18/K18),1) -> 16 | M18: =IF(L18=0,0,IF(L18>=13,0,HLOOKUP(Гонки!L18,'Правила расчёта'!$A$13:$O$15,3,FALSE))) -> 0 | N18: 16 | O18: 19 | P18: 44
A19: 18 | B19: 2018-07-27 | C19: Жук-трейл #7 Раубичи | D19: Трейл 21 | E19: Жук-трейл #7 Раубичи Трейл 21 | F19: =F17*4 -> 22 | G19: =G17*4 -> 1000 | H19: 32 | I19: 4 | J19: =HLOOKUP(I19,'Правила расчёта'!$A$17:$M$19,3,FALSE) -> -4 | K19: 3 | L19: =MROUND(IF(K19=0,0,H19/K19),1) -> 11 | M19: =IF(L19=0,0,IF(L19>=13,0,HLOOKUP(Гонки!L19,'Правила расчёта'!$A$13:$O$15,3,FALSE))) -> -2 | N19: 26 | O19: 9 | P19: 42
A20: 19 | B20: 2018-10-06 | C20: Жук-трейл #8 Дорога замков | D20: Трейл 10 | E20: Жук-трейл #8 Дорога замков Трейл 10 | F20: 11.68 | G20: 100 | H20: 12.68 | I20: 1 | J20: =HLOOKUP(I20,'Правила расчёта'!$A$17:$M$19,3,FALSE) -> 0 | K20: 0 | L20: =MROUND(IF(K20=0,0,H20/K20),1) -> 0 | M20: =IF(L20=0,0,IF(L20>=13,0,HLOOKUP(Гонки!L20,'Правила расчёта'!$A$13:$O$15,3,FALSE))) -> 0 | N20: 12.68 | O20: 36 | P20: 37
A21: 20 | B21: 2018-10-06 | C21: Жук-трейл #8 Дорога замков | D21: Трейл 21 | E21: Жук-трейл #8 Дорога замков Трейл 21 | F21: 23.98 | G21: 214 | H21: 26.12 | I21: 1 | J21: =HLOOKUP(I21,'Правила расчёта'!$A$17:$M$19,3,FALSE) -> 0 | K21: 1 | L21: 26 | M21: =IF(L21=0,0,IF(L21>=13,0,HLOOKUP(Гонки!L21,'Правила расчёта'!$A$13:$O$15,3,FALSE))) -> 0 | N21: 26.12 | O21: 15 | P21: 56
A22: 21 | B22: 2018-10-06 | C22: Жук-трейл #8 Дорога замков | D22: Трейл 42 | E22: Жук-трейл #8 Дорога замков Трейл 42 | F22: 42.98 | G22: 341 | H22: 46.39 | I22: 1 | J22: =HLOOKUP(I22,'Правила расчёта'!$A$17:$M$19,3,FALSE) -> 0 | K22: 2 | L22: 23 | M22: =IF(L22=0,0,IF(L22>=13,0,HLOOKUP(Гонки!L22,'Правила расчёта'!$A$13:$O$15,3,FALSE))) -> 0 | N22: 46.39 | O22: 7 | P22: 31
A23: 22 | B23: 2018-10-06 | C23: Жук-трейл #8 Дорога замков | D23: Ультра-Трейл 100 | E23: Жук-трейл #8 Дорога замков Ультра-Трейл 100 | F23: 104.84 | G23: 602 | H23: 110.86 | I23: 1 | J23: =HLOOKUP(I23,'Правила расчёта'!$A$17:$M$19,3,FALSE) -> 0 | K23: 5 | L23: 22 | M23: =IF(L23=0,0,IF(L23>=13,0,HLOOKUP(Гонки!L23,'Правила расчёта'!$A$13:$O$15,3,FALSE))) -> 0 | N23: 110.86 | O23: 3 | P23: 16

Sheet личные рез-ты по гонкам списком
A1: Гонка | B1: Дистанция | C1: где (служубн 1) | D1: Рейтинг трассы | E1: Пол | F1: Кол-во участников по полу | G1: Фамилия Имя | H1: Год рождения | I1: Surname Name | J1: Ф+И (служебн 2) | K1: Пол1 | L1: место | M1: личный рез-т дистанции | N1: личный рез-т соревнований
A2: =Гонки!$C$2 -> Зима минус 100 | B2: =Гонки!$D$2 -> Трейл 50 | C2: =CONCATENATE(A2," ",B2) -> Зима минус 100 Трейл 50 | D2: =VLOOKUP(C2,Список_гонок,10,FALSE) -> 54.3 | E2: Ж | F2: =IF(E2="Ж",VLOOKUP(C2,Гонки!$E$2:$P$16,11,FALSE),VLOOKUP(C2,Гонки!$E$2:$P$16,12,FALSE)) -> 14 | G2: Скирук Юлия | H2: 1988 | I2: =Translit(G2) -> Skiruk Yuliya | J2: =CONCATENATE(G2," / ",I2," / ",H2) -> Скирук Юлия / Skiruk Yuliya / 1988 | K2: =E2 -> Ж | L2: 1 | M2: =100-((L2-1)/F2)*100 -> 100 | N2: =ROUND(SQRT(D2)*M2,2) -> 736.89
A3: =Гонки!$C$2 -> Зима минус 100 | B3: =Гонки!$D$2 -> Трейл 50 | C3: Зима минус 100 Трейл 50 | D3: 54.3 | E3: Ж | F3: =IF(E3="Ж",VLOOKUP(C3,Гонки!$E$2:$P$16,11,FALSE),VLOOKUP(C3,Гонки!$E$2:$P$16,12,FALSE)) -> 14 | G3: Белинская Галина | H3: 1980 | I3: Belinskaya Galina | J3: Белинская Галина / Belinskaya Galina / 1980 | K3: Ж | L3: 2 | M3: 92.85714286 | N3: =ROUND(SQRT(D3)*M3,2) -> 684.25
A4: =Гонки!$C$2 -> Зима минус 100 | B4: =Гонки!$D$2 -> Трейл 50 | C4: Зима минус 100 Трейл 50 | D4: 54.3 | E4: Ж | F4: =IF(E4="Ж",VLOOKUP(C4,Гонки!$E$2:$P$16,11,FALSE),VLOOKUP(C4,Гонки!$E$2:$P$16,12,FALSE)) -> 14 | G4: Обухова Екатерина | H4: 1978 | I4: Obuhova Ekaterina | J4: Обухова Екатерина / Obuhova Ekaterina / 1978 | K4: Ж | L4: 3 | M4: 85.71428571 | N4: 631.62
A5: =Гонки!$C$2 -> Зима минус 100 | B5: =Гонки!$D$2 -> Трейл 50 | C5: Зима минус 100 Трейл 50 | D5: 54.3 | E5: Ж | F5: =IF(E5="Ж",VLOOKUP(C5,Гонки!$E$2:$P$16,11,FALSE),VLOOKUP(C5,Гонки!$E$2:$P$16,12,FALSE)) -> 14 | G5: Куцун Надежда | H5: 1982 | I5: Kutsun Nadezhda | J5: Куцун Надежда / Kutsun Nadezhda / 1982 | K5: Ж | L5: 4 | M5: =100-((L5-1)/F5)*100 -> 78.57142857 | N5: =ROUND(SQRT(D5)*M5,2) -> 578.98
A6: =Гонки!$C$2 -> Зима минус 100 | B6: =Гонки!$D$2 -> Трейл 50 | C6: Зима минус 100 Трейл 50 | D6: 54.3 | E6: Ж | F6: =IF(E6="Ж",VLOOKUP(C6,Гонки!$E$2:$P$16,11,FALSE),VLOOKUP(C6,Гонки!$E$2:$P$16,12,FALSE)) -> 14 | G6: Михно Алла | H6: 1979 | I6: Mihno Alla | J6: Михно Алла / Mihno Alla / 1979 | K6: Ж | L6: 5 | M6: 71.42857143 | N6: 526.35
A7: =Гонки!$C$2 -> Зима минус 100 | B7: =Гонки!$D$2 -> Трейл 50 | C7: Зима минус 100 Трейл 50 | D7: 54.3 | E7: Ж | F7: =IF(E7="Ж",VLOOKUP(C7,Гонки!$E$2:$P$16,11,FALSE),VLOOKUP(C7,Гонки!$E$2:$P$16,12,FALSE)) -> 14 | G7: Радчук Алеся | H7: 1996 | I7: Radchuk Alesya | J7: Радчук Алеся / Radchuk Alesya / 1996 | K7: Ж | L7: 6 | M7: 64.28571429 | N7: 473.71
A8: =Гонки!$C$2 -> Зима минус 100 | B8: =Гонки!$D$2 -> Трейл 50 | C8: Зима минус 100 Трейл 50 | D8: 54.3 | E8: Ж | F8: =IF(E8="Ж",VLOOKUP(C8,Гонки!$E$2:$P$16,11,FALSE),VLOOKUP(C8,Гонки!$E$2:$P$16,12,FALSE)) -> 14 | G8: Янович Лена | H8: 1996 | I8: Yanovich Lena | J8: Янович Лена / Yanovich Lena / 1996 | K8: Ж | L8: 7 | M8: 57.14285714 | N8: 421.08
A9: =Гонки!$C$2 -> Зима минус 100 | B9: =Гонки!$D$2 -> Трейл 50 | C9: Зима минус 100 Трейл 50 | D9: 54.3 | E9: Ж | F9: =IF(E9="Ж",VLOOKUP(C9,Гонки!$E$2:$P$16,11,FALSE),VLOOKUP(C9,Гонки!$E$2:$P$16,12,FALSE)) -> 14 | G9: Кордунская Екатерина | H9: 1983 | I9: Kordunskaya Ekaterina | J9: Кордунская Екатерина / Kordunskaya Ekaterina / 1983 | K9: Ж | L9: 8 | M9: 50 | N9: 368.44
A10: =Гонки!$C$2 -> Зима минус 100 | B10: =Гонки!$D$2 -> Трейл 50 | C10: Зима минус 100 Трейл 50 | D10: 54.3 | E10: Ж | F10: =IF(E10="Ж",VLOOKUP(C10,Гонки!$E$2:$P$16,11,FALSE),VLOOKUP(C10,Гонки!$E$2:$P$16,12,FALSE)) -> 14 | G10: Чернель Татьяна | H10: 1982 | I10: Chernel Tatyana | J10: Чернель Татьяна / Chernel Tatyana / 1982 | K10: Ж | L10: 9 | M10: 42.85714286 | N10: 315.81
A11: =Гонки!$C$2 -> Зима минус 100 | B11: =Гонки!$D$2 -> Трейл 50 | C11: Зима минус 100 Трейл 50 | D11: 54.3 | E11: Ж | F11: =IF(E11="Ж",VLOOKUP(C11,Гонки!$E$2:$P$16,11,FALSE),VLOOKUP(C11,Гонки!$E$2:$P$16,12,FALSE)) -> 14 | G11: Арловская Кристина | H11: 1989 | I11: Arlovskaya Kristina | J11: Арловская Кристина / Arlovskaya Kristina / 1989 | K11: Ж | L11: 10 | M11: 35.71428571 | N11: 263.17
A12: =Гонки!$C$2 -> Зима минус 100 | B12: =Гонки!$D$2 -> Трейл 50 | C12: Зима минус 100 Трейл 50 | D12: 54.3 | E12: Ж | F12: =IF(E12="Ж",VLOOKUP(C12,Гонки!$E$2:$P$16,11,FALSE),VLOOKUP(C12,Гонки!$E$2:$P$16,12,FALSE)) -> 14 | G12: Литвинка Нина | H12: 1991 | I12: Litvinka Nina | J12: Литвинка Нина / Litvinka Nina / 1991 | K12: Ж | L12: 11 | M12: 28.57142857 | N12: 210.54
A13: =Гонки!$C$2 -> Зима минус 100 | B13: =Гонки!$D$2 -> Трейл 50 | C13: Зима минус 100 Трейл 50 | D13: 54.3 | E13: М | F13: =IF(E13="Ж",VLOOKUP(C13,Гонки!$E$2:$P$16,11,FALSE),VLOOKUP(C13,Гонки!$E$2:$P$16,12,FALSE)) -> 34 | G13: Евсюченя Александр | H13: 1991 | I13: Evsyuchenya Aleksandr | J13: Евсюченя Александр / Evsyuchenya Aleksandr / 1991 | K13: М | L13: 1 | M13: 100 | N13: 736.89
A14: =Гонки!$C$2 -> Зима минус 100 | B14: =Гонки!$D$2 -> Трейл 50 | C14: Зима минус 100 Трейл 50 | D14: 54.3 | E14: М | F14: =IF(E14="Ж",VLOOKUP(C14,Гонки!$E$2:$P$16,11,FALSE),VLOOKUP(C14,Гонки!$E$2:$P$16,12,FALSE)) -> 34 | G14: Некрасов Василий | H14: 1986 | I14: Nekrasov Vasilij | J14: Некрасов Василий / Nekrasov Vasilij / 1986 | K14: М | L14: 2 | M14: 97.05882353 | N14: 715.21
A15: =Гонки!$C$2 -> Зима минус 100 | B15: =Гонки!$D$2 -> Трейл 50 | C15: Зима минус 100 Трейл 50 | D15: 54.3 | E15: М | F15: =IF(E15="Ж",VLOOKUP(C15,Гонки!$E$2:$P$16,11,FALSE),VLOOKUP(C15,Гонки!$E$2:$P$16,12,FALSE)) -> 34 | G15: Березовский Андрей | H15: 1973 | I15: Berezovskij Andrej | J15: Березовский Андрей / Berezovskij Andrej / 1973 | K15: М | L15: 3 | M15: 94.11764706 | N15: 693.54
A16: =Гонки!$C$2 -> Зима минус 100 | B16: =Гонки!$D$2 -> Трейл 50 | C16: Зима минус 100 Трейл 50 | D16: 54.3 | E16: М | F16: =IF(E16="Ж",VLOOKUP(C16,Гонки!$E$2:$P$16,11,FALSE),VLOOKUP(C16,Гонки!$E$2:$P$16,12,FALSE)) -> 34 | G16: Сидоревич Александр | H16: 1985 | I16: Sidorevich Aleksandr | J16: Сидоревич Александр / Sidorevich Aleksandr / 1985 | K16: М | L16: 4 | M16: 91.17647059 | N16: 671.87
A17: =Гонки!$C$2 -> Зима минус 100 | B17: =Гонки!$D$2 -> Трейл 50 | C17: Зима минус 100 Трейл 50 | D17: 54.3 | E17: М | F17: =IF(E17="Ж",VLOOKUP(C17,Гонки!$E$2:$P$16,11,FALSE),VLOOKUP(C17,Гонки!$E$2:$P$16,12,FALSE)) -> 34 | G17: Скуратович Антон | H17: 1985 | I17: Skuratovich Anton | J17: Скуратович Антон / Skuratovich Anton / 1985 | K17: М | L17: 5 | M17: 88.23529412 | N17: 650.19
A18: =Гонки!$C$2 -> Зима минус 100 | B18: =Гонки!$D$2 -> Трейл 50 | C18: Зима минус 100 Трейл 50 | D18: 54.3 | E18: М | F18: =IF(E18="Ж",VLOOKUP(C18,Гонки!$E$2:$P$16,11,FALSE),VLOOKUP(C18,Гонки!$E$2:$P$16,12,FALSE)) -> 34 | G18: Бабицкий Кирилл | H18: 1998 | I18: Babitskij Kirill | J18: Бабицкий Кирилл / Babitskij Kirill / 1998 | K18: М | L18: 6 | M18: 85.29411765 | N18: 628.52
A19: =Гонки!$C$2 -> Зима минус 100 | B19: =Гонки!$D$2 -> Трейл 50 | C19: Зима минус 100 Трейл 50 | D19: 54.3 | E19: М | F19: =IF(E19="Ж",VLOOKUP(C19,Гонки!$E$2:$P$16,11,FALSE),VLOOKUP(C19,Гонки!$E$2:$P$16,12,FALSE)) -> 34 | G19: Лисовский Павел | H19: 1986 | I19: Lisovskij Pavel | J19: Лисовский Павел / Lisovskij Pavel / 1986 | K19: М | L19: 7 | M19: 82.35294118 | N19: 606.85
A20: =Гонки!$C$2 -> Зима минус 100 | B20: =Гонки!$D$2 -> Трейл 50 | C20: Зима минус 100 Трейл 50 | D20: 54.3 | E20: М | F20: =IF(E20="Ж",VLOOKUP(C20,Гонки!$E$2:$P$16,11,FALSE),VLOOKUP(C20,Гонки!$E$2:$P$16,12,FALSE)) -> 34 | G20: Коровец Богдан | H20: 1976 | I20: Korovets Bogdan | J20: Коровец Богдан / Korovets Bogdan / 1976 | K20: М | L20: 8 | M20: 79.41176471 | N20: 585.17
A21: =Гонки!$C$2 -> Зима минус 100 | B21: =Гонки!$D$2 -> Трейл 50 | C21: Зима минус 100 Трейл 50 | D21: 54.3 | E21: М | F21: =IF(E21="Ж",VLOOKUP(C21,Гонки!$E$2:$P$16,11,FALSE),VLOOKUP(C21,Гонки!$E$2:$P$16,12,FALSE)) -> 34 | G21: Крисенков Алексей | H21: 1983 | I21: Krisenkov Aleksej | J21: Крисенков Алексей / Krisenkov Aleksej / 1983 | K21: М | L21: 9 | M21: 76.47058824 | N21: 563.5
A22: =Гонки!$C$2 -> Зима минус 100 | B22: =Гонки!$D$2 -> Трейл 50 | C22: Зима минус 100 Трейл 50 | D22: 54.3 | E22: М | F22: =IF(E22="Ж",VLOOKUP(C22,Гонки!$E$2:$P$16,11,FALSE),VLOOKUP(C22,Гонки!$E$2:$P$16,12,FALSE)) -> 34 | G22: Рачковский Сергей | H22: 1988 | I22: Rachkovskij Sergej | J22: Рачковский Сергей / Rachkovskij Sergej / 1988 | K22: М | L22: 10 | M22: 73.52941176 | N22: 541.83
A23: =Гонки!$C$2 -> Зима минус 100 | B23: =Гонки!$D$2 -> Трейл 50 | C23: Зима минус 100 Трейл 50 | D23: 54.3 | E23: М | F23: =IF(E23="Ж",VLOOKUP(C23,Гонки!$E$2:$P$16,11,FALSE),VLOOKUP(C23,Гонки!$E$2:$P$16,12,FALSE)) -> 34 | G23: Лисовский Виктор | H23: 1964 | I23: Lisovskij Viktor | J23: Лисовский Виктор / Lisovskij Viktor / 1964 | K23: М | L23: 11 | M23: 70.58823529 | N23: 520.15
A24: =Гонки!$C$2 -> Зима минус 100 | B24: =Гонки!$D$2 -> Трейл 50 | C24: Зима минус 100 Трейл 50 | D24: 54.3 | E24: М | F24: =IF(E24="Ж",VLOOKUP(C24,Гонки!$E$2:$P$16,11,FALSE),VLOOKUP(C24,Гонки!$E$2:$P$16,12,FALSE)) -> 34 | G24: Тюев Даниил | H24: 1977 | I24: Tyuev Daniil | J24: Тюев Даниил / Tyuev Daniil / 1977 | K24: М | L24: 12 | M24: 67.64705882 | N24: 498.48
A25: =Гонки!$C$2 -> Зима минус 100 | B25: =Гонки!$D$2 -> Трейл 50 | C25: Зима минус 100 Трейл 50 | D25: 54.3 | E25: М | F25: =IF(E25="Ж",VLOOKUP(C25,Гонки!$E$2:$P$16,11,FALSE),VLOOKUP(C25,Гонки!$E$2:$P$16,12,FALSE)) -> 34 | G25: Лавник Игорь | H25: 1983 | I25: Lavnik Igor | J25: Лавник Игорь / Lavnik Igor / 1983 | K25: М | L25: 13 | M25: 64.70588235 | N25: 476.81
A26: =Гонки!$C$2 -> Зима минус 100 | B26: =Гонки!$D$2 -> Трейл 50 | C26: Зима минус 100 Трейл 50 | D26: 54.3 | E26: М | F26: =IF(E26="Ж",VLOOKUP(C26,Гонки!$E$2:$P$16,11,FALSE),VLOOKUP(C26,Гонки!$E$2:$P$16,12,FALSE)) -> 34 | G26: Грек Илья | H26: 1992 | I26: Grek Ilya | J26: Грек Илья / Grek Ilya / 1992 | K26: М | L26: 14 | M26: 61.76470588 | N26: 455.14
A27: =Гонки!$C$2 -> Зима минус 100 | B27: =Гонки!$D$2 -> Трейл 50 | C27: Зима минус 100 Трейл 50 | D27: 54.3 | E27: М | F27: =IF(E27="Ж",VLOOKUP(C27,Гонки!$E$2:$P$16,11,FALSE),VLOOKUP(C27,Гонки!$E$2:$P$16,12,FALSE)) -> 34 | G27: Поцелуев Сергей | H27: 1973 | I27: Potseluev Sergej | J27: Поцелуев Сергей / Potseluev Sergej / 1973 | K27: М | L27: 15 | M27: 58.82352941 | N27: 433.46
A28: =Гонки!$C$2 -> Зима минус 100 | B28: =Гонки!$D$2 -> Трейл 50 | C28: Зима минус 100 Трейл 50 | D28: 54.3 | E28: М | F28: =IF(E28="Ж",VLOOKUP(C28,Гонки!$E$2:$P$16,11,FALSE),VLOOKUP(C28,Гонки!$E$2:$P$16,12,FALSE)) -> 34 | G28: Малалетников Павел | H28: 1982 | I28: Malaletnikov Pavel | J28: Малалетников Павел / Malaletnikov Pavel / 1982 | K28: М | L28: 16 | M28: 55.88235294 | N28: 411.79
A29: =Гонки!$C$2 -> Зима минус 100 | B29: =Гонки!$D$2 -> Трейл 50 | C29: Зима минус 100 Трейл 50 | D29: 54.3 | E29: М | F29: =IF(E29="Ж",VLOOKUP(C29,Гонки!$E$2:$P$16,11,FALSE),VLOOKUP(C29,Гонки!$E$2:$P$16,12,FALSE)) -> 34 | G29: Храмов Антон | H29: 1991 | I29: Hramov Anton | J29: Храмов Антон / Hramov Anton / 1991 | K29: М | L29: 17 | M29: 52.94117647 | N29: 390.12
A30: =Гонки!$C$2 -> Зима минус 100 | B30: =Гонки!$D$2 -> Трейл 50 | C30: Зима минус 100 Трейл 50 | D30: 54.3 | E30: М | F30: =IF(E30="Ж",VLOOKUP(C30,Гонки!$E$2:$P$16,11,FALSE),VLOOKUP(C30,Гонки!$E$2:$P$16,12,FALSE)) -> 34 | G30: Мурашов Владимир | H30: 1983 | I30: Murashov Vladimir | J30: Мурашов Владимир / Murashov Vladimir / 1983 | K30: М | L30: 18 | M30: 50 | N30: 368.44
A31: =Гонки!$C$2 -> Зима минус 100 | B31: =Гонки!$D$2 -> Трейл 50 | C31: Зима минус 100 Трейл 50 | D31: 54.3 | E31: М | F31: =IF(E31="Ж",VLOOKUP(C31,Гонки!$E$2:$P$16,11,FALSE),VLOOKUP(C31,Гонки!$E$2:$P$16,12,FALSE)) -> 34 | G31: Быков Владимир | H31: 1977 | I31: Bykov Vladimir | J31: Быков Владимир / Bykov Vladimir / 1977 | K31: М | L31: 19 | M31: 47.05882353 | N31: 346.77
A32: =Гонки!$C$2 -> Зима минус 100 | B32: =Гонки!$D$2 -> Трейл 50 | C32: Зима минус 100 Трейл 50 | D32: 54.3 | E32: М | F32: =IF(E32="Ж",VLOOKUP(C32,Гонки!$E$2:$P$16,11,FALSE),VLOOKUP(C32,Гонки!$E$2:$P$16,12,FALSE)) -> 34 | G32: Михно Борис | H32: 1982 | I32: Mihno Boris | J32: Михно Борис / Mihno Boris / 1982 | K32: М | L32: 20 | M32: 44.11764706 | N32: 325.1
A33: =Гонки!$C$2 -> Зима минус 100 | B33: =Гонки!$D$2 -> Трейл 50 | C33: Зима минус 100 Трейл 50 | D33: 54.3 | E33: М | F33: =IF(E33="Ж",VLOOKUP(C33,Гонки!$E$2:$P$16,11,FALSE),VLOOKUP(C33,Гонки!$E$2:$P$16,12,FALSE)) -> 34 | G33: Иванчик Александр | H33: 1990 | I33: Ivanchik Aleksandr | J33: Иванчик Александр / Ivanchik Aleksandr / 1990 | K33: М | L33: 21 | M33: 41.17647059 | N33: 303.42
A34: =Гонки!$C$2 -> Зима минус 100 | B34: =Гонки!$D$2 -> Трейл 50 | C34: Зима минус 100 Трейл 50 | D34: 54.3 | E34: М | F34: =IF(E34="Ж",VLOOKUP(C34,Гонки!$E$2:$P$16,11,FALSE),VLOOKUP(C34,Гонки!$E$2:$P$16,12,FALSE)) -> 34 | G34: Леверовский Александр | H34: 1988 | I34: Leverovskij Aleksandr | J34: Леверовский Александр / Leverovskij Aleksandr / 1988 | K34: М | L34: 22 | M34: 38.23529412 | N34: 281.75
A35: =Гонки!$C$2 -> Зима минус 100 | B35: =Гонки!$D$2 -> Трейл 50 | C35: Зима минус 100 Трейл 50 | D35: 54.3 | E35: М | F35: =IF(E35="Ж",VLOOKUP(C35,Гонки!$E$2:$P$16,11,FALSE),VLOOKUP(C35,Гонки!$E$2:$P$16,12,FALSE)) -> 34 | G35: Чичин Юрий | H35: 1979 | I35: Chichin Yurij | J35: Чичин Юрий / Chichin Yurij / 1979 | K35: М | L35: 23 | M35: 35.29411765 | N35: 260.08
A36: =Гонки!$C$2 -> Зима минус 100 | B36: =Гонки!$D$2 -> Трейл 50 | C36: Зима минус 100 Трейл 50 | D36: 54.3 | E36: М | F36: =IF(E36="Ж",VLOOKUP(C36,Гонки!$E$2:$P$16,11,FALSE),VLOOKUP(C36,Гонки!$E$2:$P$16,12,FALSE)) -> 34 | G36: Бачища Николай | H36: 1988 | I36: Bachischa Nikolaj | J36: Бачища Николай / Bachischa Nikolaj / 1988 | K36: М | L36: 24 | M36: 32.35294118 | N36: 238.4
A37: =Гонки!$C$2 -> Зима минус 100 | B37: =Гонки!$D$2 -> Трейл 50 | C37: Зима минус 100 Трейл 50 | D37: 54.3 | E37: М | F37: =IF(E37="Ж",VLOOKUP(C37,Гонки!$E$2:$P$16,11,FALSE),VLOOKUP(C37,Гонки!$E$2:$P$16,12,FALSE)) -> 34 | G37: Кузьмич Дмитрий | H37: 1975 | I37: Kuzmich Dmitrij | J37: Кузьмич Дмитрий / Kuzmich Dmitrij / 1975 | K37: М | L37: 25 | M37: 29.41176471 | N37: 216.73
A38: =Гонки!$C$2 -> Зима минус 100 | B38: =Гонки!$D$2 -> Трейл 50 | C38: Зима минус 100 Трейл 50 | D38: 54.3 | E38: М | F38: =IF(E38="Ж",VLOOKUP(C38,Гонки!$E$2:$P$16,11,FALSE),VLOOKUP(C38,Гонки!$E$2:$P$16,12,FALSE)) -> 34 | G38: Лялеко Сергей | H38: 1986 | I38: Lyaleko Sergej | J38: Лялеко Сергей / Lyaleko Sergej / 1986 | K38: М | L38: 26 | M38: 26.47058824 | N38: 195.06
A39: =Гонки!$C$2 -> Зима минус 100 | B39: =Гонки!$D$2 -> Трейл 50 | C39: Зима минус 100 Трейл 50 | D39: 54.3 | E39: М | F39: =IF(E39="Ж",VLOOKUP(C39,Гонки!$E$2:$P$16,11,FALSE),VLOOKUP(C39,Гонки!$E$2:$P$16,12,FALSE)) -> 34 | G39: Лучкин Олег | H39: 1983 | I39: Luchkin Oleg | J39: Лучкин Олег / Luchkin Oleg / 1983 | K39: М | L39: 27 | M39: 23.52941176 | N39: 173.38
A40: =Гонки!$C$2 -> Зима минус 100 | B40: =Гонки!$D$2 -> Трейл 50 | C40: Зима минус 100 Трейл 50 | D40: 54.3 | E40: М | F40: =IF(E40="Ж",VLOOKUP(C40,Гонки!$E$2:$P$16,11,FALSE),VLOOKUP(C40,Гонки!$E$2:$P$16,12,FALSE)) -> 34 | G40: Занько Юрий | H40: 1982 | I40: Zanko Yurij | J40: Занько Юрий / Zanko Yurij / 1982 | K40: М | L40: 28 | M40: 20.58823529 | N40: 151.71
A41: =Гонки!$C$2 -> Зима минус 100 | B41: =Гонки!$D$2 -> Трейл 50 | C41: Зима минус 100 Трейл 50 | D41: 54.3 | E41: М | F41: =IF(E41="Ж",VLOOKUP(C41,Гонки!$E$2:$P$16,11,FALSE),VLOOKUP(C41,Гонки!$E$2:$P$16,12,FALSE)) -> 34 | G41: Печёнов Георгий | H41: 1975 | I41: Pechjonov Georgij | J41: Печёнов Георгий / Pechjonov Georgij / 1975 | K41: М | L41: 29 | M41: 17.64705882 | N41: 130.04
A42: =Гонки!$C$2 -> Зима минус 100 | B42: =Гонки!$D$2 -> Трейл 50 | C42: Зима минус 100 Трейл 50 | D42: 54.3 | E42: М | F42: =IF(E42="Ж",VLOOKUP(C42,Гонки!$E$2:$P$16,11,FALSE),VLOOKUP(C42,Гонки!$E$2:$P$16,12,FALSE)) -> 34 | G42: Ананич Александр | H42: 1979 | I42: Ananich Aleksandr | J42: Ананич Александр / Ananich Aleksandr / 1979 | K42: М | L42: 30 | M42: 14.70588235 | N42: 108.37
A43: =Гонки!$C$2 -> Зима минус 100 | B43: =Гонки!$D$2 -> Трейл 50 | C43: Зима минус 100 Трейл 50 | D43: 54.3 | E43: М | F43: =IF(E43="Ж",VLOOKUP(C43,Гонки!$E$2:$P$16,11,FALSE),VLOOKUP(C43,Гонки!$E$2:$P$16,12,FALSE)) -> 34 | G43: Катонов Василий | H43: 1985 | I43: Katonov Vasilij | J43: Катонов Василий / Katonov Vasilij / 1985 | K43: М | L43: 31 | M43: 11.76470588 | N43: 86.69
A44: =Гонки!$C$2 -> Зима минус 100 | B44: =Гонки!$D$2 -> Трейл 50 | C44: Зима минус 100 Трейл 50 | D44: 54.3 | E44: М | F44: =IF(E44="Ж",VLOOKUP(C44,Гонки!$E$2:$P$16,11,FALSE),VLOOKUP(C44,Гонки!$E$2:$P$16,12,FALSE)) -> 34 | G44: Медвецкий Денис | H44: 1986 | I44: Medvetskij Denis | J44: Медвецкий Денис / Medvetskij Denis / 1986 | K44: М | L44: 32 | M44: 8.823529412 | N44: 65.02
A45: =Гонки!$C$2 -> Зима минус 100 | B45: =Гонки!$D$2 -> Трейл 50 | C45: Зима минус 100 Трейл 50 | D45: 54.3 | E45: М | F45: =IF(E45="Ж",VLOOKUP(C45,Гонки!$E$2:$P$16,11,FALSE),VLOOKUP(C45,Гонки!$E$2:$P$16,12,FALSE)) -> 34 | G45: Малаховский Александр | H45: 1985 | I45: Malahovskij Aleksandr | J45: Малаховский Александр / Malahovskij Aleksandr / 1985 | K45: М | L45: 33 | M45: 5.882352941 | N45: 43.35
A46: =Гонки!$C$2 -> Зима минус 100 | B46: =Гонки!$D$3 -> Трейл 100 | C46: Зима минус 100 Трейл 100 | D46: 113.8 | E46: Ж | F46: =IF(E46="Ж",VLOOKUP(C46,Гонки!$E$2:$P$16,11,FALSE),VLOOKUP(C46,Гонки!$E$2:$P$16,12,FALSE)) -> 5 | G46: Суховерхая Татьяна | H46: 1986 | I46: Suhoverhaya Tatyana | J46: Суховерхая Татьяна / Suhoverhaya Tatyana / 1986 | K46: Ж | L46: 1 | M46: 100 | N46: 1066.77
A47: =Гонки!$C$2 -> Зима минус 100 | B47: =Гонки!$D$3 -> Трейл 100 | C47: Зима минус 100 Трейл 100 | D47: 113.8 | E47: М | F47: =IF(E47="Ж",VLOOKUP(C47,Гонки!$E$2:$P$16,11,FALSE),VLOOKUP(C47,Гонки!$E$2:$P$16,12,FALSE)) -> 25 | G47: Пивень Андрей | H47: 1992 | I47: Piven Andrej | J47: Пивень Андрей / Piven Andrej / 1992 | K47: М | L47: 1 | M47: 100 | N47: 1066.77
A48: =Гонки!$C$2 -> Зима минус 100 | B48: =Гонки!$D$3 -> Трейл 100 | C48: Зима минус 100 Трейл 100 | D48: 113.8 | E48: М | F48: =IF(E48="Ж",VLOOKUP(C48,Гонки!$E$2:$P$16,11,FALSE),VLOOKUP(C48,Гонки!$E$2:$P$16,12,FALSE)) -> 25 | G48: Исаев Антон | H48: 1979 | I48: Isaev Anton | J48: Исаев Антон / Isaev Anton / 1979 | K48: М | L48: 2 | M48: 96 | N48: 1024.1
A49: =Гонки!$C$2 -> Зима минус 100 | B49: =Гонки!$D$3 -> Трейл 100 | C49: Зима минус 100 Трейл 100 | D49: 113.8 | E49: М | F49: =IF(E49="Ж",VLOOKUP(C49,Гонки!$E$2:$P$16,11,FALSE),VLOOKUP(C49,Гонки!$E$2:$P$16,12,FALSE)) -> 25 | G49: Синица Кирилл | H49: 1981 | I49: Sinitsa Kirill | J49: Синица Кирилл / Sinitsa Kirill / 1981 | K49: М | L49: 3 | M49: 92 | N49: 981.43
A50: =Гонки!$C$2 -> Зима минус 100 | B50: =Гонки!$D$3 -> Трейл 100 | C50: Зима минус 100 Трейл 100 | D50: 113.8 | E50: М | F50: =IF(E50="Ж",VLOOKUP(C50,Гонки!$E$2:$P$16,11,FALSE),VLOOKUP(C50,Гонки!$E$2:$P$16,12,FALSE)) -> 25 | G50: Лысенко Павел | H50: 1966 | I50: Lysenko Pavel | J50: Лысенко Павел / Lysenko Pavel / 1966 | K50: М | L50: 4 | M50: 88 | N50: 938.76
A51: =Гонки!$C$2 -> Зима минус 100 | B51: =Гонки!$D$3 -> Трейл 100 | C51: Зима минус 100 Трейл 100 | D51: 113.8 | E51: М | F51: =IF(E51="Ж",VLOOKUP(C51,Гонки!$E$2:$P$16,11,FALSE),VLOOKUP(C51,Гонки!$E$2:$P$16,12,FALSE)) -> 25 | G51: Борисевич Леонид | H51: 1969 | I51: Borisevich Leonid | J51: Борисевич Леонид / Borisevich Leonid / 1969 | K51: М | L51: 5 | M51: 84 | N51: 896.09
A52: =Гонки!$C$2 -> Зима минус 100 | B52: =Гонки!$D$3 -> Трейл 100 | C52: Зима минус 100 Трейл 100 | D52: 113.8 | E52: М | F52: =IF(E52="Ж",VLOOKUP(C52,Гонки!$E$2:$P$16,11,FALSE),VLOOKUP(C52,Гонки!$E$2:$P$16,12,FALSE)) -> 25 | G52: Подрез Ярослав | H52: 1996 | I52: Podrez Yaroslav | J52: Подрез Ярослав / Podrez Yaroslav / 1996 | K52: М | L52: 6 | M52: 80 | N52: 853.42
A53: =Гонки!$C$2 -> Зима минус 100 | B53: =Гонки!$D$3 -> Трейл 100 | C53: Зима минус 100 Трейл 100 | D53: 113.8 | E53: М | F53: =IF(E53="Ж",VLOOKUP(C53,Гонки!$E$2:$P$16,11,FALSE),VLOOKUP(C53,Гонки!$E$2:$P$16,12,FALSE)) -> 25 | G53: Селютин Владимир | H53: 1990 | I53: Selyutin Vladimir | J53: Селютин Владимир / Selyutin Vladimir / 1990 | K53: М | L53: 7 | M53: 76 | N53: 810.75
A54: =Гонки!$C$2 -> Зима минус 100 | B54: =Гонки!$D$3 -> Трейл 100 | C54: Зима минус 100 Трейл 100 | D54: 113.8 | E54: М | F54: =IF(E54="Ж",VLOOKUP(C54,Гонки!$E$2:$P$16,11,FALSE),VLOOKUP(C54,Гонки!$E$2:$P$16,12,FALSE)) -> 25 | G54: Фенченко Алексей | H54: 1989 | I54: Fenchenko Aleksej | J54: Фенченко Алексей / Fenchenko Aleksej / 1989 | K54: М | L54: 8 | M54: 72 | N54: 768.07
A55: =Гонки!$C$2 -> Зима минус 100 | B55: =Гонки!$D$3 -> Трейл 100 | C55: Зима минус 100 Трейл 100 | D55: 113.8 | E55: М | F55: =IF(E55="Ж",VLOOKUP(C55,Гонки!$E$2:$P$16,11,FALSE),VLOOKUP(C55,Гонки!$E$2:$P$16,12,FALSE)) -> 25 | G55: Харитонов Иван | H55: 1973 | I55: Haritonov Ivan | J55: Харитонов Иван / Haritonov Ivan / 1973 | K55: М | L55: 9 | M55: 68 | N55: 725.4
A56: =Гонки!$C$2 -> Зима минус 100 | B56: =Гонки!$D$3 -> Трейл 100 | C56: Зима минус 100 Трейл 100 | D56: 113.8 | E56: М | F56: =IF(E56="Ж",VLOOKUP(C56,Гонки!$E$2:$P$16,11,FALSE),VLOOKUP(C56,Гонки!$E$2:$P$16,12,FALSE)) -> 25 | G56: Лесковец Александр | H56: 1990 | I56: Leskovets Aleksandr | J56: Лесковец Александр / Leskovets Aleksandr / 1990 | K56: М | L56: 10 | M56: 64 | N56: 682.73
A57: =Гонки!$C$2 -> Зима минус 100 | B57: =Гонки!$D$3 -> Трейл 100 | C57: Зима минус 100 Трейл 100 | D57: 113.8 | E57: М | F57: =IF(E57="Ж",VLOOKUP(C57,Гонки!$E$2:$P$16,11,FALSE),VLOOKUP(C57,Гонки!$E$2:$P$16,12,FALSE)) -> 25 | G57: Нестерович Сергей | H57: 1994 | I57: Nesterovich Sergej | J57: Нестерович Сергей / Nesterovich Sergej / 1994 | K57: М | L57: 11 | M57: 60 | N57: 640.06
A58: =Гонки!$C$2 -> Зима минус 100 | B58: =Гонки!$D$3 -> Трейл 100 | C58: Зима минус 100 Трейл 100 | D58: 113.8 | E58: М | F58: =IF(E58="Ж",VLOOKUP(C58,Гонки!$E$2:$P$16,11,FALSE),VLOOKUP(C58,Гонки!$E$2:$P$16,12,FALSE)) -> 25 | G58: Сорокин Денис | H58: 1998 | I58: Sorokin Denis | J58: Сорокин Денис / Sorokin Denis / 1998 | K58: М | L58: 12 | M58: 56 | N58: 597.39
A59: =Гонки!$C$2 -> Зима минус 100 | B59: =Гонки!$D$3 -> Трейл 100 | C59: Зима минус 100 Трейл 100 | D59: 113.8 | E59: М | F59: =IF(E59="Ж",VLOOKUP(C59,Гонки!$E$2:$P$16,11,FALSE),VLOOKUP(C59,Гонки!$E$2:$P$16,12,FALSE)) -> 25 | G59: Маркевич Денис | H59: 1981 | I59: Markevich Denis | J59: Маркевич Денис / Markevich Denis / 1981 | K59: М | L59: 13 | M59: 52 | N59: 554.72
A60: =Гонки!$C$2 -> Зима минус 100 | B60: =Гонки!$D$3 -> Трейл 100 | C60: Зима минус 100 Трейл 100 | D60: 113.8 | E60: М | F60: =IF(E60="Ж",VLOOKUP(C60,Гонки!$E$2:$P$16,11,FALSE),VLOOKUP(C60,Гонки!$E$2:$P$16,12,FALSE)) -> 25 | G60: Олин Денис | H60: 1976 | I60: Olin Denis | J60: Олин Денис / Olin Denis / 1976 | K60: М | L60: 14 | M60: 48 | N60: 512.05
A61: =Гонки!$C$4 -> Жук-трейл # 4 Минское Море | B61: =Гонки!$D$4 -> Трейл 25 | C61: Жук-трейл # 4 Минское Море Трейл 25 | D61: 26.71 | E61: Ж | F61: =IF(E61="Ж",VLOOKUP(C61,Гонки!$E$2:$P$16,11,FALSE),VLOOKUP(C61,Гонки!$E$2:$P$16,12,FALSE)) -> 11 | G61: Гилевич Диана | H61: 1993 | I61: Gilevich Diana | J61: Гилевич Диана / Gilevich Diana / 1993 | K61: Ж | L61: 1 | M61: 100 | N61: 516.82
A62: =Гонки!$C$4 -> Жук-трейл # 4 Минское Море | B62: =Гонки!$D$4 -> Трейл 25 | C62: Жук-трейл # 4 Минское Море Трейл 25 | D62: 26.71 | E62: Ж | F62: =IF(E62="Ж",VLOOKUP(C62,Гонки!$E$2:$P$16,11,FALSE),VLOOKUP(C62,Гонки!$E$2:$P$16,12,FALSE)) -> 11 | G62: Гилевич Кристина | H62: 1994 | I62: Gilevich Kristina | J62: Гилевич Кристина / Gilevich Kristina / 1994 | K62: Ж | L62: 2 | M62: 90.90909091 | N62: 469.83
A63: =Гонки!$C$4 -> Жук-трейл # 4 Минское Море | B63: =Гонки!$D$4 -> Трейл 25 | C63: Жук-трейл # 4 Минское Море Трейл 25 | D63: 26.71 | E63: Ж | F63: =IF(E63="Ж",VLOOKUP(C63,Гонки!$E$2:$P$16,11,FALSE),VLOOKUP(C63,Гонки!$E$2:$P$16,12,FALSE)) -> 11 | G63: Скирук Юлия | H63: 1988 | I63: Skiruk Yuliya | J63: Скирук Юлия / Skiruk Yuliya / 1988 | K63: Ж | L63: 3 | M63: 81.81818182 | N63: 422.85
A64: =Гонки!$C$4 -> Жук-трейл # 4 Минское Море | B64: =Гонки!$D$4 -> Трейл 25 | C64: Жук-трейл # 4 Минское Море Трейл 25 | D64: 26.71 | E64: Ж | F64: =IF(E64="Ж",VLOOKUP(C64,Гонки!$E$2:$P$16,11,FALSE),VLOOKUP(C64,Гонки!$E$2:$P$16,12,FALSE)) -> 11 | G64: Белая Юлия | H64: 1988 | I64: Belaya Yuliya | J64: Белая Юлия / Belaya Yuliya / 1988 | K64: Ж | L64: 4 | M64: 72.72727273 | N64: 375.87
A65: =Гонки!$C$4 -> Жук-трейл # 4 Минское Море | B65: =Гонки!$D$4 -> Трейл 25 | C65: Жук-трейл # 4 Минское Море Трейл 25 | D65: 26.71 | E65: Ж | F65: =IF(E65="Ж",VLOOKUP(C65,Гонки!$E$2:$P$16,11,FALSE),VLOOKUP(C65,Гонки!$E$2:$P$16,12,FALSE)) -> 11 | G65: Голубева Елена | H65: 1987 | I65: Golubeva Elena | J65: Голубева Елена / Golubeva Elena / 1987 | K65: Ж | L65: 5 | M65: 63.63636364 | N65: 328.88
A66: =Гонки!$C$4 -> Жук-трейл # 4 Минское Море | B66: =Гонки!$D$4 -> Трейл 25 | C66: =CONCATENATE(A66," ",B66) -> Жук-трейл # 4 Минское Море Трейл 25 | D66: =VLOOKUP(C66,Список_гонок,10,FALSE) -> 26.71 | E66: Ж | F66: =IF(E66="Ж",VLOOKUP(C66,Гонки!$E$2:$P$16,11,FALSE),VLOOKUP(C66,Гонки!$E$2:$P$16,12,FALSE)) -> 11 | G66: Литвинская Людмила | H66: 1977 | I66: =Translit(G66) -> Litvinskaya Lyudmila | J66: =CONCATENATE(G66," / ",I66," / ",H66) -> Литвинская Людмила / Litvinskaya Lyudmila / 1977 | K66: =E66 -> Ж | L66: 6 | M66: =100-((L66-1)/F66)*100 -> 54.54545455 | N66: =ROUND(SQRT(D66)*M66,2) -> 281.9
A67: =Гонки!$C$4 -> Жук-трейл # 4 Минское Море | B67: =Гонки!$D$4 -> Трейл 25 | C67: Жук-трейл # 4 Минское Море Трейл 25 | D67: 26.71 | E67: Ж | F67: =IF(E67="Ж",VLOOKUP(C67,Гонки!$E$2:$P$16,11,FALSE),VLOOKUP(C67,Гонки!$E$2:$P$16,12,FALSE)) -> 11 | G67: Суховерхая Татьяна | H67: 1986 | I67: Suhoverhaya Tatyana | J67: Суховерхая Татьяна / Suhoverhaya Tatyana / 1986 | K67: Ж | L67: 7 | M67: 45.45454545 | N67: 234.92
A68: =Гонки!$C$4 -> Жук-трейл # 4 Минское Море | B68: =Гонки!$D$4 -> Трейл 25 | C68: Жук-трейл # 4 Минское Море Трейл 25 | D68: 26.71 | E68: Ж | F68: =IF(E68="Ж",VLOOKUP(C68,Гонки!$E$2:$P$16,11,FALSE),VLOOKUP(C68,Гонки!$E$2:$P$16,12,FALSE)) -> 11 | G68: Василевич Валентина | H68: 1998 | I68: Vasilevich Valentina | J68: Василевич Валентина / Vasilevich Valentina / 1998 | K68: Ж | L68: 8 | M68: 36.36363636 | N68: 187.93
A69: =Гонки!$C$4 -> Жук-трейл # 4 Минское Море | B69: =Гонки!$D$4 -> Трейл 25 | C69: Жук-трейл # 4 Минское Море Трейл 25 | D69: 26.71 | E69: Ж | F69: =IF(E69="Ж",VLOOKUP(C69,Гонки!$E$2:$P$16,11,FALSE),VLOOKUP(C69,Гонки!$E$2:$P$16,12,FALSE)) -> 11 | G69: Михно Алла | H69: 1979 | I69: Mihno Alla | J69: Михно Алла / Mihno Alla / 1979 | K69: Ж | L69: 9 | M69: 27.27272727 | N69: 140.95
A70: =Гонки!$C$4 -> Жук-трейл # 4 Минское Море | B70: =Гонки!$D$4 -> Трейл 25 | C70: Жук-трейл # 4 Минское Море Трейл 25 | D70: 26.71 | E70: Ж | F70: =IF(E70="Ж",VLOOKUP(C70,Гонки!$E$2:$P$16,11,FALSE),VLOOKUP(C70,Гонки!$E$2:$P$16,12,FALSE)) -> 11 | G70: Михалкин Сергей | H70: 1989 | I70: Mihalkin Sergej | J70: Михалкин Сергей / Mihalkin Sergej / 1989 | K70: Ж | L70: 1 | M70: 100 | N70: 516.82
A71: =Гонки!$C$4 -> Жук-трейл # 4 Минское Море | B71: =Гонки!$D$4 -> Трейл 25 | C71: Жук-трейл # 4 Минское Море Трейл 25 | D71: 26.71 | E71: М | F71: =IF(E71="Ж",VLOOKUP(C71,Гонки!$E$2:$P$16,11,FALSE),VLOOKUP(C71,Гонки!$E$2:$P$16,12,FALSE)) -> 81 | G71: Сердитов Вадим | H71: 1993 | I71: Serditov Vadim | J71: Сердитов Вадим / Serditov Vadim / 1993 | K71: М | L71: 2 | M71: 98.7654321 | N71: 510.44
A72: =Гонки!$C$4 -> Жук-трейл # 4 Минское Море | B72: =Гонки!$D$4 -> Трейл 25 | C72: Жук-трейл # 4 Минское Море Трейл 25 | D72: 26.71 | E72: М | F72: =IF(E72="Ж",VLOOKUP(C72,Гонки!$E$2:$P$16,11,FALSE),VLOOKUP(C72,Гонки!$E$2:$P$16,12,FALSE)) -> 81 | G72: Ходан Александр | H72: 1988 | I72: Hodan Aleksandr | J72: Ходан Александр / Hodan Aleksandr / 1988 | K72: М | L72: 3 | M72: 97.5308642 | N72: 504.06
A73: =Гонки!$C$4 -> Жук-трейл # 4 Минское Море | B73: =Гонки!$D$4 -> Трейл 25 | C73: Жук-трейл # 4 Минское Море Трейл 25 | D73: 26.71 | E73: М | F73: =IF(E73="Ж",VLOOKUP(C73,Гонки!$E$2:$P$16,11,FALSE),VLOOKUP(C73,Гонки!$E$2:$P$16,12,FALSE)) -> 81 | G73: Леонов Иван | H73: 1986 | I73: Leonov Ivan | J73: Леонов Иван / Leonov Ivan / 1986 | K73: М | L73: 4 | M73: 96.2962963 | N73: 497.68
A74: =Гонки!$C$4 -> Жук-трейл # 4 Минское Море | B74: =Гонки!$D$4 -> Трейл 25 | C74: Жук-трейл # 4 Минское Море Трейл 25 | D74: 26.71 | E74: М | F74: =IF(E74="Ж",VLOOKUP(C74,Гонки!$E$2:$P$16,11,FALSE),VLOOKUP(C74,Гонки!$E$2:$P$16,12,FALSE)) -> 81 | G74: Вагин Андрей | H74: 1989 | I74: Vagin Andrej | J74: Вагин Андрей / Vagin Andrej / 1989 | K74: М | L74: 5 | M74: 95.0617284 | N74: 491.3
A75: =Гонки!$C$4 -> Жук-трейл # 4 Минское Море | B75: =Гонки!$D$4 -> Трейл 25 | C75: Жук-трейл # 4 Минское Море Трейл 25 | D75: 26.71 | E75: М | F75: =IF(E75="Ж",VLOOKUP(C75,Гонки!$E$2:$P$16,11,FALSE),VLOOKUP(C75,Гонки!$E$2:$P$16,12,FALSE)) -> 81 | G75: Журавлёв Андрей | H75: 1978 | I75: Zhuravljov Andrej | J75: Журавлёв Андрей / Zhuravljov Andrej / 1978 | K75: М | L75: 6 | M75: 93.82716049 | N75: 484.91
A76: =Гонки!$C$4 -> Жук-трейл # 4 Минское Море | B76: =Гонки!$D$4 -> Трейл 25 | C76: Жук-трейл # 4 Минское Море Трейл 25 | D76: 26.71 | E76: М | F76: =IF(E76="Ж",VLOOKUP(C76,Гонки!$E$2:$P$16,11,FALSE),VLOOKUP(C76,Гонки!$E$2:$P$16,12,FALSE)) -> 81 | G76: Ласюк Юрий | H76: 1987 | I76: Lasyuk Yurij | J76: Ласюк Юрий / Lasyuk Yurij / 1987 | K76: М | L76: 7 | M76: 92.59259259 | N76: 478.53
A77: =Гонки!$C$4 -> Жук-трейл # 4 Минское Море | B77: =Гонки!$D$4 -> Трейл 25 | C77: Жук-трейл # 4 Минское Море Трейл 25 | D77: 26.71 | E77: М | F77: =IF(E77="Ж",VLOOKUP(C77,Гонки!$E$2:$P$16,11,FALSE),VLOOKUP(C77,Гонки!$E$2:$P$16,12,FALSE)) -> 81 | G77: Овсиюк Богдан | H77: 1993 | I77: Ovsiyuk Bogdan | J77: Овсиюк Богдан / Ovsiyuk Bogdan / 1993 | K77: М | L77: 8 | M77: 91.35802469 | N77: 472.15
A78: =Гонки!$C$4 -> Жук-трейл # 4 Минское Море | B78: =Гонки!$D$4 -> Трейл 25 | C78: Жук-трейл # 4 Минское Море Трейл 25 | D78: 26.71 | E78: М | F78: =IF(E78="Ж",VLOOKUP(C78,Гонки!$E$2:$P$16,11,FALSE),VLOOKUP(C78,Гонки!$E$2:$P$16,12,FALSE)) -> 81 | G78: Березовский Андрей | H78: 1973 | I78: Berezovskij Andrej | J78: Березовский Андрей / Berezovskij Andrej / 1973 | K78: М | L78: 9 | M78: 90.12345679 | N78: 465.77
A79: =Гонки!$C$4 -> Жук-трейл # 4 Минское Море | B79: =Гонки!$D$4 -> Трейл 25 | C79: Жук-трейл # 4 Минское Море Трейл 25 | D79: 26.71 | E79: М | F79: =IF(E79="Ж",VLOOKUP(C79,Гонки!$E$2:$P$16,11,FALSE),VLOOKUP(C79,Гонки!$E$2:$P$16,12,FALSE)) -> 81 | G79: Скуратович Антон | H79: 1985 | I79: Skuratovich Anton | J79: Скуратович Антон / Skuratovich Anton / 1985 | K79: М | L79: 10 | M79: 88.88888889 | N79: 459.39
A80: =Гонки!$C$4 -> Жук-трейл # 4 Минское Море | B80: =Гонки!$D$4 -> Трейл 25 | C80: Жук-трейл # 4 Минское Море Трейл 25 | D80: 26.71 | E80: М | F80: =IF(E80="Ж",VLOOKUP(C80,Гонки!$E$2:$P$16,11,FALSE),VLOOKUP(C80,Гонки!$E$2:$P$16,12,FALSE)) -> 81 | G80: Солодкин Сергей | H80: 1984 | I80: Solodkin Sergej | J80: Солодкин Сергей / Solodkin Sergej / 1984 | K80: М | L80: 11 | M80: 87.65432099 | N80: 453.01
A81: =Гонки!$C$4 -> Жук-трейл # 4 Минское Море | B81: =Гонки!$D$4 -> Трейл 25 | C81: Жук-трейл # 4 Минское Море Трейл 25 | D81: 26.71 | E81: М | F81: =IF(E81="Ж",VLOOKUP(C81,Гонки!$E$2:$P$16,11,FALSE),VLOOKUP(C81,Гонки!$E$2:$P$16,12,FALSE)) -> 81 | G81: Молочко Александр | H81: 1981 | I81: Molochko Aleksandr | J81: Молочко Александр / Molochko Aleksandr / 1981 | K81: М | L81: 12 | M81: 86.41975309 | N81: 446.63
A82: =Гонки!$C$4 -> Жук-трейл # 4 Минское Море | B82: =Гонки!$D$4 -> Трейл 25 | C82: Жук-трейл # 4 Минское Море Трейл 25 | D82: 26.71 | E82: М | F82: =IF(E82="Ж",VLOOKUP(C82,Гонки!$E$2:$P$16,11,FALSE),VLOOKUP(C82,Гонки!$E$2:$P$16,12,FALSE)) -> 81 | G82: Лукашенок Алексей | H82: 1978 | I82: Lukashenok Aleksej | J82: Лукашенок Алексей / Lukashenok Aleksej / 1978 | K82: М | L82: 13 | M82: 85.18518519 | N82: 440.25
A83: =Гонки!$C$4 -> Жук-трейл # 4 Минское Море | B83: =Гонки!$D$4 -> Трейл 25 | C83: Жук-трейл # 4 Минское Море Трейл 25 | D83: 26.71 | E83: М | F83: =IF(E83="Ж",VLOOKUP(C83,Гонки!$E$2:$P$16,11,FALSE),VLOOKUP(C83,Гонки!$E$2:$P$16,12,FALSE)) -> 81 | G83: Ермохин Максим | H83: 1975 | I83: Ermohin Maksim | J83: Ермохин Максим / Ermohin Maksim / 1975 | K83: М | L83: 14 | M83: 83.95061728 | N83: 433.87
A84: =Гонки!$C$4 -> Жук-трейл # 4 Минское Море | B84: =Гонки!$D$4 -> Трейл 25 | C84: Жук-трейл # 4 Минское Море Трейл 25 | D84: 26.71 | E84: М | F84: =IF(E84="Ж",VLOOKUP(C84,Гонки!$E$2:$P$16,11,FALSE),VLOOKUP(C84,Гонки!$E$2:$P$16,12,FALSE)) -> 81 | G84: Камышкайло Анатолий | H84: 1981 | I84: Kamyshkajlo Anatolij | J84: Камышкайло Анатолий / Kamyshkajlo Anatolij / 1981 | K84: М | L84: 15 | M84: 82.71604938 | N84: 427.49
A85: =Гонки!$C$4 -> Жук-трейл # 4 Минское Море | B85: =Гонки!$D$4 -> Трейл 25 | C85: Жук-трейл # 4 Минское Море Трейл 25 | D85: 26.71 | E85: М | F85: =IF(E85="Ж",VLOOKUP(C85,Гонки!$E$2:$P$16,11,FALSE),VLOOKUP(C85,Гонки!$E$2:$P$16,12,FALSE)) -> 81 | G85: Филитарин Дмитрий | H85: 1987 | I85: Filitarin Dmitrij | J85: Филитарин Дмитрий / Filitarin Dmitrij / 1987 | K85: М | L85: 16 | M85: 81.48148148 | N85: 421.11
A86: =Гонки!$C$4 -> Жук-трейл # 4 Минское Море | B86: =Гонки!$D$4 -> Трейл 25 | C86: Жук-трейл # 4 Минское Море Трейл 25 | D86: 26.71 | E86: М | F86: =IF(E86="Ж",VLOOKUP(C86,Гонки!$E$2:$P$16,11,FALSE),VLOOKUP(C86,Гонки!$E$2:$P$16,12,FALSE)) -> 81 | G86: Храмов Антон | H86: 1991 | I86: Hramov Anton | J86: Храмов Антон / Hramov Anton / 1991 | K86: М | L86: 17 | M86: 80.24691358 | N86: 414.73
A87: =Гонки!$C$4 -> Жук-трейл # 4 Минское Море | B87: =Гонки!$D$4 -> Трейл 25 | C87: Жук-трейл # 4 Минское Море Трейл 25 | D87: 26.71 | E87: М | F87: =IF(E87="Ж",VLOOKUP(C87,Гонки!$E$2:$P$16,11,FALSE),VLOOKUP(C87,Гонки!$E$2:$P$16,12,FALSE)) -> 81 | G87: Тихонов Василий | H87: 1993 | I87: Tihonov Vasilij | J87: Тихонов Василий / Tihonov Vasilij / 1993 | K87: М | L87: 18 | M87: 79.01234568 | N87: 408.35
A88: =Гонки!$C$4 -> Жук-трейл # 4 Минское Море | B88: =Гонки!$D$4 -> Трейл 25 | C88: Жук-трейл # 4 Минское Море Трейл 25 | D88: 26.71 | E88: М | F88: =IF(E88="Ж",VLOOKUP(C88,Гонки!$E$2:$P$16,11,FALSE),VLOOKUP(C88,Гонки!$E$2:$P$16,12,FALSE)) -> 81 | G88: Борисевич Леонид | H88: 1969 | I88: Borisevich Leonid | J88: Борисевич Леонид / Borisevich Leonid / 1969 | K88: М | L88: 19 | M88: 77.77777778 | N88: 401.97
A89: =Гонки!$C$4 -> Жук-трейл # 4 Минское Море | B89: =Гонки!$D$4 -> Трейл 25 | C89: Жук-трейл # 4 Минское Море Трейл 25 | D89: 26.71 | E89: М | F89: =IF(E89="Ж",VLOOKUP(C89,Гонки!$E$2:$P$16,11,FALSE),VLOOKUP(C89,Гонки!$E$2:$P$16,12,FALSE)) -> 81 | G89: Остаповец Евгений | H89: 1990 | I89: Ostapovets Evgenij | J89: Остаповец Евгений / Ostapovets Evgenij / 1990 | K89: М | L89: 20 | M89: 76.54320988 | N89: 395.59
A90: =Гонки!$C$4 -> Жук-трейл # 4 Минское Море | B90: =Гонки!$D$4 -> Трейл 25 | C90: Жук-трейл # 4 Минское Море Трейл 25 | D90: 26.71 | E90: М | F90: =IF(E90="Ж",VLOOKUP(C90,Гонки!$E$2:$P$16,11,FALSE),VLOOKUP(C90,Гонки!$E$2:$P$16,12,FALSE)) -> 81 | G90: Лесковец Александр | H90: 1990 | I90: Leskovets Aleksandr | J90: Лесковец Александр / Leskovets Aleksandr / 1990 | K90: М | L90: 21 | M90: 75.30864198 | N90: 389.21
A91: =Гонки!$C$4 -> Жук-трейл # 4 Минское Море | B91: =Гонки!$D$4 -> Трейл 25 | C91: Жук-трейл # 4 Минское Море Трейл 25 | D91: 26.71 | E91: М | F91: =IF(E91="Ж",VLOOKUP(C91,Гонки!$E$2:$P$16,11,FALSE),VLOOKUP(C91,Гонки!$E$2:$P$16,12,FALSE)) -> 81 | G91: Тривашкевич Евгений | H91: 1996 | I91: Trivashkevich Evgenij | J91: Тривашкевич Евгений / Trivashkevich Evgenij / 1996 | K91: М | L91: 22 | M91: 74.07407407 | N91: 382.83
A92: =Гонки!$C$4 -> Жук-трейл # 4 Минское Море | B92: =Гонки!$D$4 -> Трейл 25 | C92: Жук-трейл # 4 Минское Море Трейл 25 | D92: 26.71 | E92: М | F92: =IF(E92="Ж",VLOOKUP(C92,Гонки!$E$2:$P$16,11,FALSE),VLOOKUP(C92,Гонки!$E$2:$P$16,12,FALSE)) -> 81 | G92: Селютин Владимир | H92: 1990 | I92: Selyutin Vladimir | J92: Селютин Владимир / Selyutin Vladimir / 1990 | K92: М | L92: 23 | M92: 72.83950617 | N92: 376.45
A93: =Гонки!$C$4 -> Жук-трейл # 4 Минское Море | B93: =Гонки!$D$4 -> Трейл 25 | C93: Жук-трейл # 4 Минское Море Трейл 25 | D93: 26.71 | E93: М | F93: =IF(E93="Ж",VLOOKUP(C93,Гонки!$E$2:$P$16,11,FALSE),VLOOKUP(C93,Гонки!$E$2:$P$16,12,FALSE)) -> 81 | G93: Остапов Владимир | H93: 1977 | I93: Ostapov Vladimir | J93: Остапов Владимир / Ostapov Vladimir / 1977 | K93: М | L93: 24 | M93: 71.60493827 | N93: 370.07
A94: =Гонки!$C$4 -> Жук-трейл # 4 Минское Море | B94: =Гонки!$D$4 -> Трейл 25 | C94: Жук-трейл # 4 Минское Море Трейл 25 | D94: 26.71 | E94: М | F94: =IF(E94="Ж",VLOOKUP(C94,Гонки!$E$2:$P$16,11,FALSE),VLOOKUP(C94,Гонки!$E$2:$P$16,12,FALSE)) -> 81 | G94: Маркевич Денис | H94: 1981 | I94: Markevich Denis | J94: Маркевич Денис / Markevich Denis / 1981 | K94: М | L94: 25 | M94: 70.37037037 | N94: 363.69
A95: =Гонки!$C$4 -> Жук-трейл # 4 Минское Море | B95: =Гонки!$D$4 -> Трейл 25 | C95: Жук-трейл # 4 Минское Море Трейл 25 | D95: 26.71 | E95: М | F95: =IF(E95="Ж",VLOOKUP(C95,Гонки!$E$2:$P$16,11,FALSE),VLOOKUP(C95,Гонки!$E$2:$P$16,12,FALSE)) -> 81 | G95: Дельянов Одиссей | H95: 1979 | I95: Delyanov Odissej | J95: Дельянов Одиссей / Delyanov Odissej / 1979 | K95: М | L95: 26 | M95: 69.13580247 | N95: 357.31
A96: =Гонки!$C$4 -> Жук-трейл # 4 Минское Море | B96: =Гонки!$D$4 -> Трейл 25 | C96: Жук-трейл # 4 Минское Море Трейл 25 | D96: 26.71 | E96: М | F96: =IF(E96="Ж",VLOOKUP(C96,Гонки!$E$2:$P$16,11,FALSE),VLOOKUP(C96,Гонки!$E$2:$P$16,12,FALSE)) -> 81 | G96: Орловский Павел | H96: 1989 | I96: Orlovskij Pavel | J96: Орловский Павел / Orlovskij Pavel / 1989 | K96: М | L96: 27 | M96: 67.90123457 | N96: 350.93
A97: =Гонки!$C$4 -> Жук-трейл # 4 Минское Море | B97: =Гонки!$D$4 -> Трейл 25 | C97: Жук-трейл # 4 Минское Море Трейл 25 | D97: 26.71 | E97: М | F97: =IF(E97="Ж",VLOOKUP(C97,Гонки!$E$2:$P$16,11,FALSE),VLOOKUP(C97,Гонки!$E$2:$P$16,12,FALSE)) -> 81 | G97: Попадюк Игорь | H97: 1982 | I97: Popadyuk Igor | J97: Попадюк Игорь / Popadyuk Igor / 1982 | K97: М | L97: 28 | M97: 66.66666667 | N97: 344.54
A98: =Гонки!$C$4 -> Жук-трейл # 4 Минское Море | B98: =Гонки!$D$4 -> Трейл 25 | C98: Жук-трейл # 4 Минское Море Трейл 25 | D98: 26.71 | E98: М | F98: =IF(E98="Ж",VLOOKUP(C98,Гонки!$E$2:$P$16,11,FALSE),VLOOKUP(C98,Гонки!$E$2:$P$16,12,FALSE)) -> 81 | G98: Таран Виталий | H98: 1983 | I98: Taran Vitalij | J98: Таран Виталий / Taran Vitalij / 1983 | K98: М | L98: 29 | M98: 65.43209877 | N98: 338.16
A99: =Гонки!$C$4 -> Жук-трейл # 4 Минское Море | B99: =Гонки!$D$4 -> Трейл 25 | C99: Жук-трейл # 4 Минское Море Трейл 25 | D99: 26.71 | E99: М | F99: =IF(E99="Ж",VLOOKUP(C99,Гонки!$E$2:$P$16,11,FALSE),VLOOKUP(C99,Гонки!$E$2:$P$16,12,FALSE)) -> 81 | G99: Алексеев Алексей | H99: 1980 | I99: Alekseev Aleksej | J99: Алексеев Алексей / Alekseev Aleksej / 1980 | K99: М | L99: 30 | M99: 64.19753086 | N99: 331.78
A100: =Гонки!$C$4 -> Жук-трейл # 4 Минское Море | B100: =Гонки!$D$4 -> Трейл 25 | C100: Жук-трейл # 4 Минское Море Трейл 25 | D100: 26.71 | E100: М | F100: =IF(E100="Ж",VLOOKUP(C100,Гонки!$E$2:$P$16,11,FALSE),VLOOKUP(C100,Гонки!$E$2:$P$16,12,FALSE)) -> 81 | G100: Шклярик Олег | H100: 1970 | I100: Shklyarik Oleg | J100: Шклярик Олег / Shklyarik Oleg / 1970 | K100: М | L100: 31 | M100: 62.96296296 | N100: 325.4
A101: =Гонки!$C$4 -> Жук-трейл # 4 Минское Море | B101: =Гонки!$D$4 -> Трейл 25 | C101: Жук-трейл # 4 Минское Море Трейл 25 | D101: 26.71 | E101: М | F101: =IF(E101="Ж",VLOOKUP(C101,Гонки!$E$2:$P$16,11,FALSE),VLOOKUP(C101,Гонки!$E$2:$P$16,12,FALSE)) -> 81 | G101: Бокша Сергей | H101: 1988 | I101: Boksha Sergej | J101: Бокша Сергей / Boksha Sergej / 1988 | K101: М | L101: 32 | M101: 61.72839506 | N101: 319.02
A102: =Гонки!$C$4 -> Жук-трейл # 4 Минское Море | B102: =Гонки!$D$4 -> Трейл 25 | C102: Жук-трейл # 4 Минское Море Трейл 25 | D102: 26.71 | E102: М | F102: =IF(E102="Ж",VLOOKUP(C102,Гонки!$E$2:$P$16,11,FALSE),VLOOKUP(C102,Гонки!$E$2:$P$16,12,FALSE)) -> 81 | G102: Свечников Антон | H102: 1991 | I102: Svechnikov Anton | J102: Свечников Антон / Svechnikov Anton / 1991 | K102: М | L102: 33 | M102: 60.49382716 | N102: 312.64
A103: =Гонки!$C$4 -> Жук-трейл # 4 Минское Море | B103: =Гонки!$D$4 -> Трейл 25 | C103: Жук-трейл # 4 Минское Море Трейл 25 | D103: 26.71 | E103: М | F103: =IF(E103="Ж",VLOOKUP(C103,Гонки!$E$2:$P$16,11,FALSE),VLOOKUP(C103,Гонки!$E$2:$P$16,12,FALSE)) -> 81 | G103: Львовский Андрей | H103: 1991 | I103: Lvovskij Andrej | J103: Львовский Андрей / Lvovskij Andrej / 1991 | K103: М | L103: 34 | M103: 59.25925926 | N103: 306.26
A104: =Гонки!$C$4 -> Жук-трейл # 4 Минское Море | B104: =Гонки!$D$4 -> Трейл 25 | C104: Жук-трейл # 4 Минское Море Трейл 25 | D104: 26.71 | E104: М | F104: =IF(E104="Ж",VLOOKUP(C104,Гонки!$E$2:$P$16,11,FALSE),VLOOKUP(C104,Гонки!$E$2:$P$16,12,FALSE)) -> 81 | G104: Марчук Александр | H104: 1986 | I104: Marchuk Aleksandr | J104: Марчук Александр / Marchuk Aleksandr / 1986 | K104: М | L104: 35 | M104: 58.02469136 | N104: 299.88
A105: =Гонки!$C$4 -> Жук-трейл # 4 Минское Море | B105: =Гонки!$D$4 -> Трейл 25 | C105: Жук-трейл # 4 Минское Море Трейл 25 | D105: 26.71 | E105: М | F105: =IF(E105="Ж",VLOOKUP(C105,Гонки!$E$2:$P$16,11,FALSE),VLOOKUP(C105,Гонки!$E$2:$P$16,12,FALSE)) -> 81 | G105: Веремейчик Юрий | H105: 1979 | I105: Veremejchik Yurij | J105: Веремейчик Юрий / Veremejchik Yurij / 1979 | K105: М | L105: 36 | M105: 56.79012346 | N105: 293.5
A106: =Гонки!$C$4 -> Жук-трейл # 4 Минское Море | B106: =Гонки!$D$4 -> Трейл 25 | C106: Жук-трейл # 4 Минское Море Трейл 25 | D106: 26.71 | E106: М | F106: =IF(E106="Ж",VLOOKUP(C106,Гонки!$E$2:$P$16,11,FALSE),VLOOKUP(C106,Гонки!$E$2:$P$16,12,FALSE)) -> 81 | G106: Жданович Андрей | H106: 1973 | I106: Zhdanovich Andrej | J106: Жданович Андрей / Zhdanovich Andrej / 1973 | K106: М | L106: 37 | M106: 55.55555556 | N106: 287.12
A107: =Гонки!$C$4 -> Жук-трейл # 4 Минское Море | B107: =Гонки!$D$4 -> Трейл 25 | C107: Жук-трейл # 4 Минское Море Трейл 25 | D107: 26.71 | E107: М | F107: =IF(E107="Ж",VLOOKUP(C107,Гонки!$E$2:$P$16,11,FALSE),VLOOKUP(C107,Гонки!$E$2:$P$16,12,FALSE)) -> 81 | G107: Федорович Николай | H107: 1959 | I107: Fedorovich Nikolaj | J107: Федорович Николай / Fedorovich Nikolaj / 1959 | K107: М | L107: 38 | M107: 54.32098765 | N107: 280.74
A108: =Гонки!$C$4 -> Жук-трейл # 4 Минское Море | B108: =Гонки!$D$4 -> Трейл 25 | C108: Жук-трейл # 4 Минское Море Трейл 25 | D108: 26.71 | E108: М | F108: =IF(E108="Ж",VLOOKUP(C108,Гонки!$E$2:$P$16,11,FALSE),VLOOKUP(C108,Гонки!$E$2:$P$16,12,FALSE)) -> 81 | G108: Коровец Богдан | H108: 1976 | I108: Korovets Bogdan | J108: Коровец Богдан / Korovets Bogdan / 1976 | K108: М | L108: 39 | M108: 53.08641975 | N108: 274.36
A109: =Гонки!$C$4 -> Жук-трейл # 4 Минское Море | B109: =Гонки!$D$4 -> Трейл 25 | C109: Жук-трейл # 4 Минское Море Трейл 25 | D109: 26.71 | E109: М | F109: =IF(E109="Ж",VLOOKUP(C109,Гонки!$E$2:$P$16,11,FALSE),VLOOKUP(C109,Гонки!$E$2:$P$16,12,FALSE)) -> 81 | G109: Заяц Александр | H109: 1978 | I109: Zayats Aleksandr | J109: Заяц Александр / Zayats Aleksandr / 1978 | K109: М | L109: 40 | M109: 51.85185185 | N109: 267.98
A110: =Гонки!$C$4 -> Жук-трейл # 4 Минское Море | B110: =Гонки!$D$4 -> Трейл 25 | C110: Жук-трейл # 4 Минское Море Трейл 25 | D110: 26.71 | E110: М | F110: =IF(E110="Ж",VLOOKUP(C110,Гонки!$E$2:$P$16,11,FALSE),VLOOKUP(C110,Гонки!$E$2:$P$16,12,FALSE)) -> 81 | G110: Славинский Дмитрий | H110: 1986 | I110: Slavinskij Dmitrij | J110: Славинский Дмитрий / Slavinskij Dmitrij / 1986 | K110: М | L110: 41 | M110: 50.61728395 | N110: 261.6
A111: =Гонки!$C$4 -> Жук-трейл # 4 Минское Море | B111: =Гонки!$D$4 -> Трейл 25 | C111: Жук-трейл # 4 Минское Море Трейл 25 | D111: 26.71 | E111: М | F111: =IF(E111="Ж",VLOOKUP(C111,Гонки!$E$2:$P$16,11,FALSE),VLOOKUP(C111,Гонки!$E$2:$P$16,12,FALSE)) -> 81 | G111: Симонов Вадим | H111: 1985 | I111: Simonov Vadim | J111: Симонов Вадим / Simonov Vadim / 1985 | K111: М | L111: 42 | M111: 49.38271605 | N111: 255.22
A112: =Гонки!$C$4 -> Жук-трейл # 4 Минское Море | B112: =Гонки!$D$4 -> Трейл 25 | C112: Жук-трейл # 4 Минское Море Трейл 25 | D112: 26.71 | E112: М | F112: =IF(E112="Ж",VLOOKUP(C112,Гонки!$E$2:$P$16,11,FALSE),VLOOKUP(C112,Гонки!$E$2:$P$16,12,FALSE)) -> 81 | G112: Драгун Борис | H112: 1970 | I112: Dragun Boris | J112: Драгун Борис / Dragun Boris / 1970 | K112: М | L112: 43 | M112: 48.14814815 | N112: 248.84
A113: =Гонки!$C$4 -> Жук-трейл # 4 Минское Море | B113: =Гонки!$D$4 -> Трейл 25 | C113: Жук-трейл # 4 Минское Море Трейл 25 | D113: 26.71 | E113: М | F113: =IF(E113="Ж",VLOOKUP(C113,Гонки!$E$2:$P$16,11,FALSE),VLOOKUP(C113,Гонки!$E$2:$P$16,12,FALSE)) -> 81 | G113: Подрез Ярослав | H113: 1996 | I113: Podrez Yaroslav | J113: Подрез Ярослав / Podrez Yaroslav / 1996 | K113: М | L113: 44 | M113: 46.91358025 | N113: 242.46
A114: =Гонки!$C$4 -> Жук-трейл # 4 Минское Море | B114: =Гонки!$D$4 -> Трейл 25 | C114: Жук-трейл # 4 Минское Море Трейл 25 | D114: 26.71 | E114: М | F114: =IF(E114="Ж",VLOOKUP(C114,Гонки!$E$2:$P$16,11,FALSE),VLOOKUP(C114,Гонки!$E$2:$P$16,12,FALSE)) -> 81 | G114: Кожемякин Владимир | H114: 1970 | I114: Kozhemyakin Vladimir | J114: Кожемякин Владимир / Kozhemyakin Vladimir / 1970 | K114: М | L114: 45 | M114: 45.67901235 | N114: 236.08
A115: =Гонки!$C$4 -> Жук-трейл # 4 Минское Море | B115: =Гонки!$D$4 -> Трейл 25 | C115: Жук-трейл # 4 Минское Море Трейл 25 | D115: 26.71 | E115: М | F115: =IF(E115="Ж",VLOOKUP(C115,Гонки!$E$2:$P$16,11,FALSE),VLOOKUP(C115,Гонки!$E$2:$P$16,12,FALSE)) -> 81 | G115: Лавник Игорь | H115: 1983 | I115: Lavnik Igor | J115: Лавник Игорь / Lavnik Igor / 1983 | K115: М | L115: 46 | M115: 44.44444444 | N115: 229.7
A116: =Гонки!$C$4 -> Жук-трейл # 4 Минское Море | B116: =Гонки!$D$4 -> Трейл 25 | C116: Жук-трейл # 4 Минское Море Трейл 25 | D116: 26.71 | E116: М | F116: =IF(E116="Ж",VLOOKUP(C116,Гонки!$E$2:$P$16,11,FALSE),VLOOKUP(C116,Гонки!$E$2:$P$16,12,FALSE)) -> 81 | G116: Селиванов Алексавндр | H116: 1970 | I116: Selivanov Aleksavndr | J116: Селиванов Алексавндр / Selivanov Aleksavndr / 1970 | K116: М | L116: 47 | M116: 43.20987654 | N116: 223.32
A117: =Гонки!$C$4 -> Жук-трейл # 4 Минское Море | B117: =Гонки!$D$4 -> Трейл 25 | C117: Жук-трейл # 4 Минское Море Трейл 25 | D117: 26.71 | E117: М | F117: =IF(E117="Ж",VLOOKUP(C117,Гонки!$E$2:$P$16,11,FALSE),VLOOKUP(C117,Гонки!$E$2:$P$16,12,FALSE)) -> 81 | G117: Писаренко Андрей | H117: 1957 | I117: Pisarenko Andrej | J117: Писаренко Андрей / Pisarenko Andrej / 1957 | K117: М | L117: 48 | M117: 41.97530864 | N117: 216.94
A118: =Гонки!$C$4 -> Жук-трейл # 4 Минское Море | B118: =Гонки!$D$4 -> Трейл 25 | C118: Жук-трейл # 4 Минское Море Трейл 25 | D118: 26.71 | E118: М | F118: =IF(E118="Ж",VLOOKUP(C118,Гонки!$E$2:$P$16,11,FALSE),VLOOKUP(C118,Гонки!$E$2:$P$16,12,FALSE)) -> 81 | G118: Глушаков Сергей | H118: 1958 | I118: Glushakov Sergej | J118: Глушаков Сергей / Glushakov Sergej / 1958 | K118: М | L118: 49 | M118: 40.74074074 | N118: 210.56
A119: =Гонки!$C$4 -> Жук-трейл # 4 Минское Море | B119: =Гонки!$D$4 -> Трейл 25 | C119: Жук-трейл # 4 Минское Море Трейл 25 | D119: 26.71 | E119: М | F119: =IF(E119="Ж",VLOOKUP(C119,Гонки!$E$2:$P$16,11,FALSE),VLOOKUP(C119,Гонки!$E$2:$P$16,12,FALSE)) -> 81 | G119: Кожан Михаил | H119: 1946 | I119: Kozhan Mihail | J119: Кожан Михаил / Kozhan Mihail / 1946 | K119: М | L119: 50 | M119: 39.50617284 | N119: 204.17
A120: =Гонки!$C$4 -> Жук-трейл # 4 Минское Море | B120: =Гонки!$D$4 -> Трейл 25 | C120: Жук-трейл # 4 Минское Море Трейл 25 | D120: 26.71 | E120: М | F120: =IF(E120="Ж",VLOOKUP(C120,Гонки!$E$2:$P$16,11,FALSE),VLOOKUP(C120,Гонки!$E$2:$P$16,12,FALSE)) -> 81 | G120: Илатовский Дмитрий | H120: 1974 | I120: Ilatovskij Dmitrij | J120: Илатовский Дмитрий / Ilatovskij Dmitrij / 1974 | K120: М | L120: 51 | M120: 38.27160494 | N120: 197.79
A121: =Гонки!$C$4 -> Жук-трейл # 4 Минское Море | B121: =Гонки!$D$4 -> Трейл 25 | C121: Жук-трейл # 4 Минское Море Трейл 25 | D121: 26.71 | E121: М | F121: =IF(E121="Ж",VLOOKUP(C121,Гонки!$E$2:$P$16,11,FALSE),VLOOKUP(C121,Гонки!$E$2:$P$16,12,FALSE)) -> 81 | G121: Дегтярев Сергей | H121: 1983 | I121: Degtyarev Sergej | J121: Дегтярев Сергей / Degtyarev Sergej / 1983 | K121: М | L121: 52 | M121: 37.03703704 | N121: 191.41
A122: =Гонки!$C$4 -> Жук-трейл # 4 Минское Море | B122: =Гонки!$D$4 -> Трейл 25 | C122: Жук-трейл # 4 Минское Море Трейл 25 | D122: 26.71 | E122: М | F122: =IF(E122="Ж",VLOOKUP(C122,Гонки!$E$2:$P$16,11,FALSE),VLOOKUP(C122,Гонки!$E$2:$P$16,12,FALSE)) -> 81 | G122: Брытько Роман | H122: 1995 | I122: Brytko Roman | J122: Брытько Роман / Brytko Roman / 1995 | K122: М | L122: 53 | M122: 35.80246914 | N122: 185.03
A123: =Гонки!$C$4 -> Жук-трейл # 4 Минское Море | B123: =Гонки!$D$4 -> Трейл 25 | C123: Жук-трейл # 4 Минское Море Трейл 25 | D123: 26.71 | E123: М | F123: =IF(E123="Ж",VLOOKUP(C123,Гонки!$E$2:$P$16,11,FALSE),VLOOKUP(C123,Гонки!$E$2:$P$16,12,FALSE)) -> 81 | G123: Кохан Виталий | H123: 1982 | I123: Kohan Vitalij | J123: Кохан Виталий / Kohan Vitalij / 1982 | K123: М | L123: 54 | M123: 34.56790123 | N123: 178.65
A124: =Гонки!$C$4 -> Жук-трейл # 4 Минское Море | B124: =Гонки!$D$4 -> Трейл 25 | C124: Жук-трейл # 4 Минское Море Трейл 25 | D124: 26.71 | E124: М | F124: =IF(E124="Ж",VLOOKUP(C124,Гонки!$E$2:$P$16,11,FALSE),VLOOKUP(C124,Гонки!$E$2:$P$16,12,FALSE)) -> 81 | G124: Шепетько Сергей | H124: 1987 | I124: Shepetko Sergej | J124: Шепетько Сергей / Shepetko Sergej / 1987 | K124: М | L124: 55 | M124: 33.33333333 | N124: 172.27
A125: =Гонки!$C$4 -> Жук-трейл # 4 Минское Море | B125: =Гонки!$D$4 -> Трейл 25 | C125: Жук-трейл # 4 Минское Море Трейл 25 | D125: 26.71 | E125: М | F125: =IF(E125="Ж",VLOOKUP(C125,Гонки!$E$2:$P$16,11,FALSE),VLOOKUP(C125,Гонки!$E$2:$P$16,12,FALSE)) -> 81 | G125: Ермак Алексей | H125: 1984 | I125: Ermak Aleksej | J125: Ермак Алексей / Ermak Aleksej / 1984 | K125: М | L125: 56 | M125: 32.09876543 | N125: 165.89
A126: =Гонки!$C$4 -> Жук-трейл # 4 Минское Море | B126: =Гонки!$D$4 -> Трейл 25 | C126: Жук-трейл # 4 Минское Море Трейл 25 | D126: 26.71 | E126: М | F126: =IF(E126="Ж",VLOOKUP(C126,Гонки!$E$2:$P$16,11,FALSE),VLOOKUP(C126,Гонки!$E$2:$P$16,12,FALSE)) -> 81 | G126: Шило Руслан | H126: 1993 | I126: Shilo Ruslan | J126: Шило Руслан / Shilo Ruslan / 1993 | K126: М | L126: 57 | M126: 30.86419753 | N126: 159.51
A127: =Гонки!$C$4 -> Жук-трейл # 4 Минское Море | B127: =Гонки!$D$4 -> Трейл 25 | C127: Жук-трейл # 4 Минское Море Трейл 25 | D127: 26.71 | E127: М | F127: =IF(E127="Ж",VLOOKUP(C127,Гонки!$E$2:$P$16,11,FALSE),VLOOKUP(C127,Гонки!$E$2:$P$16,12,FALSE)) -> 81 | G127: Шапелевич Максим | H127: 1987 | I127: Shapelevich Maksim | J127: Шапелевич Максим / Shapelevich Maksim / 1987 | K127: М | L127: 58 | M127: 29.62962963 | N127: 153.13
A128: =Гонки!$C$4 -> Жук-трейл # 4 Минское Море | B128: =Гонки!$D$4 -> Трейл 25 | C128: Жук-трейл # 4 Минское Море Трейл 25 | D128: 26.71 | E128: М | F128: =IF(E128="Ж",VLOOKUP(C128,Гонки!$E$2:$P$16,11,FALSE),VLOOKUP(C128,Гонки!$E$2:$P$16,12,FALSE)) -> 81 | G128: Якубовский Игорь | H128: 1984 | I128: Yakubovskij Igor | J128: Якубовский Игорь / Yakubovskij Igor / 1984 | K128: М | L128: 59 | M128: 28.39506173 | N128: 146.75
A129: =Гонки!$C$4 -> Жук-трейл # 4 Минское Море | B129: =Гонки!$D$4 -> Трейл 25 | C129: Жук-трейл # 4 Минское Море Трейл 25 | D129: 26.71 | E129: М | F129: =IF(E129="Ж",VLOOKUP(C129,Гонки!$E$2:$P$16,11,FALSE),VLOOKUP(C129,Гонки!$E$2:$P$16,12,FALSE)) -> 81 | G129: Жучков Алексей | H129: 1985 | I129: Zhuchkov Aleksej | J129: Жучков Алексей / Zhuchkov Aleksej / 1985 | K129: М | L129: 60 | M129: 27.16049383 | N129: 140.37
A130: =Гонки!$C$4 -> Жук-трейл # 4 Минское Море | B130: =Гонки!$D$4 -> Трейл 25 | C130: =CONCATENATE(A130," ",B130) -> Жук-трейл # 4 Минское Море Трейл 25 | D130: =VLOOKUP(C130,Список_гонок,10,FALSE) -> 26.71 | E130: М | F130: =IF(E130="Ж",VLOOKUP(C130,Гонки!$E$2:$P$16,11,FALSE),VLOOKUP(C130,Гонки!$E$2:$P$16,12,FALSE)) -> 81 | G130: Харитонов Иван | H130: 1973 | I130: =Translit(G130) -> Haritonov Ivan | J130: =CONCATENATE(G130," / ",I130," / ",H130) -> Харитонов Иван / Haritonov Ivan / 1973 | K130: =E130 -> М | L130: 61 | M130: =100-((L130-1)/F130)*100 -> 25.92592593 | N130: =ROUND(SQRT(D130)*M130,2) -> 133.99
A131: =Гонки!$C$4 -> Жук-трейл # 4 Минское Море | B131: =Гонки!$D$4 -> Трейл 25 | C131: Жук-трейл # 4 Минское Море Трейл 25 | D131: 26.71 | E131: М | F131: =IF(E131="Ж",VLOOKUP(C131,Гонки!$E$2:$P$16,11,FALSE),VLOOKUP(C131,Гонки!$E$2:$P$16,12,FALSE)) -> 81 | G131: Тюев Даниил | H131: 1977 | I131: Tyuev Daniil | J131: Тюев Даниил / Tyuev Daniil / 1977 | K131: М | L131: 62 | M131: 24.69135802 | N131: 127.61
A132: =Гонки!$C$4 -> Жук-трейл # 4 Минское Море | B132: =Гонки!$D$4 -> Трейл 25 | C132: Жук-трейл # 4 Минское Море Трейл 25 | D132: 26.71 | E132: М | F132: =IF(E132="Ж",VLOOKUP(C132,Гонки!$E$2:$P$16,11,FALSE),VLOOKUP(C132,Гонки!$E$2:$P$16,12,FALSE)) -> 81 | G132: Иолтуховский Владислав | H132: 1971 | I132: Ioltuhovskij Vladislav | J132: Иолтуховский Владислав / Ioltuhovskij Vladislav / 1971 | K132: М | L132: 63 | M132: 23.45679012 | N132: 121.23
A133: =Гонки!$C$4 -> Жук-трейл # 4 Минское Море | B133: =Гонки!$D$4 -> Трейл 25 | C133: Жук-трейл # 4 Минское Море Трейл 25 | D133: 26.71 | E133: М | F133: =IF(E133="Ж",VLOOKUP(C133,Гонки!$E$2:$P$16,11,FALSE),VLOOKUP(C133,Гонки!$E$2:$P$16,12,FALSE)) -> 81 | G133: Херзен Андрей | H133: 1984 | I133: Herzen Andrej | J133: Херзен Андрей / Herzen Andrej / 1984 | K133: М | L133: 64 | M133: 22.22222222 | N133: 114.85
A134: =Гонки!$C$4 -> Жук-трейл # 4 Минское Море | B134: =Гонки!$D$4 -> Трейл 25 | C134: Жук-трейл # 4 Минское Море Трейл 25 | D134: 26.71 | E134: М | F134: =IF(E134="Ж",VLOOKUP(C134,Гонки!$E$2:$P$16,11,FALSE),VLOOKUP(C134,Гонки!$E$2:$P$16,12,FALSE)) -> 81 | G134: Мурашов Владимир | H134: 1983 | I134: Murashov Vladimir | J134: Мурашов Владимир / Murashov Vladimir / 1983 | K134: М | L134: 65 | M134: 20.98765432 | N134: 108.47
A135: =Гонки!$C$4 -> Жук-трейл # 4 Минское Море | B135: =Гонки!$D$4 -> Трейл 25 | C135: Жук-трейл # 4 Минское Море Трейл 25 | D135: 26.71 | E135: М | F135: =IF(E135="Ж",VLOOKUP(C135,Гонки!$E$2:$P$16,11,FALSE),VLOOKUP(C135,Гонки!$E$2:$P$16,12,FALSE)) -> 81 | G135: Михно Борис | H135: 1982 | I135: Mihno Boris | J135: Михно Борис / Mihno Boris / 1982 | K135: М | L135: 66 | M135: 19.75308642 | N135: 102.09
A136: =Гонки!$C$4 -> Жук-трейл # 4 Минское Море | B136: =Гонки!$D$5 -> Трейл 16 | C136: Жук-трейл # 4 Минское Море Трейл 16 | D136: 19.14 | E136: Ж | F136: =IF(E136="Ж",VLOOKUP(C136,Гонки!$E$2:$P$16,11,FALSE),VLOOKUP(C136,Гонки!$E$2:$P$16,12,FALSE)) -> 27 | G136: Милинкевич Елена | H136: 1977 | I136: Milinkevich Elena | J136: Милинкевич Елена / Milinkevich Elena / 1977 | K136: Ж | L136: 1 | M136: 100 | N136: 437.49
A137: =Гонки!$C$4 -> Жук-трейл # 4 Минское Море | B137: =Гонки!$D$5 -> Трейл 16 | C137: Жук-трейл # 4 Минское Море Трейл 16 | D137: 19.14 | E137: Ж | F137: =IF(E137="Ж",VLOOKUP(C137,Гонки!$E$2:$P$16,11,FALSE),VLOOKUP(C137,Гонки!$E$2:$P$16,12,FALSE)) -> 27 | G137: Казакевич Ирина | H137: 1969 | I137: Kazakevich Irina | J137: Казакевич Ирина / Kazakevich Irina / 1969 | K137: Ж | L137: 2 | M137: 96.2962963 | N137: 421.29
A138: =Гонки!$C$4 -> Жук-трейл # 4 Минское Море | B138: =Гонки!$D$5 -> Трейл 16 | C138: Жук-трейл # 4 Минское Море Трейл 16 | D138: 19.14 | E138: Ж | F138: =IF(E138="Ж",VLOOKUP(C138,Гонки!$E$2:$P$16,11,FALSE),VLOOKUP(C138,Гонки!$E$2:$P$16,12,FALSE)) -> 27 | G138: Журавлёва Оксана | H138: 1980 | I138: Zhuravljova Oksana | J138: Журавлёва Оксана / Zhuravljova Oksana / 1980 | K138: Ж | L138: 3 | M138: 92.59259259 | N138: 405.09
A139: =Гонки!$C$4 -> Жук-трейл # 4 Минское Море | B139: =Гонки!$D$5 -> Трейл 16 | C139: Жук-трейл # 4 Минское Море Трейл 16 | D139: 19.14 | E139: Ж | F139: =IF(E139="Ж",VLOOKUP(C139,Гонки!$E$2:$P$16,11,FALSE),VLOOKUP(C139,Гонки!$E$2:$P$16,12,FALSE)) -> 27 | G139: Танасейчук Анна | H139: 1983 | I139: Tanasejchuk Anna | J139: Танасейчук Анна / Tanasejchuk Anna / 1983 | K139: Ж | L139: 4 | M139: 88.88888889 | N139: 388.88
A140: =Гонки!$C$4 -> Жук-трейл # 4 Минское Море | B140: =Гонки!$D$5 -> Трейл 16 | C140: Жук-трейл # 4 Минское Море Трейл 16 | D140: 19.14 | E140: Ж | F140: =IF(E140="Ж",VLOOKUP(C140,Гонки!$E$2:$P$16,11,FALSE),VLOOKUP(C140,Гонки!$E$2:$P$16,12,FALSE)) -> 27 | G140: Пухаева Светлана | H140: 1980 | I140: Puhaeva Svetlana | J140: Пухаева Светлана / Puhaeva Svetlana / 1980 | K140: Ж | L140: 5 | M140: 85.18518519 | N140: 372.68
A141: =Гонки!$C$4 -> Жук-трейл # 4 Минское Море | B141: =Гонки!$D$5 -> Трейл 16 | C141: Жук-трейл # 4 Минское Море Трейл 16 | D141: 19.14 | E141: Ж | F141: =IF(E141="Ж",VLOOKUP(C141,Гонки!$E$2:$P$16,11,FALSE),VLOOKUP(C141,Гонки!$E$2:$P$16,12,FALSE)) -> 27 | G141: Ямбушева Катерина | H141: 1987 | I141: Yambusheva Katerina | J141: Ямбушева Катерина / Yambusheva Katerina / 1987 | K141: Ж | L141: 6 | M141: 81.48148148 | N141: 356.48
A142: =Гонки!$C$4 -> Жук-трейл # 4 Минское Море | B142: =Гонки!$D$5 -> Трейл 16 | C142: Жук-трейл # 4 Минское Море Трейл 16 | D142: 19.14 | E142: Ж | F142: =IF(E142="Ж",VLOOKUP(C142,Гонки!$E$2:$P$16,11,FALSE),VLOOKUP(C142,Гонки!$E$2:$P$16,12,FALSE)) -> 27 | G142: Едомская Вольга | H142: 1987 | I142: Edomskaya Volga | J142: Едомская Вольга / Edomskaya Volga / 1987 | K142: Ж | L142: 7 | M142: 77.77777778 | N142: 340.27
A143: =Гонки!$C$4 -> Жук-трейл # 4 Минское Море | B143: =Гонки!$D$5 -> Трейл 16 | C143: Жук-трейл # 4 Минское Море Трейл 16 | D143: 19.14 | E143: Ж | F143: =IF(E143="Ж",VLOOKUP(C143,Гонки!$E$2:$P$16,11,FALSE),VLOOKUP(C143,Гонки!$E$2:$P$16,12,FALSE)) -> 27 | G143: Сикорская Настя | H143: 1983 | I143: Sikorskaya Nastya | J143: Сикорская Настя / Sikorskaya Nastya / 1983 | K143: Ж | L143: 8 | M143: 74.07407407 | N143: 324.07
A144: =Гонки!$C$4 -> Жук-трейл # 4 Минское Море | B144: =Гонки!$D$5 -> Трейл 16 | C144: Жук-трейл # 4 Минское Море Трейл 16 | D144: 19.14 | E144: Ж | F144: =IF(E144="Ж",VLOOKUP(C144,Гонки!$E$2:$P$16,11,FALSE),VLOOKUP(C144,Гонки!$E$2:$P$16,12,FALSE)) -> 27 | G144: Невмержицкая Анна | H144: 1997 | I144: Nevmerzhitskaya Anna | J144: Невмержицкая Анна / Nevmerzhitskaya Anna / 1997 | K144: Ж | L144: 9 | M144: 70.37037037 | N144: 307.87
A145: =Гонки!$C$4 -> Жук-трейл # 4 Минское Море | B145: =Гонки!$D$5 -> Трейл 16 | C145: Жук-трейл # 4 Минское Море Трейл 16 | D145: 19.14 | E145: Ж | F145: =IF(E145="Ж",VLOOKUP(C145,Гонки!$E$2:$P$16,11,FALSE),VLOOKUP(C145,Гонки!$E$2:$P$16,12,FALSE)) -> 27 | G145: Таранко Марта | H145: 1990 | I145: Taranko Marta | J145: Таранко Марта / Taranko Marta / 1990 | K145: Ж | L145: 10 | M145: 66.66666667 | N145: 291.66
A146: =Гонки!$C$4 -> Жук-трейл # 4 Минское Море | B146: =Гонки!$D$5 -> Трейл 16 | C146: Жук-трейл # 4 Минское Море Трейл 16 | D146: 19.14 | E146: Ж | F146: =IF(E146="Ж",VLOOKUP(C146,Гонки!$E$2:$P$16,11,FALSE),VLOOKUP(C146,Гонки!$E$2:$P$16,12,FALSE)) -> 27 | G146: Григорьева Светлана | H146: 1984 | I146: Grigoreva Svetlana | J146: Григорьева Светлана / Grigoreva Svetlana / 1984 | K146: Ж | L146: 11 | M146: 62.96296296 | N146: 275.46
A147: =Гонки!$C$4 -> Жук-трейл # 4 Минское Море | B147: =Гонки!$D$5 -> Трейл 16 | C147: Жук-трейл # 4 Минское Море Трейл 16 | D147: 19.14 | E147: Ж | F147: =IF(E147="Ж",VLOOKUP(C147,Гонки!$E$2:$P$16,11,FALSE),VLOOKUP(C147,Гонки!$E$2:$P$16,12,FALSE)) -> 27 | G147: Чеботаева Валерия | H147: 1993 | I147: Chebotaeva Valeriya | J147: Чеботаева Валерия / Chebotaeva Valeriya / 1993 | K147: Ж | L147: 12 | M147: 59.25925926 | N147: 259.26
A148: =Гонки!$C$4 -> Жук-трейл # 4 Минское Море | B148: =Гонки!$D$5 -> Трейл 16 | C148: Жук-трейл # 4 Минское Море Трейл 16 | D148: 19.14 | E148: Ж | F148: =IF(E148="Ж",VLOOKUP(C148,Гонки!$E$2:$P$16,11,FALSE),VLOOKUP(C148,Гонки!$E$2:$P$16,12,FALSE)) -> 27 | G148: Малаховская Татьяна | H148: 1989 | I148: Malahovskaya Tatyana | J148: Малаховская Татьяна / Malahovskaya Tatyana / 1989 | K148: Ж | L148: 13 | M148: 55.55555556 | N148: 243.05
A149: =Гонки!$C$4 -> Жук-трейл # 4 Минское Море | B149: =Гонки!$D$5 -> Трейл 16 | C149: Жук-трейл # 4 Минское Море Трейл 16 | D149: 19.14 | E149: Ж | F149: =IF(E149="Ж",VLOOKUP(C149,Гонки!$E$2:$P$16,11,FALSE),VLOOKUP(C149,Гонки!$E$2:$P$16,12,FALSE)) -> 27 | G149: Булеева Наталья | H149: 1969 | I149: Buleeva Natalya | J149: Булеева Наталья / Buleeva Natalya / 1969 | K149: Ж | L149: 14 | M149: 51.85185185 | N149: 226.85
A150: =Гонки!$C$4 -> Жук-трейл # 4 Минское Море | B150: =Гонки!$D$5 -> Трейл 16 | C150: Жук-трейл # 4 Минское Море Трейл 16 | D150: 19.14 | E150: Ж | F150: =IF(E150="Ж",VLOOKUP(C150,Гонки!$E$2:$P$16,11,FALSE),VLOOKUP(C150,Гонки!$E$2:$P$16,12,FALSE)) -> 27 | G150: Липницкая Виктория | H150: 1987 | I150: Lipnitskaya Viktoriya | J150: Липницкая Виктория / Lipnitskaya Viktoriya / 1987 | K150: Ж | L150: 15 | M150: 48.14814815 | N150: 210.64
A151: =Гонки!$C$4 -> Жук-трейл # 4 Минское Море | B151: =Гонки!$D$5 -> Трейл 16 | C151: Жук-трейл # 4 Минское Море Трейл 16 | D151: 19.14 | E151: Ж | F151: =IF(E151="Ж",VLOOKUP(C151,Гонки!$E$2:$P$16,11,FALSE),VLOOKUP(C151,Гонки!$E$2:$P$16,12,FALSE)) -> 27 | G151: Грейд Юлия | H151: 1986 | I151: Grejd Yuliya | J151: Грейд Юлия / Grejd Yuliya / 1986 | K151: Ж | L151: 16 | M151: 44.44444444 | N151: 194.44
A152: =Гонки!$C$4 -> Жук-трейл # 4 Минское Море | B152: =Гонки!$D$5 -> Трейл 16 | C152: Жук-трейл # 4 Минское Море Трейл 16 | D152: 19.14 | E152: Ж | F152: =IF(E152="Ж",VLOOKUP(C152,Гонки!$E$2:$P$16,11,FALSE),VLOOKUP(C152,Гонки!$E$2:$P$16,12,FALSE)) -> 27 | G152: Гринько Анастасия | H152: 1993 | I152: Grinko Anastasiya | J152: Гринько Анастасия / Grinko Anastasiya / 1993 | K152: Ж | L152: 17 | M152: 40.74074074 | N152: 178.24
A153: =Гонки!$C$4 -> Жук-трейл # 4 Минское Море | B153: =Гонки!$D$5 -> Трейл 16 | C153: Жук-трейл # 4 Минское Море Трейл 16 | D153: 19.14 | E153: Ж | F153: =IF(E153="Ж",VLOOKUP(C153,Гонки!$E$2:$P$16,11,FALSE),VLOOKUP(C153,Гонки!$E$2:$P$16,12,FALSE)) -> 27 | G153: Трубкина Инна | H153: 1972 | I153: Trubkina Inna | J153: Трубкина Инна / Trubkina Inna / 1972 | K153: Ж | L153: 18 | M153: 37.03703704 | N153: 162.03
A154: =Гонки!$C$4 -> Жук-трейл # 4 Минское Море | B154: =Гонки!$D$5 -> Трейл 16 | C154: Жук-трейл # 4 Минское Море Трейл 16 | D154: 19.14 | E154: Ж | F154: =IF(E154="Ж",VLOOKUP(C154,Гонки!$E$2:$P$16,11,FALSE),VLOOKUP(C154,Гонки!$E$2:$P$16,12,FALSE)) -> 27 | G154: Сильченко Наталья | I154: Silchenko Natalya | J154: Сильченко Наталья / Silchenko Natalya / | K154: Ж | L154: 19 | M154: 33.33333333 | N154: 145.83
A155: =Гонки!$C$4 -> Жук-трейл # 4 Минское Море | B155: =Гонки!$D$5 -> Трейл 16 | C155: Жук-трейл # 4 Минское Море Трейл 16 | D155: 19.14 | E155: Ж | F155: =IF(E155="Ж",VLOOKUP(C155,Гонки!$E$2:$P$16,11,FALSE),VLOOKUP(C155,Гонки!$E$2:$P$16,12,FALSE)) -> 27 | G155: Мурашкина Галина | H155: 1988 | I155: Murashkina Galina | J155: Мурашкина Галина / Murashkina Galina / 1988 | K155: Ж | L155: 20 | M155: 29.62962963 | N155: 129.63
A156: =Гонки!$C$4 -> Жук-трейл # 4 Минское Море | B156: =Гонки!$D$5 -> Трейл 16 | C156: Жук-трейл # 4 Минское Море Трейл 16 | D156: 19.14 | E156: Ж | F156: =IF(E156="Ж",VLOOKUP(C156,Гонки!$E$2:$P$16,11,FALSE),VLOOKUP(C156,Гонки!$E$2:$P$16,12,FALSE)) -> 27 | G156: Туровец Ольга | H156: 1979 | I156: Turovets Olga | J156: Туровец Ольга / Turovets Olga / 1979 | K156: Ж | L156: 21 | M156: 25.92592593 | N156: 113.42
A157: =Гонки!$C$4 -> Жук-трейл # 4 Минское Море | B157: =Гонки!$D$5 -> Трейл 16 | C157: Жук-трейл # 4 Минское Море Трейл 16 | D157: 19.14 | E157: Ж | F157: =IF(E157="Ж",VLOOKUP(C157,Гонки!$E$2:$P$16,11,FALSE),VLOOKUP(C157,Гонки!$E$2:$P$16,12,FALSE)) -> 27 | G157: Вдовиченко Ирина | H157: 1989 | I157: Vdovichenko Irina | J157: Вдовиченко Ирина / Vdovichenko Irina / 1989 | K157: Ж | L157: 22 | M157: 22.22222222 | N157: 97.22
A158: =Гонки!$C$4 -> Жук-трейл # 4 Минское Море | B158: =Гонки!$D$5 -> Трейл 16 | C158: Жук-трейл # 4 Минское Море Трейл 16 | D158: 19.14 | E158: Ж | F158: =IF(E158="Ж",VLOOKUP(C158,Гонки!$E$2:$P$16,11,FALSE),VLOOKUP(C158,Гонки!$E$2:$P$16,12,FALSE)) -> 27 | G158: Петкевич Лилия | H158: 1990 | I158: Petkevich Liliya | J158: Петкевич Лилия / Petkevich Liliya / 1990 | K158: Ж | L158: 23 | M158: 18.51851852 | N158: 81.02
A159: =Гонки!$C$4 -> Жук-трейл # 4 Минское Море | B159: =Гонки!$D$5 -> Трейл 16 | C159: Жук-трейл # 4 Минское Море Трейл 16 | D159: 19.14 | E159: М | F159: =IF(E159="Ж",VLOOKUP(C159,Гонки!$E$2:$P$16,11,FALSE),VLOOKUP(C159,Гонки!$E$2:$P$16,12,FALSE)) -> 51 | G159: Стасевич Александр | H159: 1987 | I159: Stasevich Aleksandr | J159: Стасевич Александр / Stasevich Aleksandr / 1987 | K159: М | L159: 1 | M159: 100 | N159: 437.49
A160: =Гонки!$C$4 -> Жук-трейл # 4 Минское Море | B160: =Гонки!$D$5 -> Трейл 16 | C160: Жук-трейл # 4 Минское Море Трейл 16 | D160: 19.14 | E160: М | F160: =IF(E160="Ж",VLOOKUP(C160,Гонки!$E$2:$P$16,11,FALSE),VLOOKUP(C160,Гонки!$E$2:$P$16,12,FALSE)) -> 51 | G160: Волков Николай | H160: 1989 | I160: Volkov Nikolaj | J160: Волков Николай / Volkov Nikolaj / 1989 | K160: М | L160: 2 | M160: 98.03921569 | N160: 428.91
A161: =Гонки!$C$4 -> Жук-трейл # 4 Минское Море | B161: =Гонки!$D$5 -> Трейл 16 | C161: Жук-трейл # 4 Минское Море Трейл 16 | D161: 19.14 | E161: М | F161: =IF(E161="Ж",VLOOKUP(C161,Гонки!$E$2:$P$16,11,FALSE),VLOOKUP(C161,Гонки!$E$2:$P$16,12,FALSE)) -> 51 | G161: Захаркин Сергей | H161: 1976 | I161: Zaharkin Sergej | J161: Захаркин Сергей / Zaharkin Sergej / 1976 | K161: М | L161: 3 | M161: 96.07843137 | N161: 420.34
A162: =Гонки!$C$4 -> Жук-трейл # 4 Минское Море | B162: =Гонки!$D$5 -> Трейл 16 | C162: Жук-трейл # 4 Минское Море Трейл 16 | D162: 19.14 | E162: М | F162: =IF(E162="Ж",VLOOKUP(C162,Гонки!$E$2:$P$16,11,FALSE),VLOOKUP(C162,Гонки!$E$2:$P$16,12,FALSE)) -> 51 | G162: Чеботаев Сергей | H162: 1989 | I162: Chebotaev Sergej | J162: Чеботаев Сергей / Chebotaev Sergej / 1989 | K162: М | L162: 4 | M162: 94.11764706 | N162: 411.76
A163: =Гонки!$C$4 -> Жук-трейл # 4 Минское Море | B163: =Гонки!$D$5 -> Трейл 16 | C163: Жук-трейл # 4 Минское Море Трейл 16 | D163: 19.14 | E163: М | F163: =IF(E163="Ж",VLOOKUP(C163,Гонки!$E$2:$P$16,11,FALSE),VLOOKUP(C163,Гонки!$E$2:$P$16,12,FALSE)) -> 51 | G163: Бузо Александр | H163: 1982 | I163: Buzo Aleksandr | J163: Бузо Александр / Buzo Aleksandr / 1982 | K163: М | L163: 5 | M163: 92.15686275 | N163: 403.18
A164: =Гонки!$C$4 -> Жук-трейл # 4 Минское Море | B164: =Гонки!$D$5 -> Трейл 16 | C164: Жук-трейл # 4 Минское Море Трейл 16 | D164: 19.14 | E164: М | F164: =IF(E164="Ж",VLOOKUP(C164,Гонки!$E$2:$P$16,11,FALSE),VLOOKUP(C164,Гонки!$E$2:$P$16,12,FALSE)) -> 51 | G164: Сидоревич Александр | H164: 1985 | I164: Sidorevich Aleksandr | J164: Сидоревич Александр / Sidorevich Aleksandr / 1985 | K164: М | L164: 6 | M164: 90.19607843 | N164: 394.6
A165: =Гонки!$C$4 -> Жук-трейл # 4 Минское Море | B165: =Гонки!$D$5 -> Трейл 16 | C165: Жук-трейл # 4 Минское Море Трейл 16 | D165: 19.14 | E165: М | F165: =IF(E165="Ж",VLOOKUP(C165,Гонки!$E$2:$P$16,11,FALSE),VLOOKUP(C165,Гонки!$E$2:$P$16,12,FALSE)) -> 51 | G165: Михнюк Виктор | H165: 1990 | I165: Mihnyuk Viktor | J165: Михнюк Виктор / Mihnyuk Viktor / 1990 | K165: М | L165: 7 | M165: 88.23529412 | N165: 386.02
A166: =Гонки!$C$4 -> Жук-трейл # 4 Минское Море | B166: =Гонки!$D$5 -> Трейл 16 | C166: Жук-трейл # 4 Минское Море Трейл 16 | D166: 19.14 | E166: М | F166: =IF(E166="Ж",VLOOKUP(C166,Гонки!$E$2:$P$16,11,FALSE),VLOOKUP(C166,Гонки!$E$2:$P$16,12,FALSE)) -> 51 | G166: Крисенков Алексей | H166: 1983 | I166: Krisenkov Aleksej | J166: Крисенков Алексей / Krisenkov Aleksej / 1983 | K166: М | L166: 8 | M166: 86.2745098 | N166: 377.44
A167: =Гонки!$C$4 -> Жук-трейл # 4 Минское Море | B167: =Гонки!$D$5 -> Трейл 16 | C167: Жук-трейл # 4 Минское Море Трейл 16 | D167: 19.14 | E167: М | F167: =IF(E167="Ж",VLOOKUP(C167,Гонки!$E$2:$P$16,11,FALSE),VLOOKUP(C167,Гонки!$E$2:$P$16,12,FALSE)) -> 51 | G167: Нечаев Владимир | H167: 1995 | I167: Nechaev Vladimir | J167: Нечаев Владимир / Nechaev Vladimir / 1995 | K167: М | L167: 9 | M167: 84.31372549 | N167: 368.87
A168: =Гонки!$C$4 -> Жук-трейл # 4 Минское Море | B168: =Гонки!$D$5 -> Трейл 16 | C168: Жук-трейл # 4 Минское Море Трейл 16 | D168: 19.14 | E168: М | F168: =IF(E168="Ж",VLOOKUP(C168,Гонки!$E$2:$P$16,11,FALSE),VLOOKUP(C168,Гонки!$E$2:$P$16,12,FALSE)) -> 51 | G168: Пузаревский Роман | H168: 1994 | I168: Puzarevskij Roman | J168: Пузаревский Роман / Puzarevskij Roman / 1994 | K168: М | L168: 10 | M168: 82.35294118 | N168: 360.29
A169: =Гонки!$C$4 -> Жук-трейл # 4 Минское Море | B169: =Гонки!$D$5 -> Трейл 16 | C169: Жук-трейл # 4 Минское Море Трейл 16 | D169: 19.14 | E169: М | F169: =IF(E169="Ж",VLOOKUP(C169,Гонки!$E$2:$P$16,11,FALSE),VLOOKUP(C169,Гонки!$E$2:$P$16,12,FALSE)) -> 51 | G169: Лойко Сергей | H169: 1985 | I169: Lojko Sergej | J169: Лойко Сергей / Lojko Sergej / 1985 | K169: М | L169: 11 | M169: 80.39215686 | N169: 351.71
A170: =Гонки!$C$4 -> Жук-трейл # 4 Минское Море | B170: =Гонки!$D$5 -> Трейл 16 | C170: Жук-трейл # 4 Минское Море Трейл 16 | D170: 19.14 | E170: М | F170: =IF(E170="Ж",VLOOKUP(C170,Гонки!$E$2:$P$16,11,FALSE),VLOOKUP(C170,Гонки!$E$2:$P$16,12,FALSE)) -> 51 | G170: Зеленко Дмитрий | H170: 1987 | I170: Zelenko Dmitrij | J170: Зеленко Дмитрий / Zelenko Dmitrij / 1987 | K170: М | L170: 12 | M170: 78.43137255 | N170: 343.13
A171: =Гонки!$C$4 -> Жук-трейл # 4 Минское Море | B171: =Гонки!$D$5 -> Трейл 16 | C171: Жук-трейл # 4 Минское Море Трейл 16 | D171: 19.14 | E171: М | F171: =IF(E171="Ж",VLOOKUP(C171,Гонки!$E$2:$P$16,11,FALSE),VLOOKUP(C171,Гонки!$E$2:$P$16,12,FALSE)) -> 51 | G171: Юкевич Александр | H171: 1983 | I171: Yukevich Aleksandr | J171: Юкевич Александр / Yukevich Aleksandr / 1983 | K171: М | L171: 13 | M171: 76.47058824 | N171: 334.55
A172: =Гонки!$C$4 -> Жук-трейл # 4 Минское Море | B172: =Гонки!$D$5 -> Трейл 16 | C172: Жук-трейл # 4 Минское Море Трейл 16 | D172: 19.14 | E172: М | F172: =IF(E172="Ж",VLOOKUP(C172,Гонки!$E$2:$P$16,11,FALSE),VLOOKUP(C172,Гонки!$E$2:$P$16,12,FALSE)) -> 51 | G172: Павленко Юрий | H172: 1983 | I172: Pavlenko Yurij | J172: Павленко Юрий / Pavlenko Yurij / 1983 | K172: М | L172: 14 | M172: 74.50980392 | N172: 325.98
A173: =Гонки!$C$4 -> Жук-трейл # 4 Минское Море | B173: =Гонки!$D$5 -> Трейл 16 | C173: Жук-трейл # 4 Минское Море Трейл 16 | D173: 19.14 | E173: М | F173: =IF(E173="Ж",VLOOKUP(C173,Гонки!$E$2:$P$16,11,FALSE),VLOOKUP(C173,Гонки!$E$2:$P$16,12,FALSE)) -> 51 | G173: Слободько Дмитрий | H173: 1984 | I173: Slobodko Dmitrij | J173: Слободько Дмитрий / Slobodko Dmitrij / 1984 | K173: М | L173: 15 | M173: 72.54901961 | N173: 317.4
A174: =Гонки!$C$4 -> Жук-трейл # 4 Минское Море | B174: =Гонки!$D$5 -> Трейл 16 | C174: Жук-трейл # 4 Минское Море Трейл 16 | D174: 19.14 | E174: М | F174: =IF(E174="Ж",VLOOKUP(C174,Гонки!$E$2:$P$16,11,FALSE),VLOOKUP(C174,Гонки!$E$2:$P$16,12,FALSE)) -> 51 | G174: Бунос Анатолий | H174: 1956 | I174: Bunos Anatolij | J174: Бунос Анатолий / Bunos Anatolij / 1956 | K174: М | L174: 16 | M174: 70.58823529 | N174: 308.82
A175: =Гонки!$C$4 -> Жук-трейл # 4 Минское Море | B175: =Гонки!$D$5 -> Трейл 16 | C175: Жук-трейл # 4 Минское Море Трейл 16 | D175: 19.14 | E175: М | F175: =IF(E175="Ж",VLOOKUP(C175,Гонки!$E$2:$P$16,11,FALSE),VLOOKUP(C175,Гонки!$E$2:$P$16,12,FALSE)) -> 51 | G175: Савич Евгений | H175: 1980 | I175: Savich Evgenij | J175: Савич Евгений / Savich Evgenij / 1980 | K175: М | L175: 17 | M175: 68.62745098 | N175: 300.24
A176: =Гонки!$C$4 -> Жук-трейл # 4 Минское Море | B176: =Гонки!$D$5 -> Трейл 16 | C176: Жук-трейл # 4 Минское Море Трейл 16 | D176: 19.14 | E176: М | F176: =IF(E176="Ж",VLOOKUP(C176,Гонки!$E$2:$P$16,11,FALSE),VLOOKUP(C176,Гонки!$E$2:$P$16,12,FALSE)) -> 51 | G176: Печёнов Георгий | H176: 1975 | I176: Pechjonov Georgij | J176: Печёнов Георгий / Pechjonov Georgij / 1975 | K176: М | L176: 18 | M176: 66.66666667 | N176: 291.66
A177: =Гонки!$C$4 -> Жук-трейл # 4 Минское Море | B177: =Гонки!$D$5 -> Трейл 16 | C177: Жук-трейл # 4 Минское Море Трейл 16 | D177: 19.14 | E177: М | F177: =IF(E177="Ж",VLOOKUP(C177,Гонки!$E$2:$P$16,11,FALSE),VLOOKUP(C177,Гонки!$E$2:$P$16,12,FALSE)) -> 51 | G177: Верещако Павел | H177: 1988 | I177: Vereschako Pavel | J177: Верещако Павел / Vereschako Pavel / 1988 | K177: М | L177: 19 | M177: 64.70588235 | N177: 283.08
A178: =Гонки!$C$4 -> Жук-трейл # 4 Минское Море | B178: =Гонки!$D$5 -> Трейл 16 | C178: Жук-трейл # 4 Минское Море Трейл 16 | D178: 19.14 | E178: М | F178: =IF(E178="Ж",VLOOKUP(C178,Гонки!$E$2:$P$16,11,FALSE),VLOOKUP(C178,Гонки!$E$2:$P$16,12,FALSE)) -> 51 | G178: Искорцев Алексей | H178: 1980 | I178: Iskortsev Aleksej | J178: Искорцев Алексей / Iskortsev Aleksej / 1980 | K178: М | L178: 20 | M178: 62.74509804 | N178: 274.51
A179: =Гонки!$C$4 -> Жук-трейл # 4 Минское Море | B179: =Гонки!$D$5 -> Трейл 16 | C179: Жук-трейл # 4 Минское Море Трейл 16 | D179: 19.14 | E179: М | F179: =IF(E179="Ж",VLOOKUP(C179,Гонки!$E$2:$P$16,11,FALSE),VLOOKUP(C179,Гонки!$E$2:$P$16,12,FALSE)) -> 51 | G179: Игнатович Александр | H179: 1992 | I179: Ignatovich Aleksandr | J179: Игнатович Александр / Ignatovich Aleksandr / 1992 | K179: М | L179: 21 | M179: 60.78431373 | N179: 265.93
A180: =Гонки!$C$4 -> Жук-трейл # 4 Минское Море | B180: =Гонки!$D$5 -> Трейл 16 | C180: Жук-трейл # 4 Минское Море Трейл 16 | D180: 19.14 | E180: М | F180: =IF(E180="Ж",VLOOKUP(C180,Гонки!$E$2:$P$16,11,FALSE),VLOOKUP(C180,Гонки!$E$2:$P$16,12,FALSE)) -> 51 | G180: Ролдугин Михаил | H180: 1987 | I180: Roldugin Mihail | J180: Ролдугин Михаил / Roldugin Mihail / 1987 | K180: М | L180: 22 | M180: 58.82352941 | N180: 257.35
A181: =Гонки!$C$4 -> Жук-трейл # 4 Минское Море | B181: =Гонки!$D$5 -> Трейл 16 | C181: Жук-трейл # 4 Минское Море Трейл 16 | D181: 19.14 | E181: М | F181: =IF(E181="Ж",VLOOKUP(C181,Гонки!$E$2:$P$16,11,FALSE),VLOOKUP(C181,Гонки!$E$2:$P$16,12,FALSE)) -> 51 | G181: Ладеев Дмитрий | H181: 1981 | I181: Ladeev Dmitrij | J181: Ладеев Дмитрий / Ladeev Dmitrij / 1981 | K181: М | L181: 23 | M181: 56.8627451 | N181: 248.77
A182: =Гонки!$C$4 -> Жук-трейл # 4 Минское Море | B182: =Гонки!$D$5 -> Трейл 16 | C182: Жук-трейл # 4 Минское Море Трейл 16 | D182: 19.14 | E182: М | F182: =IF(E182="Ж",VLOOKUP(C182,Гонки!$E$2:$P$16,11,FALSE),VLOOKUP(C182,Гонки!$E$2:$P$16,12,FALSE)) -> 51 | G182: Лукьянов Александр | H182: 1979 | I182: Lukyanov Aleksandr | J182: Лукьянов Александр / Lukyanov Aleksandr / 1979 | K182: М | L182: 24 | M182: 54.90196078 | N182: 240.19
A183: =Гонки!$C$4 -> Жук-трейл # 4 Минское Море | B183: =Гонки!$D$5 -> Трейл 16 | C183: Жук-трейл # 4 Минское Море Трейл 16 | D183: 19.14 | E183: М | F183: =IF(E183="Ж",VLOOKUP(C183,Гонки!$E$2:$P$16,11,FALSE),VLOOKUP(C183,Гонки!$E$2:$P$16,12,FALSE)) -> 51 | G183: Жидович Вадим | H183: 1984 | I183: Zhidovich Vadim | J183: Жидович Вадим / Zhidovich Vadim / 1984 | K183: М | L183: 25 | M183: 52.94117647 | N183: 231.61
A184: =Гонки!$C$4 -> Жук-трейл # 4 Минское Море | B184: =Гонки!$D$5 -> Трейл 16 | C184: Жук-трейл # 4 Минское Море Трейл 16 | D184: 19.14 | E184: М | F184: =IF(E184="Ж",VLOOKUP(C184,Гонки!$E$2:$P$16,11,FALSE),VLOOKUP(C184,Гонки!$E$2:$P$16,12,FALSE)) -> 51 | G184: Ярмончик Игорь | H184: 1985 | I184: Yarmonchik Igor | J184: Ярмончик Игорь / Yarmonchik Igor / 1985 | K184: М | L184: 26 | M184: 50.98039216 | N184: 223.04
A185: =Гонки!$C$4 -> Жук-трейл # 4 Минское Море | B185: =Гонки!$D$5 -> Трейл 16 | C185: Жук-трейл # 4 Минское Море Трейл 16 | D185: 19.14 | E185: М | F185: =IF(E185="Ж",VLOOKUP(C185,Гонки!$E$2:$P$16,11,FALSE),VLOOKUP(C185,Гонки!$E$2:$P$16,12,FALSE)) -> 51 | G185: Скляр Антон | H185: 1983 | I185: Sklyar Anton | J185: Скляр Антон / Sklyar Anton / 1983 | K185: М | L185: 27 | M185: 49.01960784 | N185: 214.46
A186: =Гонки!$C$4 -> Жук-трейл # 4 Минское Море | B186: =Гонки!$D$5 -> Трейл 16 | C186: Жук-трейл # 4 Минское Море Трейл 16 | D186: 19.14 | E186: М | F186: =IF(E186="Ж",VLOOKUP(C186,Гонки!$E$2:$P$16,11,FALSE),VLOOKUP(C186,Гонки!$E$2:$P$16,12,FALSE)) -> 51 | G186: Пугач Вадим | H186: 1985 | I186: Pugach Vadim | J186: Пугач Вадим / Pugach Vadim / 1985 | K186: М | L186: 28 | M186: 47.05882353 | N186: 205.88
A187: =Гонки!$C$4 -> Жук-трейл # 4 Минское Море | B187: =Гонки!$D$5 -> Трейл 16 | C187: Жук-трейл # 4 Минское Море Трейл 16 | D187: 19.14 | E187: М | F187: =IF(E187="Ж",VLOOKUP(C187,Гонки!$E$2:$P$16,11,FALSE),VLOOKUP(C187,Гонки!$E$2:$P$16,12,FALSE)) -> 51 | G187: Зайчук Кирилл | H187: 1990 | I187: Zajchuk Kirill | J187: Зайчук Кирилл / Zajchuk Kirill / 1990 | K187: М | L187: 29 | M187: 45.09803922 | N187: 197.3
A188: =Гонки!$C$4 -> Жук-трейл # 4 Минское Море | B188: =Гонки!$D$5 -> Трейл 16 | C188: Жук-трейл # 4 Минское Море Трейл 16 | D188: 19.14 | E188: М | F188: =IF(E188="Ж",VLOOKUP(C188,Гонки!$E$2:$P$16,11,FALSE),VLOOKUP(C188,Гонки!$E$2:$P$16,12,FALSE)) -> 51 | G188: Хацкевич Дмитрий | H188: 1985 | I188: Hatskevich Dmitrij | J188: Хацкевич Дмитрий / Hatskevich Dmitrij / 1985 | K188: М | L188: 30 | M188: 43.1372549 | N188: 188.72
A189: =Гонки!$C$4 -> Жук-трейл # 4 Минское Море | B189: =Гонки!$D$5 -> Трейл 16 | C189: Жук-трейл # 4 Минское Море Трейл 16 | D189: 19.14 | E189: М | F189: =IF(E189="Ж",VLOOKUP(C189,Гонки!$E$2:$P$16,11,FALSE),VLOOKUP(C189,Гонки!$E$2:$P$16,12,FALSE)) -> 51 | G189: Мертенс Андрей | H189: 1992 | I189: Mertens Andrej | J189: Мертенс Андрей / Mertens Andrej / 1992 | K189: М | L189: 31 | M189: 41.17647059 | N189: 180.14
A190: =Гонки!$C$4 -> Жук-трейл # 4 Минское Море | B190: =Гонки!$D$5 -> Трейл 16 | C190: Жук-трейл # 4 Минское Море Трейл 16 | D190: 19.14 | E190: М | F190: =IF(E190="Ж",VLOOKUP(C190,Гонки!$E$2:$P$16,11,FALSE),VLOOKUP(C190,Гонки!$E$2:$P$16,12,FALSE)) -> 51 | G190: Миканович Антон | H190: 1990 | I190: Mikanovich Anton | J190: Миканович Антон / Mikanovich Anton / 1990 | K190: М | L190: 32 | M190: 39.21568627 | N190: 171.57
A191: =Гонки!$C$4 -> Жук-трейл # 4 Минское Море | B191: =Гонки!$D$5 -> Трейл 16 | C191: Жук-трейл # 4 Минское Море Трейл 16 | D191: 19.14 | E191: М | F191: =IF(E191="Ж",VLOOKUP(C191,Гонки!$E$2:$P$16,11,FALSE),VLOOKUP(C191,Гонки!$E$2:$P$16,12,FALSE)) -> 51 | G191: Панковец Николай | H191: 1979 | I191: Pankovets Nikolaj | J191: Панковец Николай / Pankovets Nikolaj / 1979 | K191: М | L191: 33 | M191: 37.25490196 | N191: 162.99
A192: =Гонки!$C$4 -> Жук-трейл # 4 Минское Море | B192: =Гонки!$D$5 -> Трейл 16 | C192: Жук-трейл # 4 Минское Море Трейл 16 | D192: 19.14 | E192: М | F192: =IF(E192="Ж",VLOOKUP(C192,Гонки!$E$2:$P$16,11,FALSE),VLOOKUP(C192,Гонки!$E$2:$P$16,12,FALSE)) -> 51 | G192: Лопатик Юрий | H192: 1984 | I192: Lopatik Yurij | J192: Лопатик Юрий / Lopatik Yurij / 1984 | K192: М | L192: 34 | M192: 35.29411765 | N192: 154.41
A193: =Гонки!$C$4 -> Жук-трейл # 4 Минское Море | B193: =Гонки!$D$5 -> Трейл 16 | C193: Жук-трейл # 4 Минское Море Трейл 16 | D193: 19.14 | E193: М | F193: =IF(E193="Ж",VLOOKUP(C193,Гонки!$E$2:$P$16,11,FALSE),VLOOKUP(C193,Гонки!$E$2:$P$16,12,FALSE)) -> 51 | G193: Олин Денис | H193: 1976 | I193: Olin Denis | J193: Олин Денис / Olin Denis / 1976 | K193: М | L193: 35 | M193: 33.33333333 | N193: 145.83
A194: =Гонки!$C$4 -> Жук-трейл # 4 Минское Море | B194: =Гонки!$D$5 -> Трейл 16 | C194: =CONCATENATE(A194," ",B194) -> Жук-трейл # 4 Минское Море Трейл 16 | D194: =VLOOKUP(C194,Список_гонок,10,FALSE) -> 19.14 | E194: М | F194: =IF(E194="Ж",VLOOKUP(C194,Гонки!$E$2:$P$16,11,FALSE),VLOOKUP(C194,Гонки!$E$2:$P$16,12,FALSE)) -> 51 | G194: Стельмах Юрий | H194: 1982 | I194: =Translit(G194) -> Stelmah Yurij | J194: =CONCATENATE(G194," / ",I194," / ",H194) -> Стельмах Юрий / Stelmah Yurij / 1982 | K194: =E194 -> М | L194: 36 | M194: =100-((L194-1)/F194)*100 -> 31.37254902 | N194: =ROUND(SQRT(D194)*M194,2) -> 137.25
A195: =Гонки!$C$4 -> Жук-трейл # 4 Минское Море | B195: =Гонки!$D$5 -> Трейл 16 | C195: Жук-трейл # 4 Минское Море Трейл 16 | D195: 19.14 | E195: М | F195: =IF(E195="Ж",VLOOKUP(C195,Гонки!$E$2:$P$16,11,FALSE),VLOOKUP(C195,Гонки!$E$2:$P$16,12,FALSE)) -> 51 | G195: Никрашевич Сергей | H195: 1985 | I195: Nikrashevich Sergej | J195: Никрашевич Сергей / Nikrashevich Sergej / 1985 | K195: М | L195: 37 | M195: 29.41176471 | N195: 128.67
A196: =Гонки!$C$4 -> Жук-трейл # 4 Минское Море | B196: =Гонки!$D$5 -> Трейл 16 | C196: Жук-трейл # 4 Минское Море Трейл 16 | D196: 19.14 | E196: М | F196: =IF(E196="Ж",VLOOKUP(C196,Гонки!$E$2:$P$16,11,FALSE),VLOOKUP(C196,Гонки!$E$2:$P$16,12,FALSE)) -> 51 | G196: Казарин Дмитрий | H196: 1994 | I196: Kazarin Dmitrij | J196: Казарин Дмитрий / Kazarin Dmitrij / 1994 | K196: М | L196: 38 | M196: 27.45098039 | N196: 120.1
A197: =Гонки!$C$4 -> Жук-трейл # 4 Минское Море | B197: =Гонки!$D$5 -> Трейл 16 | C197: Жук-трейл # 4 Минское Море Трейл 16 | D197: 19.14 | E197: М | F197: =IF(E197="Ж",VLOOKUP(C197,Гонки!$E$2:$P$16,11,FALSE),VLOOKUP(C197,Гонки!$E$2:$P$16,12,FALSE)) -> 51 | G197: Коляда Юрий | H197: 1980 | I197: Kolyada Yurij | J197: Коляда Юрий / Kolyada Yurij / 1980 | K197: М | L197: 39 | M197: 25.49019608 | N197: 111.52
A198: =Гонки!$C$4 -> Жук-трейл # 4 Минское Море | B198: =Гонки!$D$5 -> Трейл 16 | C198: Жук-трейл # 4 Минское Море Трейл 16 | D198: 19.14 | E198: М | F198: =IF(E198="Ж",VLOOKUP(C198,Гонки!$E$2:$P$16,11,FALSE),VLOOKUP(C198,Гонки!$E$2:$P$16,12,FALSE)) -> 51 | G198: Горшков Игорь | H198: 1977 | I198: Gorshkov Igor | J198: Горшков Игорь / Gorshkov Igor / 1977 | K198: М | L198: 40 | M198: 23.52941176 | N198: 102.94
A199: =Гонки!$C$4 -> Жук-трейл # 4 Минское Море | B199: =Гонки!$D$5 -> Трейл 16 | C199: Жук-трейл # 4 Минское Море Трейл 16 | D199: 19.14 | E199: М | F199: =IF(E199="Ж",VLOOKUP(C199,Гонки!$E$2:$P$16,11,FALSE),VLOOKUP(C199,Гонки!$E$2:$P$16,12,FALSE)) -> 51 | G199: Герасевич Максим | I199: Gerasevich Maksim | J199: Герасевич Максим / Gerasevich Maksim / | K199: М | L199: 41 | M199: 21.56862745 | N199: 94.36
A200: =Гонки!$C$4 -> Жук-трейл # 4 Минское Море | B200: =Гонки!$D$5 -> Трейл 16 | C200: Жук-трейл # 4 Минское Море Трейл 16 | D200: 19.14 | E200: М | F200: =IF(E200="Ж",VLOOKUP(C200,Гонки!$E$2:$P$16,11,FALSE),VLOOKUP(C200,Гонки!$E$2:$P$16,12,FALSE)) -> 51 | G200: Аржаников Евгений | H200: 1976 | I200: Arzhanikov Evgenij | J200: Аржаников Евгений / Arzhanikov Evgenij / 1976 | K200: М | L200: 42 | M200: 19.60784314 | N200: 85.78
... 1010 more rows

Sheet Личн рез-ты алфавит
A3: Сумма по полю личный рез-т соревнований | B3: Названия столбцов
A4: Названия строк | B4: "Налибоки 2018" Трейл 100 | C4: "Налибоки 2018" Трейл 21 | D4: "Налибоки 2018" Трейл 42 | E4: Жук-трейл # 4 Минское Море Трейл 16 | F4: Жук-трейл # 4 Минское Море Трейл 25 | G4: Жук-трейл # 4 Минское Море Трейл 8 | H4: Жук-трейл # 5 Крево Трейл 10 | I4: Жук-трейл # 5 Крево Трейл 21 | J4: Жук-трейл # 5 Крево Трейл 45 | K4: Жук-трейл # 5 Крево Трейл 70 | L4: Жук-трейл #6 Купалье Трейл 10 | M4: Жук-трейл #6 Купалье Трейл 21 | N4: Жук-трейл #6 Купалье Трейл 5 | O4: Жук-трейл #7 Раубичи Трейл 10 | P4: Жук-трейл #7 Раубичи Трейл 21 | Q4: Жук-трейл #7 Раубичи Трейл 5 | R4: Жук-трейл #8 Дорога замков Трейл 10 | S4: Жук-трейл #8 Дорога замков Трейл 21 | T4: Жук-трейл #8 Дорога замков Трейл 42 | U4: Жук-трейл #8 Дорога замков Ультра-Трейл 100 | V4: Зима минус 100 Трейл 100 | W4: Зима минус 100 Трейл 50 | X4: Общий итог
A5: Ben Bilel / Ben Bilel / 1981 | J5: 71.43 | X5: 71.43
A6: McTavish John / McTavish John / 1987 | P6: 303.51 | S6: 474.57 | X6: 778.08
A7: Tan Burak / Tan Burak / 1983 | R7: 192.48 | X7: 192.48
A8: Абаркина Елена / Abarkina Elena / 1983 | N8: 110.65 | R8: 29.67 | X8: 140.32
A9: Агаев Руслан / Agaev Ruslan / 1995 | L9: 137.67 | X9: 137.67
A10: Адаменко Виталий / Adamenko Vitalij / 1985 | H10: 26.61 | Q10: 18.86 | X10: 45.47
A11: Адамович Ирина / Adamovich Irina / 1973 | C11: 425.25 | P11: 283.28 | X11: 708.53
A12: Акулич Владимир / Akulich Vladimir / 1986 | R12: 279.1 | X12: 279.1
A13: Александрова Дарья / Aleksandrova Darya / 1995 | R13: 296.74 | X13: 296.74
A14: Александронец Ганна / Aleksandronets Ganna / 1991 | S14: 68.14 | X14: 68.14
A15: Алексеев Алексей / Alekseev Aleksej / 1980 | F15: 331.78 | J15: 500 | M15: 225.4 | S15: 401.56 | X15: 1458.74
A16: Ананич Александр / Ananich Aleksandr / 1979 | W16: 108.37 | X16: 108.37
A17: Анацко Леонид / Anatsko Leonid / 1961 | K17: 298.16 | M17: 14.39 | X17: 312.55
A18: Андуро Сергей / Anduro Sergej / 1986 | I18: 311.28 | X18: 311.28
A19: Аноничев Александр / Anonichev Aleksandr / 1982 | M19: 369.28 | X19: 369.28
A20: Антонова Мария / Antonova Mariya / 1980 | R20: 118.7 | X20: 118.7
A21: Арабиенко Татьяна / Arabienko Tatyana / 1986 | D21: 609 | X21: 609
A22: Аржаников Евгений / Arzhanikov Evgenij / 1976 | C22: 272.09 | E22: 85.78 | I22: 161.01 | X22: 518.88
A23: Арзамасов Илья / Arzamasov Ilya / 1987 | T23: 637.16 | X23: 637.16
A24: Арловская Кристина / Arlovskaya Kristina / 1989 | I24: 230.42 | W24: 263.17 | X24: 493.59
A25: Артихович Александр / Artihovich Aleksandr / 1972 | L25: 71.39 | X25: 71.39
A26: Асаевич Роман / Asaevich Roman / 1964 | D26: 351.08 | X26: 351.08
A27: Астапов Владимир / Astapov Vladimir / 1977 | B27: 375.97 | T27: 483.36 | X27: 859.33
A28: Афанасьев Иван / Afanasev Ivan / 1979 | L28: 305.94 | X28: 305.94
A29: Бабицкий Кирилл / Babitskij Kirill / 1998 | W29: 628.52 | X29: 628.52
A30: Бабич Виталий / Babich Vitalij / 1981 | C30: 351.09 | X30: 351.09
A31: Бажанский Виталий / Bazhanskij Vitalij / 1982 | M31: 182.24 | X31: 182.24
A32: Балашов Никита / Balashov Nikita / 1983 | C32: 412.53 | O32: 272.73 | X32: 685.26
A33: Барановский Александр / Baranovskij Aleksandr / 1984 | O33: 300 | X33: 300
A34: Барановский Алексей / Baranovskij Aleksej / 1981 | M34: 158.26 | T34: 461.39 | X34: 619.65
A35: Баронов Роман / Baronov Roman / 1993 | H35: 306.03 | L35: 224.36 | X35: 530.39
A36: Барсумян Артур / Barsumyan Artur / 1992 | G36: 189.05 | X36: 189.05
A37: Бахтизин Павел / Bahtizin Pavel / 1980 | S37: 255.54 | X37: 255.54
A38: Бачища Николай / Bachischa Nikolaj / 1988 | W38: 238.4 | X38: 238.4
A39: Беганский Иван / Beganskij Ivan / 1984 | T39: 219.71 | X39: 219.71
A40: Бегун Егор / Begun Egor / 1988 | H40: 232.85 | R40: 250.23 | X40: 483.08
A41: Белая Юлия / Belaya Yuliya / 1988 | D41: 664.36 | F41: 375.87 | M41: 274.05 | S41: 136.29 | X41: 1450.57
A42: Белинская Галина / Belinskaya Galina / 1980 | W42: 684.25 | X42: 684.25
A43: Белицкий Денис / Belitskij Denis / 1990 | C43: 105.33 | M43: 43.16 | X43: 148.49
A44: Белоусов Александр / Belousov Aleksandr / 1981 | L44: 132.57 | X44: 132.57
A45: Белоцкая Елена / Belotskaya Elena / 1987 | G45: 116.01 | X45: 116.01
A46: Бердников Дмитрий / Berdnikov Dmitrij / | L46: 66.29 | X46: 66.29
A47: Березин Артём / Berezin Artjom / 1986 | M47: 148.67 | P47: 182.11 | X47: 330.78
A48: Березовский Андрей / Berezovskij Andrej / 1973 | F48: 465.77 | M48: 297.34 | P48: 376.36 | W48: 693.54 | X48: 1833.01
A49: Бизюк Игорь / Bizyuk Igor / 1956 | D49: 157.99 | X49: 157.99
A50: Богачев Борис / Bogachev Boris / 1991 | P50: 437.06 | X50: 437.06
A51: Богдевич Анатолий / Bogdevich Anatolij / 1999 | L51: 234.55 | X51: 234.55
A52: Бойко Евгений / Bojko Evgenij / 1985 | N52: 165.79 | X52: 165.79
A53: Бокунович Дмитрий / Bokunovich Dmitrij / 1982 | S53: 392.43 | X53: 392.43
A54: Бокша Сергей / Boksha Sergej / 1988 | F54: 319.02 | P54: 133.55 | X54: 452.57
A55: Бондарь Юлия / Bondar Yuliya / 1993 | C55: 275.16 | X55: 275.16
A56: Борисевич Александр / Borisevich Aleksandr / 1989 | C56: 228.21 | M56: 124.69 | X56: 352.9
A57: Борисевич Анастасия / Borisevich Anastasiya / 1985 | C57: 137.58 | J57: 714.28 | O57: 63.16 | X57: 915.02
A58: Борисевич Леонид / Borisevich Leonid / 1969 | F58: 401.97 | M58: 292.55 | V58: 896.09 | X58: 1590.61
A59: Бортник Александр / Bortnik Aleksandr / 1994 | H59: 139.71 | X59: 139.71
A60: Бортняк Екатерина / Bortnyak Ekaterina / 1994 | Q60: 13.8 | X60: 13.8
A61: Брагин Иван / Bragin Ivan / 1986 | J61: 714.28 | X61: 714.28
A62: Бритов Максим / Britov Maksim / 1974 | S62: 82.14 | X62: 82.14
A63: Брытько Роман / Brytko Roman / 1995 | F63: 185.03 | H63: 292.72 | L63: 285.55 | Q63: 254.56 | X63: 1017.86
A64: Бубликов Александр / Bublikov Aleksandr / 1986 | S64: 36.51 | X64: 36.51
A65: Будник Владимир / Budnik Vladimir / 1987 | C65: 184.32 | X65: 184.32
A66: Будрик Юлия / Budrik Yuliya / 1995 | L66: 239.79 | X66: 239.79
A67: Будыхина Татьяна / Budyhina Tatyana / 1985 | C67: 37.52 | X67: 37.52
A68: Бузо Александр / Buzo Aleksandr / 1982 | E68: 403.18 | I68: 450.83 | M68: 235 | O68: 309.09 | S68: 483.7 | X68: 1881.8
A69: Булеева Наталья / Buleeva Natalya / 1969 | E69: 226.85 | X69: 226.85
A70: Бунос Анатолий / Bunos Anatolij / 1956 | E70: 308.82 | X70: 308.82
A71: Бурак Анжелика / Burak Anzhelika / 1994 | N71: 144.7 | R71: 128.59 | X71: 273.29
A72: Бутурля Александр / Buturlya Aleksandr / 1981 | N72: 113.98 | X72: 113.98
A73: Буховецкий Андрей / Buhovetskij Andrej / 1987 | C73: 307.2 | X73: 307.2
A74: Бушковский Максим / Bushkovskij Maksim / 1989 | M74: 95.92 | X74: 95.92
A75: Быков Владимир / Bykov Vladimir / 1977 | W75: 346.77 | X75: 346.77
A76: Бычинский Владислав / Bychinskij Vladislav / 1992 | H76: 206.24 | X76: 206.24
A77: Бычков Александр / Bychkov Aleksandr / 1990 | C77: 96.55 | X77: 96.55
A78: Вагин Андрей / Vagin Andrej / 1989 | D78: 719.72 | F78: 491.3 | I78: 461.56 | X78: 1672.58
A79: Вайтешонок Сергей / Vajteshonok Sergej / 1981 | G79: 120.3 | X79: 120.3
A80: Варава Андрей / Varava Andrej / 1994 | O80: 172.73 | X80: 172.73
A81: Варданян Кристина / Vardanyan Kristina / 1981 | C81: 350.21 | X81: 350.21
A82: Василевич Валентина / Vasilevich Valentina / 1998 | F82: 187.93 | M82: 27.4 | X82: 215.33
A83: Васильченко Вадим / Vasilchenko Vadim / 1987 | O83: 63.64 | S83: 146.02 | X83: 209.66
A84: Вдовиченко Ирина / Vdovichenko Irina / 1989 | E84: 97.22 | I84: 98.75 | X84: 195.97
A85: Величко Павел / Velichko Pavel / 1982 | B85: 520.58 | M85: 258.97 | X85: 779.55
A86: Веремейчик Елена / Veremejchik Elena / 1986 | L86: 248.06 | P86: 226.62 | S86: 442.93 | X86: 917.61
A87: Веремейчик Юрий / Veremejchik Yurij / 1979 | F87: 293.5 | I87: 279.08 | X87: 572.58
A88: Веремич Юрий / Veremich Yurij / 1979 | O88: 263.64 | X88: 263.64
A89: Верещако Павел / Vereschako Pavel / 1988 | E89: 283.08 | X89: 283.08
A90: Ветохин Иван / Vetohin Ivan / 1987 | N90: 41.45 | X90: 41.45
A91: Ветохина София / Vetohina Sofiya / 2010 | N91: 34.05 | X91: 34.05
A92: Винтергрин Андрей / Vintergrin Andrej / 1981 | C92: 245.76 | X92: 245.76
A93: Вирский Константин / Virskij Konstantin / 1977 | H93: 199.59 | X93: 199.59
A94: Вирт Олег / Virt Oleg / 1980 | C94: 78.99 | X94: 78.99
A95: Войтович Татьяна / Vojtovich Tatyana / 1986 | H95: 143.29 | O95: 126.32 | R95: 79.13 | X95: 348.74
A96: Волков Алексей / Volkov Aleksej / | S96: 100.39 | X96: 100.39
A97: Волков Николай / Volkov Nikolaj / 1989 | E97: 428.91 | P97: 352.08 | X97: 780.99
A98: Володько Андрей / Volodko Andrej / 1986 | D98: 526.63 | G98: 206.24 | I98: 300.55 | M98: 230.2 | S98: 456.32 | X98: 1719.94
A99: Володько Владимир / Volodko Vladimir / 2001 | N99: 186.52 | X99: 186.52
A100: Волостных Сергей / Volostnyh Sergej / 1989 | D100: 210.65 | X100: 210.65
A101: Воробьёв Дмитрий / Vorobjov Dmitrij / 1988 | H101: 153.02 | N101: 176.16 | X101: 329.18
A102: Выборный Александр / Vybornyj Aleksandr / 1985 | I102: 354.22 | M102: 306.93 | X102: 661.15
A103: Выробов Дмитрий / Vyrobov Dmitrij / 1988 | G103: 34.37 | X103: 34.37
A104: Гайдуков Александр / Gajdukov Aleksandr / 1989 | H104: 299.38 | Q104: 235.7 | X104: 535.08
A105: Галец Константин / Galets Konstantin / 1988 | Q105: 94.28 | X105: 94.28
A106: Галка Дмитрий / Galka Dmitrij / 1988 | C106: 289.65 | X106: 289.65
A107: Гамидов Нариман / Gamidov Nariman / 1972 | H107: 179.63 | X107: 179.63
A108: Гамидов Тимур / Gamidov Timur / 1996 | H108: 345.95 | X108: 345.95
A109: Гандзюк Всеволод / Gandzyuk Vsevolod / | O109: 72.73 | X109: 72.73
A110: Гарбар Екатерина / Garbar Ekaterina / 1989 | L110: 140.57 | X110: 140.57
A111: Гарбуз Алла / Garbuz Alla / 1969 | H111: 28.66 | N111: 25.54 | Q111: 41.39 | X111: 95.59
A112: Генсировский Павел / Gensirovskij Pavel / 1979 | B112: 1041.15 | X112: 1041.15
A113: Геранин Дмитрий / Geranin Dmitrij / | N113: 207.24 | X113: 207.24
A114: Герасевич Максим / Gerasevich Maksim / | E114: 94.36 | N114: 103.62 | X114: 197.98
A115: Герасимук Дмитрий / Gerasimuk Dmitrij / 1993 | Q115: 245.13 | X115: 245.13
A116: Герасимук Юрий / Gerasimuk Yurij / 1992 | C116: 315.98 | I116: 150.28 | U116: 789.68 | X116: 1255.94
A117: Гецман Мила / Getsman Mila / 1988 | Q117: 241.45 | X117: 241.45
A118: Гидлевский Дмитрий / Gidlevskij Dmitrij / 1986 | G118: 309.35 | H118: 359.25 | X118: 668.6
A119: Гилевич Диана / Gilevich Diana / 1993 | F119: 516.82 | L119: 305.94 | R119: 356.09 | X119: 1178.85
A120: Гилевич Кристина / Gilevich Kristina / 1994 | F120: 469.83 | R120: 336.31 | X120: 806.14
A121: Гладкова Анна / Gladkova Anna / 1985 | G121: 103.12 | N121: 51.07 | X121: 154.19
A122: Гладковский Владислав / Gladkovskij Vladislav / 1990 | C122: 359.86 | X122: 359.86
A123: Глушаков Сергей / Glushakov Sergej / 1958 | F123: 210.56 | X123: 210.56
A124: Глушков Александр / Glushkov Aleksandr / 1980 | B124: 780.86 | K124: 417.43 | M124: 191.83 | X124: 1390.12
A125: Голубева Елена / Golubeva Elena / 1987 | F125: 328.88 | M125: 164.43 | X125: 493.31
A126: Гомон Сергей / Gomon Sergej / 1990 | B126: 202.45 | X126: 202.45
A127: Гончарик Наталья / Goncharik Natalya / 1991 | H127: 71.65 | X127: 71.65
A128: Гончаров Николай / Goncharov Nikolaj / 1984 | Q128: 179.13 | X128: 179.13
A129: Горбач Максим / Gorbach Maksim / 1983 | T129: 527.3 | X129: 527.3
A130: Горбиков Кирилл / Gorbikov Kirill / 1982 | S130: 18.25 | X130: 18.25
A131: Горевцова Евгения / Gorevtsova Evgeniya / 1989 | O131: 168.42 | X131: 168.42
A132: Горелик Юрий / Gorelik Yurij / 1987 | R132: 182.86 | X132: 182.86
A133: Городко Игорь / Gorodko Igor / 1970 | C133: 87.77 | X133: 87.77
A134: Горшков Игорь / Gorshkov Igor / 1977 | E134: 102.94 | S134: 127.77 | X134: 230.71
A135: Гославская Анастасия / Goslavskaya Anastasiya / 1991 | Q135: 137.97 | X135: 137.97
A136: Грабовец Павел / Grabovets Pavel / 1981 | B136: 954.39 | X136: 954.39
A137: Гракович Ольга / Grakovich Olga / 1994 | L137: 90.96 | X137: 90.96
A138: Гребенчук Максим / Grebenchuk Maksim / 1989 | R138: 153.98 | X138: 153.98
A139: Грейд Юлия / Grejd Yuliya / 1986 | E139: 194.44 | I139: 164.59 | X139: 359.03
A140: Грек Илья / Grek Ilya / 1992 | I140: 236.15 | R140: 288.72 | W140: 455.14 | X140: 980.01
A141: Греков Игорь / Grekov Igor / 1970 | D141: 263.31 | S141: 136.9 | X141: 400.21
A142: Гречишкин Алексей / Grechishkin Aleksej / 1983 | L142: 20.4 | X142: 20.4
A143: Гриб Екатерина / Grib Ekaterina / 1981 | G143: 219.13 | H143: 243.6 | X143: 462.73
A144: Григорович Руслан / Grigorovich Ruslan / 1987 | G144: 232.02 | X144: 232.02
A145: Григорьев Никита / Grigorev Nikita / 1990 | P145: 509.9 | X145: 509.9
A146: Григорьева Светлана / Grigoreva Svetlana / 1984 | E146: 275.46 | L146: 157.1 | X146: 432.56
A147: Гринько Анастасия / Grinko Anastasiya / 1993 | E147: 178.24 | H147: 257.93 | X147: 436.17
A148: Грицевич Виталий / Gritsevich Vitalij / 1987 | H148: 146.36 | X148: 146.36
A149: Грицук Татьяна / Gritsuk Tatyana / 1973 | D149: 276.82 | X149: 276.82
A150: Грошева Елена / Grosheva Elena / 1994 | R150: 59.35 | X150: 59.35
A151: Грушевская Виктория / Grushevskaya Viktoriya / 1992 | Q151: 151.77 | X151: 151.77
A152: Гумбар Илья / Gumbar Ilya / 1989 | M152: 263.77 | X152: 263.77
A153: Гурская Татьяна / Gurskaya Tatyana / 1980 | B153: 1041.15 | X153: 1041.15
A154: Гусаревич Денис / Gusarevich Denis / 1983 | B154: 578.42 | X154: 578.42
A155: Давыдов Андрей / Davydov Andrej / 1980 | S155: 328.55 | X155: 328.55
A156: Дальниченко Юрий / Dalnichenko Yurij / 1985 | P156: 412.78 | X156: 412.78
A157: Даник Даниил / Danik Daniil / 1982 | L157: 91.78 | X157: 91.78
A158: Даниленко Инесса / Danilenko Inessa / 1984 | Q158: 165.57 | X158: 165.57
A159: Данілаў Віктар / Danіlau Vіktar / 1987 | Q159: 103.71 | X159: 103.71
A160: Данченко Глеб / Danchenko Gleb / 1986 | H160: 286.07 | X160: 286.07
A161: Дашин Михаил / Dashin Mihail / 1986 | N161: 217.6 | Q161: 207.42 | R161: 221.35 | X161: 646.37
A162: Дашкевич Павел / Dashkevich Pavel / 1999 | H162: 86.49 | L162: 112.18 | X162: 198.67
A163: Дашкевич Сергей / Dashkevich Sergej / 1996 | H163: 39.92 | X163: 39.92
A164: Дегтярев Сергей / Degtyarev Sergej / 1983 | D164: 649.51 | F164: 191.41 | P164: 169.97 | X164: 1010.89
A165: Дедков Никита / Dedkov Nikita / 1998 | L165: 198.86 | X165: 198.86
A166: Делендик Максим / Delendik Maksim / 1992 | L166: 152.97 | X166: 152.97
A167: Делендик Надежда / Delendik Nadezhda / 1987 | C167: 437.76 | M167: 328.86 | X167: 766.62
A168: Дельянов Одиссей / Delyanov Odissej / 1979 | F168: 357.31 | X168: 357.31
A169: Демчук Ростислав / Demchuk Rostislav / 1978 | S169: 282.92 | X169: 282.92
A170: Диксон Катерина / Dikson Katerina / 1993 | T170: 486.5 | X170: 486.5
A171: Домбровский Евгений / Dombrovskij Evgenij / 1987 | H171: 279.42 | X171: 279.42
A172: Драгун Алина / Dragun Alina / 1993 | C172: 412.75 | X172: 412.75
A173: Драгун Борис / Dragun Boris / 1970 | F173: 248.84 | K173: 298.16 | X173: 547
A174: Дрофа Виталий / Drofa Vitalij / 1970 | O174: 290.91 | X174: 290.91
A175: Дубков Алексей / Dubkov Aleksej / 1984 | T175: 373.51 | X175: 373.51
A176: Дубровский Виктор / Dubrovskij Viktor / 1961 | D176: 105.33 | X176: 105.33
A177: Дубровский Евгений / Dubrovskij Evgenij / 1984 | D177: 87.77 | X177: 87.77
A178: Дунаева Мария / Dunaeva Mariya / 1983 | H178: 171.95 | X178: 171.95
A179: Дундуков Андрей / Dundukov Andrej / 1985 | G179: 128.9 | L179: 96.88 | X179: 225.78
A180: Дурейко Анна / Durejko Anna / 1987 | C180: 12.51 | X180: 12.51
A181: Дышлевич Сергей / Dyshlevich Sergej / 1982 | L181: 188.66 | X181: 188.66
A182: Евсюченя Александр / Evsyuchenya Aleksandr / 1991 | I182: 332.75 | P182: 400.64 | W182: 736.89 | X182: 1470.28
A183: Егорова Дарина / Egorova Darina / 1994 | O183: 231.58 | X183: 231.58
A184: Едомская Вольга / Edomskaya Volga / 1987 | E184: 340.27 | H184: 329.57 | N184: 212.79 | O184: 294.74 | R184: 316.52 | X184: 1493.89
A185: Ермак Алексей / Ermak Aleksej / 1984 | F185: 165.89 | X185: 165.89
A186: Ермохин Максим / Ermohin Maksim / 1975 | F186: 433.87 | I186: 386.42 | X186: 820.29
A187: Жданович Александра / Zhdanovich Aleksandra / 1985 | G187: 232.02 | L187: 206.72 | Q187: 269.05 | X187: 707.79
A188: Жданович Андрей / Zhdanovich Andrej / 1973 | F188: 287.12 | X188: 287.12
A189: Жданович Максим / Zhdanovich Maksim / 1987 | D189: 561.73 | X189: 561.73
A190: Жевняк Андрей / Zhevnyak Andrej / 1986 | L190: 193.76 | X190: 193.76
A191: Жидович Вадим / Zhidovich Vadim / 1984 | D191: 491.52 | E191: 231.61 | I191: 214.68 | M191: 76.73 | X191: 1014.54
A192: Жила Анастасия / Zhila Anastasiya / 1994 | K192: 298.16 | L192: 223.25 | T192: 291.9 | X192: 813.31
A193: Жук Лия / Zhuk Liya / 1980 | C193: 75.04 | X193: 75.04
A194: Жукова Елизавета / Zhukova Elizaveta / 1989 | Q194: 248.35 | X194: 248.35
A195: Жукович Артем / Zhukovich Artem / 1988 | H195: 93.14 | Q195: 47.14 | R195: 115.49 | X195: 255.77
A196: Журавлёв Андрей / Zhuravljov Andrej / 1978 | F196: 484.91 | M196: 359.69 | O196: 381.82 | X196: 1226.42
A197: Журавлёва Оксана / Zhuravljova Oksana / 1980 | E197: 405.09 | L197: 264.6 | Q197: 275.94 | X197: 945.63
A198: Жучин Алексей / Zhuchin Aleksej / 1983 | G198: 283.57 | H198: 332.64 | X198: 616.21
A199: Жучина Катерина / Zhuchina Katerina / 1986 | G199: 154.68 | H199: 128.96 | X199: 283.64
A200: Жучков Алексей / Zhuchkov Aleksej / 1985 | D200: 193.1 | F200: 140.37 | J200: 178.57 | M200: 38.37 | T200: 109.86 | X200: 660.27
A201: Забабуро Сергей / Zababuro Sergej / 1978 | M201: 273.36 | X201: 273.36
A202: Забелова Юлия / Zabelova Yuliya / 1978 | C202: 87.55 | X202: 87.55
... 573 more rows

Sheet 4 лучших
A3: Сумма по полю личный рез-т соревнований | B3: Названия столбцов | Y3: Лучшие результаты
A4: Названия строк | B4: "Налибоки 2018" Трейл 100 | C4: "Налибоки 2018" Трейл 21 | D4: "Налибоки 2018" Трейл 42 | E4: Жук-трейл # 4 Минское Море Трейл 16 | F4: Жук-трейл # 4 Минское Море Трейл 25 | G4: Жук-трейл # 4 Минское Море Трейл 8 | H4: Жук-трейл # 5 Крево Трейл 10 | I4: Жук-трейл # 5 Крево Трейл 21 | J4: Жук-трейл # 5 Крево Трейл 45 | K4: Жук-трейл # 5 Крево Трейл 70 | L4: Жук-трейл #6 Купалье Трейл 10 | M4: Жук-трейл #6 Купалье Трейл 21 | N4: Жук-трейл #6 Купалье Трейл 5 | O4: Жук-трейл #7 Раубичи Трейл 10 | P4: Жук-трейл #7 Раубичи Трейл 21 | Q4: Жук-трейл #7 Раубичи Трейл 5 | R4: Жук-трейл #8 Дорога замков Трейл 10 | S4: Жук-трейл #8 Дорога замков Трейл 21 | T4: Жук-трейл #8 Дорога замков Трейл 42 | U4: Жук-трейл #8 Дорога замков Ультра-Трейл 100 | V4: Зима минус 100 Трейл 100 | W4: Зима минус 100 Трейл 50 | X4: Общий итог | AC4: Сумма баллов (принятая к зачёту)
A5: Ben Bilel / Ben Bilel / 1981 | J5: 71.43 | X5: 71.43 | Y5: =LARGE(B5:W5,1) -> 71.43 | Z5: =IF(COUNT(B5:W5)=1,0,LARGE(B5:W5,2)) -> 0 | AA5: =IF(COUNT(B5:W5)<3,0,LARGE(B5:W5,3)) -> 0 | AB5: =IF(COUNT(B5:W5)<4,0,LARGE(B5:W5,4)) -> 0 | AC5: =SUM(Y5:AB5) -> 71.43 | AD5: =AC5-Y5 -> 0 | AE5: =VLOOKUP(A5,'личные рез-ты по гонкам списком'!$J$1:$N$1210,2,FALSE) -> М | AF5: =COUNT(B5:W5) -> 1
A6: McTavish John / McTavish John / 1987 | P6: 303.51 | S6: 474.57 | X6: 778.08 | Y6: =LARGE(B6:W6,1) -> 474.57 | Z6: =IF(COUNT(B6:W6)=1,0,LARGE(B6:W6,2)) -> 303.51 | AA6: =IF(COUNT(B6:W6)<3,0,LARGE(B6:W6,3)) -> 0 | AB6: =IF(COUNT(B6:W6)<4,0,LARGE(B6:W6,4)) -> 0 | AC6: =SUM(Y6:AB6) -> 778.08 | AD6: =AC6-Y6 -> 303.51 | AE6: =VLOOKUP(A6,'личные рез-ты по гонкам списком'!$J$1:$N$1210,2,FALSE) -> М | AF6: =COUNT(B6:W6) -> 2
A7: Tan Burak / Tan Burak / 1983 | R7: 192.48 | X7: 192.48 | Y7: 192.48 | Z7: 0 | AA7: 0 | AB7: 0 | AC7: 192.48 | AD7: 0 | AE7: =VLOOKUP(A7,'личные рез-ты по гонкам списком'!$J$1:$N$1210,2,FALSE) -> М | AF7: 1
A8: Абаркина Елена / Abarkina Elena / 1983 | N8: 110.65 | R8: 29.67 | X8: 140.32 | Y8: 110.65 | Z8: 29.67 | AA8: 0 | AB8: 0 | AC8: 140.32 | AD8: 29.67 | AE8: =VLOOKUP(A8,'личные рез-ты по гонкам списком'!$J$1:$N$1210,2,FALSE) -> Ж | AF8: 2
A9: Агаев Руслан / Agaev Ruslan / 1995 | L9: 137.67 | X9: 137.67 | Y9: 137.67 | Z9: 0 | AA9: 0 | AB9: 0 | AC9: 137.67 | AD9: 0 | AE9: =VLOOKUP(A9,'личные рез-ты по гонкам списком'!$J$1:$N$1210,2,FALSE) -> М | AF9: 1
A10: Адаменко Виталий / Adamenko Vitalij / 1985 | H10: 26.61 | Q10: 18.86 | X10: 45.47 | Y10: 26.61 | Z10: 18.86 | AA10: 0 | AB10: 0 | AC10: 45.47 | AD10: 18.86 | AE10: =VLOOKUP(A10,'личные рез-ты по гонкам списком'!$J$1:$N$1210,2,FALSE) -> М | AF10: 2
A11: Адамович Ирина / Adamovich Irina / 1973 | C11: 425.25 | P11: 283.28 | X11: 708.53 | Y11: 425.25 | Z11: 283.28 | AA11: 0 | AB11: 0 | AC11: 708.53 | AD11: 283.28 | AE11: =VLOOKUP(A11,'личные рез-ты по гонкам списком'!$J$1:$N$1210,2,FALSE) -> Ж | AF11: 2
A12: Акулич Владимир / Akulich Vladimir / 1986 | R12: 279.1 | X12: 279.1 | Y12: 279.1 | Z12: 0 | AA12: 0 | AB12: 0 | AC12: 279.1 | AD12: 0 | AE12: =VLOOKUP(A12,'личные рез-ты по гонкам списком'!$J$1:$N$1210,2,FALSE) -> М | AF12: 1
A13: Александрова Дарья / Aleksandrova Darya / 1995 | R13: 296.74 | X13: 296.74 | Y13: 296.74 | Z13: 0 | AA13: 0 | AB13: 0 | AC13: 296.74 | AD13: 0 | AE13: =VLOOKUP(A13,'личные рез-ты по гонкам списком'!$J$1:$N$1210,2,FALSE) -> Ж | AF13: 1
A14: Александронец Ганна / Aleksandronets Ganna / 1991 | S14: 68.14 | X14: 68.14 | Y14: 68.14 | Z14: 0 | AA14: 0 | AB14: 0 | AC14: 68.14 | AD14: 0 | AE14: =VLOOKUP(A14,'личные рез-ты по гонкам списком'!$J$1:$N$1210,2,FALSE) -> Ж | AF14: 1
A15: Алексеев Алексей / Alekseev Aleksej / 1980 | F15: 331.78 | J15: 500 | M15: 225.4 | S15: 401.56 | X15: 1458.74 | Y15: 500 | Z15: 401.56 | AA15: 331.78 | AB15: 225.4 | AC15: 1458.74 | AD15: 958.74 | AE15: =VLOOKUP(A15,'личные рез-ты по гонкам списком'!$J$1:$N$1210,2,FALSE) -> М | AF15: 4
A16: Ананич Александр / Ananich Aleksandr / 1979 | W16: 108.37 | X16: 108.37 | Y16: 108.37 | Z16: 0 | AA16: 0 | AB16: 0 | AC16: 108.37 | AD16: 0 | AE16: =VLOOKUP(A16,'личные рез-ты по гонкам списком'!$J$1:$N$1210,2,FALSE) -> М | AF16: 1
A17: Анацко Леонид / Anatsko Leonid / 1961 | K17: 298.16 | M17: 14.39 | X17: 312.55 | Y17: 298.16 | Z17: 14.39 | AA17: 0 | AB17: 0 | AC17: 312.55 | AD17: 14.39 | AE17: =VLOOKUP(A17,'личные рез-ты по гонкам списком'!$J$1:$N$1210,2,FALSE) -> М | AF17: 2
A18: Андуро Сергей / Anduro Sergej / 1986 | I18: 311.28 | X18: 311.28 | Y18: 311.28 | Z18: 0 | AA18: 0 | AB18: 0 | AC18: 311.28 | AD18: 0 | AE18: =VLOOKUP(A18,'личные рез-ты по гонкам списком'!$J$1:$N$1210,2,FALSE) -> М | AF18: 1
A19: Аноничев Александр / Anonichev Aleksandr / 1982 | M19: 369.28 | X19: 369.28 | Y19: 369.28 | Z19: 0 | AA19: 0 | AB19: 0 | AC19: 369.28 | AD19: 0 | AE19: =VLOOKUP(A19,'личные рез-ты по гонкам списком'!$J$1:$N$1210,2,FALSE) -> М | AF19: 1
A20: Антонова Мария / Antonova Mariya / 1980 | R20: 118.7 | X20: 118.7 | Y20: 118.7 | Z20: 0 | AA20: 0 | AB20: 0 | AC20: 118.7 | AD20: 0 | AE20: =VLOOKUP(A20,'личные рез-ты по гонкам списком'!$J$1:$N$1210,2,FALSE) -> Ж | AF20: 1
A21: Арабиенко Татьяна / Arabienko Tatyana / 1986 | D21: 609 | X21: 609 | Y21: 609 | Z21: 0 | AA21: 0 | AB21: 0 | AC21: 609 | AD21: 0 | AE21: =VLOOKUP(A21,'личные рез-ты по гонкам списком'!$J$1:$N$1210,2,FALSE) -> Ж | AF21: 1
A22: Аржаников Евгений / Arzhanikov Evgenij / 1976 | C22: 272.09 | E22: 85.78 | I22: 161.01 | X22: 518.88 | Y22: 272.09 | Z22: 161.01 | AA22: 85.78 | AB22: 0 | AC22: 518.88 | AD22: 246.79 | AE22: =VLOOKUP(A22,'личные рез-ты по гонкам списком'!$J$1:$N$1210,2,FALSE) -> М | AF22: 3
A23: Арзамасов Илья / Arzamasov Ilya / 1987 | T23: 637.16 | X23: 637.16 | Y23: 637.16 | Z23: 0 | AA23: 0 | AB23: 0 | AC23: 637.16 | AD23: 0 | AE23: =VLOOKUP(A23,'личные рез-ты по гонкам списком'!$J$1:$N$1210,2,FALSE) -> М | AF23: 1
A24: Арловская Кристина / Arlovskaya Kristina / 1989 | I24: 230.42 | W24: 263.17 | X24: 493.59 | Y24: 263.17 | Z24: 230.42 | AA24: 0 | AB24: 0 | AC24: 493.59 | AD24: 230.42 | AE24: =VLOOKUP(A24,'личные рез-ты по гонкам списком'!$J$1:$N$1210,2,FALSE) -> Ж | AF24: 2
A25: Артихович Александр / Artihovich Aleksandr / 1972 | L25: 71.39 | X25: 71.39 | Y25: 71.39 | Z25: 0 | AA25: 0 | AB25: 0 | AC25: 71.39 | AD25: 0 | AE25: =VLOOKUP(A25,'личные рез-ты по гонкам списком'!$J$1:$N$1210,2,FALSE) -> М | AF25: 1
A26: Асаевич Роман / Asaevich Roman / 1964 | D26: 351.08 | X26: 351.08 | Y26: 351.08 | Z26: 0 | AA26: 0 | AB26: 0 | AC26: 351.08 | AD26: 0 | AE26: =VLOOKUP(A26,'личные рез-ты по гонкам списком'!$J$1:$N$1210,2,FALSE) -> М | AF26: 1
A27: Астапов Владимир / Astapov Vladimir / 1977 | B27: 375.97 | T27: 483.36 | X27: 859.33 | Y27: 483.36 | Z27: 375.97 | AA27: 0 | AB27: 0 | AC27: 859.33 | AD27: 375.97 | AE27: =VLOOKUP(A27,'личные рез-ты по гонкам списком'!$J$1:$N$1210,2,FALSE) -> М | AF27: 2
A28: Афанасьев Иван / Afanasev Ivan / 1979 | L28: 305.94 | X28: 305.94 | Y28: 305.94 | Z28: 0 | AA28: 0 | AB28: 0 | AC28: 305.94 | AD28: 0 | AE28: =VLOOKUP(A28,'личные рез-ты по гонкам списком'!$J$1:$N$1210,2,FALSE) -> М | AF28: 1
A29: Бабицкий Кирилл / Babitskij Kirill / 1998 | W29: 628.52 | X29: 628.52 | Y29: 628.52 | Z29: 0 | AA29: 0 | AB29: 0 | AC29: 628.52 | AD29: 0 | AE29: =VLOOKUP(A29,'личные рез-ты по гонкам списком'!$J$1:$N$1210,2,FALSE) -> М | AF29: 1
A30: Бабич Виталий / Babich Vitalij / 1981 | C30: 351.09 | X30: 351.09 | Y30: 351.09 | Z30: 0 | AA30: 0 | AB30: 0 | AC30: 351.09 | AD30: 0 | AE30: =VLOOKUP(A30,'личные рез-ты по гонкам списком'!$J$1:$N$1210,2,FALSE) -> М | AF30: 1
A31: Бажанский Виталий / Bazhanskij Vitalij / 1982 | M31: 182.24 | X31: 182.24 | Y31: 182.24 | Z31: 0 | AA31: 0 | AB31: 0 | AC31: 182.24 | AD31: 0 | AE31: =VLOOKUP(A31,'личные рез-ты по гонкам списком'!$J$1:$N$1210,2,FALSE) -> М | AF31: 1
A32: Балашов Никита / Balashov Nikita / 1983 | C32: 412.53 | O32: 272.73 | X32: 685.26 | Y32: 412.53 | Z32: 272.73 | AA32: 0 | AB32: 0 | AC32: 685.26 | AD32: 272.73 | AE32: =VLOOKUP(A32,'личные рез-ты по гонкам списком'!$J$1:$N$1210,2,FALSE) -> М | AF32: 2
A33: Барановский Александр / Baranovskij Aleksandr / 1984 | O33: 300 | X33: 300 | Y33: 300 | Z33: 0 | AA33: 0 | AB33: 0 | AC33: 300 | AD33: 0 | AE33: =VLOOKUP(A33,'личные рез-ты по гонкам списком'!$J$1:$N$1210,2,FALSE) -> М | AF33: 1
A34: Барановский Алексей / Baranovskij Aleksej / 1981 | M34: 158.26 | T34: 461.39 | X34: 619.65 | Y34: 461.39 | Z34: 158.26 | AA34: 0 | AB34: 0 | AC34: 619.65 | AD34: 158.26 | AE34: =VLOOKUP(A34,'личные рез-ты по гонкам списком'!$J$1:$N$1210,2,FALSE) -> М | AF34: 2
A35: Баронов Роман / Baronov Roman / 1993 | H35: 306.03 | L35: 224.36 | X35: 530.39 | Y35: 306.03 | Z35: 224.36 | AA35: 0 | AB35: 0 | AC35: 530.39 | AD35: 224.36 | AE35: =VLOOKUP(A35,'личные рез-ты по гонкам списком'!$J$1:$N$1210,2,FALSE) -> М | AF35: 2
A36: Барсумян Артур / Barsumyan Artur / 1992 | G36: 189.05 | X36: 189.05 | Y36: 189.05 | Z36: 0 | AA36: 0 | AB36: 0 | AC36: 189.05 | AD36: 0 | AE36: =VLOOKUP(A36,'личные рез-ты по гонкам списком'!$J$1:$N$1210,2,FALSE) -> М | AF36: 1
A37: Бахтизин Павел / Bahtizin Pavel / 1980 | S37: 255.54 | X37: 255.54 | Y37: 255.54 | Z37: 0 | AA37: 0 | AB37: 0 | AC37: 255.54 | AD37: 0 | AE37: =VLOOKUP(A37,'личные рез-ты по гонкам списком'!$J$1:$N$1210,2,FALSE) -> М | AF37: 1
A38: Бачища Николай / Bachischa Nikolaj / 1988 | W38: 238.4 | X38: 238.4 | Y38: 238.4 | Z38: 0 | AA38: 0 | AB38: 0 | AC38: 238.4 | AD38: 0 | AE38: =VLOOKUP(A38,'личные рез-ты по гонкам списком'!$J$1:$N$1210,2,FALSE) -> М | AF38: 1
A39: Беганский Иван / Beganskij Ivan / 1984 | T39: 219.71 | X39: 219.71 | Y39: 219.71 | Z39: 0 | AA39: 0 | AB39: 0 | AC39: 219.71 | AD39: 0 | AE39: =VLOOKUP(A39,'личные рез-ты по гонкам списком'!$J$1:$N$1210,2,FALSE) -> М | AF39: 1
A40: Бегун Егор / Begun Egor / 1988 | H40: 232.85 | R40: 250.23 | X40: 483.08 | Y40: 250.23 | Z40: 232.85 | AA40: 0 | AB40: 0 | AC40: 483.08 | AD40: 232.85 | AE40: =VLOOKUP(A40,'личные рез-ты по гонкам списком'!$J$1:$N$1210,2,FALSE) -> М | AF40: 2
A41: Белая Юлия / Belaya Yuliya / 1988 | D41: 664.36 | F41: 375.87 | M41: 274.05 | S41: 136.29 | X41: 1450.57 | Y41: 664.36 | Z41: 375.87 | AA41: 274.05 | AB41: 136.29 | AC41: 1450.57 | AD41: 786.21 | AE41: =VLOOKUP(A41,'личные рез-ты по гонкам списком'!$J$1:$N$1210,2,FALSE) -> Ж | AF41: 4
A42: Белинская Галина / Belinskaya Galina / 1980 | W42: 684.25 | X42: 684.25 | Y42: 684.25 | Z42: 0 | AA42: 0 | AB42: 0 | AC42: 684.25 | AD42: 0 | AE42: =VLOOKUP(A42,'личные рез-ты по гонкам списком'!$J$1:$N$1210,2,FALSE) -> Ж | AF42: 1
A43: Белицкий Денис / Belitskij Denis / 1990 | C43: 105.33 | M43: 43.16 | X43: 148.49 | Y43: 105.33 | Z43: 43.16 | AA43: 0 | AB43: 0 | AC43: 148.49 | AD43: 43.16 | AE43: =VLOOKUP(A43,'личные рез-ты по гонкам списком'!$J$1:$N$1210,2,FALSE) -> М | AF43: 2
A44: Белоусов Александр / Belousov Aleksandr / 1981 | L44: 132.57 | X44: 132.57 | Y44: 132.57 | Z44: 0 | AA44: 0 | AB44: 0 | AC44: 132.57 | AD44: 0 | AE44: =VLOOKUP(A44,'личные рез-ты по гонкам списком'!$J$1:$N$1210,2,FALSE) -> М | AF44: 1
A45: Белоцкая Елена / Belotskaya Elena / 1987 | G45: 116.01 | X45: 116.01 | Y45: 116.01 | Z45: 0 | AA45: 0 | AB45: 0 | AC45: 116.01 | AD45: 0 | AE45: =VLOOKUP(A45,'личные рез-ты по гонкам списком'!$J$1:$N$1210,2,FALSE) -> Ж | AF45: 1
A46: Бердников Дмитрий / Berdnikov Dmitrij / | L46: 66.29 | X46: 66.29 | Y46: 66.29 | Z46: 0 | AA46: 0 | AB46: 0 | AC46: 66.29 | AD46: 0 | AE46: =VLOOKUP(A46,'личные рез-ты по гонкам списком'!$J$1:$N$1210,2,FALSE) -> М | AF46: 1
A47: Березин Артём / Berezin Artjom / 1986 | M47: 148.67 | P47: 182.11 | X47: 330.78 | Y47: 182.11 | Z47: 148.67 | AA47: 0 | AB47: 0 | AC47: 330.78 | AD47: 148.67 | AE47: =VLOOKUP(A47,'личные рез-ты по гонкам списком'!$J$1:$N$1210,2,FALSE) -> М | AF47: 2
A48: Березовский Андрей / Berezovskij Andrej / 1973 | F48: 465.77 | M48: 297.34 | P48: 376.36 | W48: 693.54 | X48: 1833.01 | Y48: 693.54 | Z48: 465.77 | AA48: 376.36 | AB48: 297.34 | AC48: 1833.01 | AD48: 1139.47 | AE48: =VLOOKUP(A48,'личные рез-ты по гонкам списком'!$J$1:$N$1210,2,FALSE) -> М | AF48: 4
A49: Бизюк Игорь / Bizyuk Igor / 1956 | D49: 157.99 | X49: 157.99 | Y49: 157.99 | Z49: 0 | AA49: 0 | AB49: 0 | AC49: 157.99 | AD49: 0 | AE49: =VLOOKUP(A49,'личные рез-ты по гонкам списком'!$J$1:$N$1210,2,FALSE) -> М | AF49: 1
A50: Богачев Борис / Bogachev Boris / 1991 | P50: 437.06 | X50: 437.06 | Y50: 437.06 | Z50: 0 | AA50: 0 | AB50: 0 | AC50: 437.06 | AD50: 0 | AE50: =VLOOKUP(A50,'личные рез-ты по гонкам списком'!$J$1:$N$1210,2,FALSE) -> М | AF50: 1
A51: Богдевич Анатолий / Bogdevich Anatolij / 1999 | L51: 234.55 | X51: 234.55 | Y51: 234.55 | Z51: 0 | AA51: 0 | AB51: 0 | AC51: 234.55 | AD51: 0 | AE51: =VLOOKUP(A51,'личные рез-ты по гонкам списком'!$J$1:$N$1210,2,FALSE) -> М | AF51: 1
A52: Бойко Евгений / Bojko Evgenij / 1985 | N52: 165.79 | X52: 165.79 | Y52: 165.79 | Z52: 0 | AA52: 0 | AB52: 0 | AC52: 165.79 | AD52: 0 | AE52: =VLOOKUP(A52,'личные рез-ты по гонкам списком'!$J$1:$N$1210,2,FALSE) -> М | AF52: 1
A53: Бокунович Дмитрий / Bokunovich Dmitrij / 1982 | S53: 392.43 | X53: 392.43 | Y53: 392.43 | Z53: 0 | AA53: 0 | AB53: 0 | AC53: 392.43 | AD53: 0 | AE53: =VLOOKUP(A53,'личные рез-ты по гонкам списком'!$J$1:$N$1210,2,FALSE) -> М | AF53: 1
A54: Бокша Сергей / Boksha Sergej / 1988 | F54: 319.02 | P54: 133.55 | X54: 452.57 | Y54: 319.02 | Z54: 133.55 | AA54: 0 | AB54: 0 | AC54: 452.57 | AD54: 133.55 | AE54: =VLOOKUP(A54,'личные рез-ты по гонкам списком'!$J$1:$N$1210,2,FALSE) -> М | AF54: 2
A55: Бондарь Юлия / Bondar Yuliya / 1993 | C55: 275.16 | X55: 275.16 | Y55: 275.16 | Z55: 0 | AA55: 0 | AB55: 0 | AC55: 275.16 | AD55: 0 | AE55: =VLOOKUP(A55,'личные рез-ты по гонкам списком'!$J$1:$N$1210,2,FALSE) -> Ж | AF55: 1
A56: Борисевич Александр / Borisevich Aleksandr / 1989 | C56: 228.21 | M56: 124.69 | X56: 352.9 | Y56: 228.21 | Z56: 124.69 | AA56: 0 | AB56: 0 | AC56: 352.9 | AD56: 124.69 | AE56: =VLOOKUP(A56,'личные рез-ты по гонкам списком'!$J$1:$N$1210,2,FALSE) -> М | AF56: 2
A57: Борисевич Анастасия / Borisevich Anastasiya / 1985 | C57: 137.58 | J57: 714.28 | O57: 63.16 | X57: 915.02 | Y57: 714.28 | Z57: 137.58 | AA57: 63.16 | AB57: 0 | AC57: 915.02 | AD57: 200.74 | AE57: =VLOOKUP(A57,'личные рез-ты по гонкам списком'!$J$1:$N$1210,2,FALSE) -> Ж | AF57: 3
A58: Борисевич Леонид / Borisevich Leonid / 1969 | F58: 401.97 | M58: 292.55 | V58: 896.09 | X58: 1590.61 | Y58: 896.09 | Z58: 401.97 | AA58: 292.55 | AB58: 0 | AC58: 1590.61 | AD58: 694.52 | AE58: =VLOOKUP(A58,'личные рез-ты по гонкам списком'!$J$1:$N$1210,2,FALSE) -> М | AF58: 3
A59: Бортник Александр / Bortnik Aleksandr / 1994 | H59: 139.71 | X59: 139.71 | Y59: 139.71 | Z59: 0 | AA59: 0 | AB59: 0 | AC59: 139.71 | AD59: 0 | AE59: =VLOOKUP(A59,'личные рез-ты по гонкам списком'!$J$1:$N$1210,2,FALSE) -> М | AF59: 1
A60: Бортняк Екатерина / Bortnyak Ekaterina / 1994 | Q60: 13.8 | X60: 13.8 | Y60: 13.8 | Z60: 0 | AA60: 0 | AB60: 0 | AC60: 13.8 | AD60: 0 | AE60: =VLOOKUP(A60,'личные рез-ты по гонкам списком'!$J$1:$N$1210,2,FALSE) -> Ж | AF60: 1
A61: Брагин Иван / Bragin Ivan / 1986 | J61: 714.28 | X61: 714.28 | Y61: 714.28 | Z61: 0 | AA61: 0 | AB61: 0 | AC61: 714.28 | AD61: 0 | AE61: =VLOOKUP(A61,'личные рез-ты по гонкам списком'!$J$1:$N$1210,2,FALSE) -> М | AF61: 1
A62: Бритов Максим / Britov Maksim / 1974 | S62: 82.14 | X62: 82.14 | Y62: 82.14 | Z62: 0 | AA62: 0 | AB62: 0 | AC62: 82.14 | AD62: 0 | AE62: =VLOOKUP(A62,'личные рез-ты по гонкам списком'!$J$1:$N$1210,2,FALSE) -> М | AF62: 1
A63: Брытько Роман / Brytko Roman / 1995 | F63: 185.03 | H63: 292.72 | L63: 285.55 | Q63: 254.56 | X63: 1017.86 | Y63: 292.72 | Z63: 285.55 | AA63: 254.56 | AB63: 185.03 | AC63: 1017.86 | AD63: 725.14 | AE63: =VLOOKUP(A63,'личные рез-ты по гонкам списком'!$J$1:$N$1210,2,FALSE) -> М | AF63: 4
A64: Бубликов Александр / Bublikov Aleksandr / 1986 | S64: 36.51 | X64: 36.51 | Y64: 36.51 | Z64: 0 | AA64: 0 | AB64: 0 | AC64: 36.51 | AD64: 0 | AE64: =VLOOKUP(A64,'личные рез-ты по гонкам списком'!$J$1:$N$1210,2,FALSE) -> М | AF64: 1
A65: Будник Владимир / Budnik Vladimir / 1987 | C65: 184.32 | X65: 184.32 | Y65: 184.32 | Z65: 0 | AA65: 0 | AB65: 0 | AC65: 184.32 | AD65: 0 | AE65: =VLOOKUP(A65,'личные рез-ты по гонкам списком'!$J$1:$N$1210,2,FALSE) -> М | AF65: 1
A66: Будрик Юлия / Budrik Yuliya / 1995 | L66: 239.79 | X66: 239.79 | Y66: 239.79 | Z66: 0 | AA66: 0 | AB66: 0 | AC66: 239.79 | AD66: 0 | AE66: =VLOOKUP(A66,'личные рез-ты по гонкам списком'!$J$1:$N$1210,2,FALSE) -> Ж | AF66: 1
A67: Будыхина Татьяна / Budyhina Tatyana / 1985 | C67: 37.52 | X67: 37.52 | Y67: 37.52 | Z67: 0 | AA67: 0 | AB67: 0 | AC67: 37.52 | AD67: 0 | AE67: =VLOOKUP(A67,'личные рез-ты по гонкам списком'!$J$1:$N$1210,2,FALSE) -> Ж | AF67: 1
A68: Бузо Александр / Buzo Aleksandr / 1982 | E68: 403.18 | I68: 450.83 | M68: 235 | O68: 309.09 | S68: 483.7 | X68: 1881.8 | Y68: 483.7 | Z68: 450.83 | AA68: 403.18 | AB68: 309.09 | AC68: 1646.8 | AD68: 1163.1 | AE68: =VLOOKUP(A68,'личные рез-ты по гонкам списком'!$J$1:$N$1210,2,FALSE) -> М | AF68: 5
A69: Булеева Наталья / Buleeva Natalya / 1969 | E69: 226.85 | X69: 226.85 | Y69: 226.85 | Z69: 0 | AA69: 0 | AB69: 0 | AC69: 226.85 | AD69: 0 | AE69: =VLOOKUP(A69,'личные рез-ты по гонкам списком'!$J$1:$N$1210,2,FALSE) -> Ж | AF69: 1
A70: Бунос Анатолий / Bunos Anatolij / 1956 | E70: 308.82 | X70: 308.82 | Y70: =LARGE(B70:W70,1) -> 308.82 | Z70: =IF(COUNT(B70:W70)=1,0,LARGE(B70:W70,2)) -> 0 | AA70: =IF(COUNT(B70:W70)<3,0,LARGE(B70:W70,3)) -> 0 | AB70: =IF(COUNT(B70:W70)<4,0,LARGE(B70:W70,4)) -> 0 | AC70: =SUM(Y70:AB70) -> 308.82 | AD70: =AC70-Y70 -> 0 | AE70: =VLOOKUP(A70,'личные рез-ты по гонкам списком'!$J$1:$N$1210,2,FALSE) -> М | AF70: =COUNT(B70:W70) -> 1
A71: Бурак Анжелика / Burak Anzhelika / 1994 | N71: 144.7 | R71: 128.59 | X71: 273.29 | Y71: 144.7 | Z71: 128.59 | AA71: 0 | AB71: 0 | AC71: 273.29 | AD71: 128.59 | AE71: =VLOOKUP(A71,'личные рез-ты по гонкам списком'!$J$1:$N$1210,2,FALSE) -> Ж | AF71: 2
A72: Бутурля Александр / Buturlya Aleksandr / 1981 | N72: 113.98 | X72: 113.98 | Y72: 113.98 | Z72: 0 | AA72: 0 | AB72: 0 | AC72: 113.98 | AD72: 0 | AE72: =VLOOKUP(A72,'личные рез-ты по гонкам списком'!$J$1:$N$1210,2,FALSE) -> М | AF72: 1
A73: Буховецкий Андрей / Buhovetskij Andrej / 1987 | C73: 307.2 | X73: 307.2 | Y73: 307.2 | Z73: 0 | AA73: 0 | AB73: 0 | AC73: 307.2 | AD73: 0 | AE73: =VLOOKUP(A73,'личные рез-ты по гонкам списком'!$J$1:$N$1210,2,FALSE) -> М | AF73: 1
A74: Бушковский Максим / Bushkovskij Maksim / 1989 | M74: 95.92 | X74: 95.92 | Y74: 95.92 | Z74: 0 | AA74: 0 | AB74: 0 | AC74: 95.92 | AD74: 0 | AE74: =VLOOKUP(A74,'личные рез-ты по гонкам списком'!$J$1:$N$1210,2,FALSE) -> М | AF74: 1
A75: Быков Владимир / Bykov Vladimir / 1977 | W75: 346.77 | X75: 346.77 | Y75: 346.77 | Z75: 0 | AA75: 0 | AB75: 0 | AC75: 346.77 | AD75: 0 | AE75: =VLOOKUP(A75,'личные рез-ты по гонкам списком'!$J$1:$N$1210,2,FALSE) -> М | AF75: 1
A76: Бычинский Владислав / Bychinskij Vladislav / 1992 | H76: 206.24 | X76: 206.24 | Y76: 206.24 | Z76: 0 | AA76: 0 | AB76: 0 | AC76: 206.24 | AD76: 0 | AE76: =VLOOKUP(A76,'личные рез-ты по гонкам списком'!$J$1:$N$1210,2,FALSE) -> М | AF76: 1
A77: Бычков Александр / Bychkov Aleksandr / 1990 | C77: 96.55 | X77: 96.55 | Y77: 96.55 | Z77: 0 | AA77: 0 | AB77: 0 | AC77: 96.55 | AD77: 0 | AE77: =VLOOKUP(A77,'личные рез-ты по гонкам списком'!$J$1:$N$1210,2,FALSE) -> М | AF77: 1
A78: Вагин Андрей / Vagin Andrej / 1989 | D78: 719.72 | F78: 491.3 | I78: 461.56 | X78: 1672.58 | Y78: 719.72 | Z78: 491.3 | AA78: 461.56 | AB78: 0 | AC78: 1672.58 | AD78: 952.86 | AE78: =VLOOKUP(A78,'личные рез-ты по гонкам списком'!$J$1:$N$1210,2,FALSE) -> М | AF78: 3
A79: Вайтешонок Сергей / Vajteshonok Sergej / 1981 | G79: 120.3 | X79: 120.3 | Y79: 120.3 | Z79: 0 | AA79: 0 | AB79: 0 | AC79: 120.3 | AD79: 0 | AE79: =VLOOKUP(A79,'личные рез-ты по гонкам списком'!$J$1:$N$1210,2,FALSE) -> М | AF79: 1
A80: Варава Андрей / Varava Andrej / 1994 | O80: 172.73 | X80: 172.73 | Y80: 172.73 | Z80: 0 | AA80: 0 | AB80: 0 | AC80: 172.73 | AD80: 0 | AE80: =VLOOKUP(A80,'личные рез-ты по гонкам списком'!$J$1:$N$1210,2,FALSE) -> М | AF80: 1
A81: Варданян Кристина / Vardanyan Kristina / 1981 | C81: 350.21 | X81: 350.21 | Y81: 350.21 | Z81: 0 | AA81: 0 | AB81: 0 | AC81: 350.21 | AD81: 0 | AE81: =VLOOKUP(A81,'личные рез-ты по гонкам списком'!$J$1:$N$1210,2,FALSE) -> Ж | AF81: 1
A82: Василевич Валентина / Vasilevich Valentina / 1998 | F82: 187.93 | M82: 27.4 | X82: 215.33 | Y82: 187.93 | Z82: 27.4 | AA82: 0 | AB82: 0 | AC82: 215.33 | AD82: 27.4 | AE82: =VLOOKUP(A82,'личные рез-ты по гонкам списком'!$J$1:$N$1210,2,FALSE) -> Ж | AF82: 2
A83: Васильченко Вадим / Vasilchenko Vadim / 1987 | O83: 63.64 | S83: 146.02 | X83: 209.66 | Y83: 146.02 | Z83: 63.64 | AA83: 0 | AB83: 0 | AC83: 209.66 | AD83: 63.64 | AE83: =VLOOKUP(A83,'личные рез-ты по гонкам списком'!$J$1:$N$1210,2,FALSE) -> М | AF83: 2
A84: Вдовиченко Ирина / Vdovichenko Irina / 1989 | E84: 97.22 | I84: 98.75 | X84: 195.97 | Y84: 98.75 | Z84: 97.22 | AA84: 0 | AB84: 0 | AC84: 195.97 | AD84: 97.22 | AE84: =VLOOKUP(A84,'личные рез-ты по гонкам списком'!$J$1:$N$1210,2,FALSE) -> Ж | AF84: 2
A85: Величко Павел / Velichko Pavel / 1982 | B85: 520.58 | M85: 258.97 | X85: 779.55 | Y85: 520.58 | Z85: 258.97 | AA85: 0 | AB85: 0 | AC85: 779.55 | AD85: 258.97 | AE85: =VLOOKUP(A85,'личные рез-ты по гонкам списком'!$J$1:$N$1210,2,FALSE) -> М | AF85: 2
A86: Веремейчик Елена / Veremejchik Elena / 1986 | L86: 248.06 | P86: 226.62 | S86: 442.93 | X86: 917.61 | Y86: 442.93 | Z86: 248.06 | AA86: 226.62 | AB86: 0 | AC86: 917.61 | AD86: 474.68 | AE86: =VLOOKUP(A86,'личные рез-ты по гонкам списком'!$J$1:$N$1210,2,FALSE) -> Ж | AF86: 3
A87: Веремейчик Юрий / Veremejchik Yurij / 1979 | F87: 293.5 | I87: 279.08 | X87: 572.58 | Y87: 293.5 | Z87: 279.08 | AA87: 0 | AB87: 0 | AC87: 572.58 | AD87: 279.08 | AE87: =VLOOKUP(A87,'личные рез-ты по гонкам списком'!$J$1:$N$1210,2,FALSE) -> М | AF87: 2
A88: Веремич Юрий / Veremich Yurij / 1979 | O88: 263.64 | X88: 263.64 | Y88: 263.64 | Z88: 0 | AA88: 0 | AB88: 0 | AC88: 263.64 | AD88: 0 | AE88: =VLOOKUP(A88,'личные рез-ты по гонкам списком'!$J$1:$N$1210,2,FALSE) -> М | AF88: 1
A89: Верещако Павел / Vereschako Pavel / 1988 | E89: 283.08 | X89: 283.08 | Y89: 283.08 | Z89: 0 | AA89: 0 | AB89: 0 | AC89: 283.08 | AD89: 0 | AE89: =VLOOKUP(A89,'личные рез-ты по гонкам списком'!$J$1:$N$1210,2,FALSE) -> М | AF89: 1
A90: Ветохин Иван / Vetohin Ivan / 1987 | N90: 41.45 | X90: 41.45 | Y90: 41.45 | Z90: 0 | AA90: 0 | AB90: 0 | AC90: 41.45 | AD90: 0 | AE90: =VLOOKUP(A90,'личные рез-ты по гонкам списком'!$J$1:$N$1210,2,FALSE) -> М | AF90: 1
A91: Ветохина София / Vetohina Sofiya / 2010 | N91: 34.05 | X91: 34.05 | Y91: 34.05 | Z91: 0 | AA91: 0 | AB91: 0 | AC91: 34.05 | AD91: 0 | AE91: =VLOOKUP(A91,'личные рез-ты по гонкам списком'!$J$1:$N$1210,2,FALSE) -> Ж | AF91: 1
A92: Винтергрин Андрей / Vintergrin Andrej / 1981 | C92: 245.76 | X92: 245.76 | Y92: 245.76 | Z92: 0 | AA92: 0 | AB92: 0 | AC92: 245.76 | AD92: 0 | AE92: =VLOOKUP(A92,'личные рез-ты по гонкам списком'!$J$1:$N$1210,2,FALSE) -> М | AF92: 1
A93: Вирский Константин / Virskij Konstantin / 1977 | H93: 199.59 | X93: 199.59 | Y93: 199.59 | Z93: 0 | AA93: 0 | AB93: 0 | AC93: 199.59 | AD93: 0 | AE93: =VLOOKUP(A93,'личные рез-ты по гонкам списком'!$J$1:$N$1210,2,FALSE) -> М | AF93: 1
A94: Вирт Олег / Virt Oleg / 1980 | C94: 78.99 | X94: 78.99 | Y94: 78.99 | Z94: 0 | AA94: 0 | AB94: 0 | AC94: 78.99 | AD94: 0 | AE94: =VLOOKUP(A94,'личные рез-ты по гонкам списком'!$J$1:$N$1210,2,FALSE) -> М | AF94: 1
A95: Войтович Татьяна / Vojtovich Tatyana / 1986 | H95: 143.29 | O95: 126.32 | R95: 79.13 | X95: 348.74 | Y95: 143.29 | Z95: 126.32 | AA95: 79.13 | AB95: 0 | AC95: 348.74 | AD95: 205.45 | AE95: =VLOOKUP(A95,'личные рез-ты по гонкам списком'!$J$1:$N$1210,2,FALSE) -> Ж | AF95: 3
A96: Волков Алексей / Volkov Aleksej / | S96: 100.39 | X96: 100.39 | Y96: 100.39 | Z96: 0 | AA96: 0 | AB96: 0 | AC96: 100.39 | AD96: 0 | AE96: =VLOOKUP(A96,'личные рез-ты по гонкам списком'!$J$1:$N$1210,2,FALSE) -> М | AF96: 1
A97: Волков Николай / Volkov Nikolaj / 1989 | E97: 428.91 | P97: 352.08 | X97: 780.99 | Y97: 428.91 | Z97: 352.08 | AA97: 0 | AB97: 0 | AC97: 780.99 | AD97: 352.08 | AE97: =VLOOKUP(A97,'личные рез-ты по гонкам списком'!$J$1:$N$1210,2,FALSE) -> М | AF97: 2
A98: Володько Андрей / Volodko Andrej / 1986 | D98: 526.63 | G98: 206.24 | I98: 300.55 | M98: 230.2 | S98: 456.32 | X98: 1719.94 | Y98: 526.63 | Z98: 456.32 | AA98: 300.55 | AB98: 230.2 | AC98: 1513.7 | AD98: 987.07 | AE98: =VLOOKUP(A98,'личные рез-ты по гонкам списком'!$J$1:$N$1210,2,FALSE) -> М | AF98: 5
A99: Володько Владимир / Volodko Vladimir / 2001 | N99: 186.52 | X99: 186.52 | Y99: 186.52 | Z99: 0 | AA99: 0 | AB99: 0 | AC99: 186.52 | AD99: 0 | AE99: =VLOOKUP(A99,'личные рез-ты по гонкам списком'!$J$1:$N$1210,2,FALSE) -> М | AF99: 1
A100: Волостных Сергей / Volostnyh Sergej / 1989 | D100: 210.65 | X100: 210.65 | Y100: 210.65 | Z100: 0 | AA100: 0 | AB100: 0 | AC100: 210.65 | AD100: 0 | AE100: =VLOOKUP(A100,'личные рез-ты по гонкам списком'!$J$1:$N$1210,2,FALSE) -> М | AF100: 1
A101: Воробьёв Дмитрий / Vorobjov Dmitrij / 1988 | H101: 153.02 | N101: 176.16 | X101: 329.18 | Y101: 176.16 | Z101: 153.02 | AA101: 0 | AB101: 0 | AC101: 329.18 | AD101: 153.02 | AE101: =VLOOKUP(A101,'личные рез-ты по гонкам списком'!$J$1:$N$1210,2,FALSE) -> М | AF101: 2
A102: Выборный Александр / Vybornyj Aleksandr / 1985 | I102: 354.22 | M102: 306.93 | X102: 661.15 | Y102: 354.22 | Z102: 306.93 | AA102: 0 | AB102: 0 | AC102: 661.15 | AD102: 306.93 | AE102: =VLOOKUP(A102,'личные рез-ты по гонкам списком'!$J$1:$N$1210,2,FALSE) -> М | AF102: 2
A103: Выробов Дмитрий / Vyrobov Dmitrij / 1988 | G103: 34.37 | X103: 34.37 | Y103: 34.37 | Z103: 0 | AA103: 0 | AB103: 0 | AC103: 34.37 | AD103: 0 | AE103: =VLOOKUP(A103,'личные рез-ты по гонкам списком'!$J$1:$N$1210,2,FALSE) -> М | AF103: 1
A104: Гайдуков Александр / Gajdukov Aleksandr / 1989 | H104: 299.38 | Q104: 235.7 | X104: 535.08 | Y104: 299.38 | Z104: 235.7 | AA104: 0 | AB104: 0 | AC104: 535.08 | AD104: 235.7 | AE104: =VLOOKUP(A104,'личные рез-ты по гонкам списком'!$J$1:$N$1210,2,FALSE) -> М | AF104: 2
A105: Галец Константин / Galets Konstantin / 1988 | Q105: 94.28 | X105: 94.28 | Y105: 94.28 | Z105: 0 | AA105: 0 | AB105: 0 | AC105: 94.28 | AD105: 0 | AE105: =VLOOKUP(A105,'личные рез-ты по гонкам списком'!$J$1:$N$1210,2,FALSE) -> М | AF105: 1
A106: Галка Дмитрий / Galka Dmitrij / 1988 | C106: 289.65 | X106: 289.65 | Y106: 289.65 | Z106: 0 | AA106: 0 | AB106: 0 | AC106: 289.65 | AD106: 0 | AE106: =VLOOKUP(A106,'личные рез-ты по гонкам списком'!$J$1:$N$1210,2,FALSE) -> М | AF106: 1
A107: Гамидов Нариман / Gamidov Nariman / 1972 | H107: 179.63 | X107: 179.63 | Y107: 179.63 | Z107: 0 | AA107: 0 | AB107: 0 | AC107: 179.63 | AD107: 0 | AE107: =VLOOKUP(A107,'личные рез-ты по гонкам списком'!$J$1:$N$1210,2,FALSE) -> М | AF107: 1
A108: Гамидов Тимур / Gamidov Timur / 1996 | H108: 345.95 | X108: 345.95 | Y108: 345.95 | Z108: 0 | AA108: 0 | AB108: 0 | AC108: 345.95 | AD108: 0 | AE108: =VLOOKUP(A108,'личные рез-ты по гонкам списком'!$J$1:$N$1210,2,FALSE) -> М | AF108: 1
A109: Гандзюк Всеволод / Gandzyuk Vsevolod / | O109: 72.73 | X109: 72.73 | Y109: 72.73 | Z109: 0 | AA109: 0 | AB109: 0 | AC109: 72.73 | AD109: 0 | AE109: =VLOOKUP(A109,'личные рез-ты по гонкам списком'!$J$1:$N$1210,2,FALSE) -> М | AF109: 1
A110: Гарбар Екатерина / Garbar Ekaterina / 1989 | L110: 140.57 | X110: 140.57 | Y110: 140.57 | Z110: 0 | AA110: 0 | AB110: 0 | AC110: 140.57 | AD110: 0 | AE110: =VLOOKUP(A110,'личные рез-ты по гонкам списком'!$J$1:$N$1210,2,FALSE) -> Ж | AF110: 1
A111: Гарбуз Алла / Garbuz Alla / 1969 | H111: 28.66 | N111: 25.54 | Q111: 41.39 | X111: 95.59 | Y111: 41.39 | Z111: 28.66 | AA111: 25.54 | AB111: 0 | AC111: 95.59 | AD111: 54.2 | AE111: =VLOOKUP(A111,'личные рез-ты по гонкам списком'!$J$1:$N$1210,2,FALSE) -> Ж | AF111: 3
A112: Генсировский Павел / Gensirovskij Pavel / 1979 | B112: 1041.15 | X112: 1041.15 | Y112: 1041.15 | Z112: 0 | AA112: 0 | AB112: 0 | AC112: 1041.15 | AD112: 0 | AE112: =VLOOKUP(A112,'личные рез-ты по гонкам списком'!$J$1:$N$1210,2,FALSE) -> М | AF112: 1
A113: Геранин Дмитрий / Geranin Dmitrij / | N113: 207.24 | X113: 207.24 | Y113: 207.24 | Z113: 0 | AA113: 0 | AB113: 0 | AC113: 207.24 | AD113: 0 | AE113: =VLOOKUP(A113,'личные рез-ты по гонкам списком'!$J$1:$N$1210,2,FALSE) -> М | AF113: 1
A114: Герасевич Максим / Gerasevich Maksim / | E114: 94.36 | N114: 103.62 | X114: 197.98 | Y114: 103.62 | Z114: 94.36 | AA114: 0 | AB114: 0 | AC114: 197.98 | AD114: 94.36 | AE114: =VLOOKUP(A114,'личные рез-ты по гонкам списком'!$J$1:$N$1210,2,FALSE) -> М | AF114: 2
A115: Герасимук Дмитрий / Gerasimuk Dmitrij / 1993 | Q115: 245.13 | X115: 245.13 | Y115: 245.13 | Z115: 0 | AA115: 0 | AB115: 0 | AC115: 245.13 | AD115: 0 | AE115: =VLOOKUP(A115,'личные рез-ты по гонкам списком'!$J$1:$N$1210,2,FALSE) -> М | AF115: 1
A116: Герасимук Юрий / Gerasimuk Yurij / 1992 | C116: 315.98 | I116: 150.28 | U116: 789.68 | X116: 1255.94 | Y116: 789.68 | Z116: 315.98 | AA116: 150.28 | AB116: 0 | AC116: 1255.94 | AD116: 466.26 | AE116: =VLOOKUP(A116,'личные рез-ты по гонкам списком'!$J$1:$N$1210,2,FALSE) -> М | AF116: 3
A117: Гецман Мила / Getsman Mila / 1988 | Q117: 241.45 | X117: 241.45 | Y117: 241.45 | Z117: 0 | AA117: 0 | AB117: 0 | AC117: 241.45 | AD117: 0 | AE117: =VLOOKUP(A117,'личные рез-ты по гонкам списком'!$J$1:$N$1210,2,FALSE) -> Ж | AF117: 1
A118: Гидлевский Дмитрий / Gidlevskij Dmitrij / 1986 | G118: 309.35 | H118: 359.25 | X118: 668.6 | Y118: 359.25 | Z118: 309.35 | AA118: 0 | AB118: 0 | AC118: 668.6 | AD118: 309.35 | AE118: =VLOOKUP(A118,'личные рез-ты по гонкам списком'!$J$1:$N$1210,2,FALSE) -> М | AF118: 2
A119: Гилевич Диана / Gilevich Diana / 1993 | F119: 516.82 | L119: 305.94 | R119: 356.09 | X119: 1178.85 | Y119: 516.82 | Z119: 356.09 | AA119: 305.94 | AB119: 0 | AC119: 1178.85 | AD119: 662.03 | AE119: =VLOOKUP(A119,'личные рез-ты по гонкам списком'!$J$1:$N$1210,2,FALSE) -> Ж | AF119: 3
A120: Гилевич Кристина / Gilevich Kristina / 1994 | F120: 469.83 | R120: 336.31 | X120: 806.14 | Y120: 469.83 | Z120: 336.31 | AA120: 0 | AB120: 0 | AC120: 806.14 | AD120: 336.31 | AE120: =VLOOKUP(A120,'личные рез-ты по гонкам списком'!$J$1:$N$1210,2,FALSE) -> Ж | AF120: 2
A121: Гладкова Анна / Gladkova Anna / 1985 | G121: 103.12 | N121: 51.07 | X121: 154.19 | Y121: 103.12 | Z121: 51.07 | AA121: 0 | AB121: 0 | AC121: 154.19 | AD121: 51.07 | AE121: =VLOOKUP(A121,'личные рез-ты по гонкам списком'!$J$1:$N$1210,2,FALSE) -> Ж | AF121: 2
A122: Гладковский Владислав / Gladkovskij Vladislav / 1990 | C122: 359.86 | X122: 359.86 | Y122: 359.86 | Z122: 0 | AA122: 0 | AB122: 0 | AC122: 359.86 | AD122: 0 | AE122: =VLOOKUP(A122,'личные рез-ты по гонкам списком'!$J$1:$N$1210,2,FALSE) -> М | AF122: 1
A123: Глушаков Сергей / Glushakov Sergej / 1958 | F123: 210.56 | X123: 210.56 | Y123: 210.56 | Z123: 0 | AA123: 0 | AB123: 0 | AC123: 210.56 | AD123: 0 | AE123: =VLOOKUP(A123,'личные рез-ты по гонкам списком'!$J$1:$N$1210,2,FALSE) -> М | AF123: 1
A124: Глушков Александр / Glushkov Aleksandr / 1980 | B124: 780.86 | K124: 417.43 | M124: 191.83 | X124: 1390.12 | Y124: 780.86 | Z124: 417.43 | AA124: 191.83 | AB124: 0 | AC124: 1390.12 | AD124: 609.26 | AE124: =VLOOKUP(A124,'личные рез-ты по гонкам списком'!$J$1:$N$1210,2,FALSE) -> М | AF124: 3
A125: Голубева Елена / Golubeva Elena / 1987 | F125: 328.88 | M125: 164.43 | X125: 493.31 | Y125: 328.88 | Z125: 164.43 | AA125: 0 | AB125: 0 | AC125: 493.31 | AD125: 164.43 | AE125: =VLOOKUP(A125,'личные рез-ты по гонкам списком'!$J$1:$N$1210,2,FALSE) -> Ж | AF125: 2
A126: Гомон Сергей / Gomon Sergej / 1990 | B126: 202.45 | X126: 202.45 | Y126: 202.45 | Z126: 0 | AA126: 0 | AB126: 0 | AC126: 202.45 | AD126: 0 | AE126: =VLOOKUP(A126,'личные рез-ты по гонкам списком'!$J$1:$N$1210,2,FALSE) -> М | AF126: 1
A127: Гончарик Наталья / Goncharik Natalya / 1991 | H127: 71.65 | X127: 71.65 | Y127: 71.65 | Z127: 0 | AA127: 0 | AB127: 0 | AC127: 71.65 | AD127: 0 | AE127: =VLOOKUP(A127,'личные рез-ты по гонкам списком'!$J$1:$N$1210,2,FALSE) -> Ж | AF127: 1
A128: Гончаров Николай / Goncharov Nikolaj / 1984 | Q128: 179.13 | X128: 179.13 | Y128: 179.13 | Z128: 0 | AA128: 0 | AB128: 0 | AC128: 179.13 | AD128: 0 | AE128: =VLOOKUP(A128,'личные рез-ты по гонкам списком'!$J$1:$N$1210,2,FALSE) -> М | AF128: 1
A129: Горбач Максим / Gorbach Maksim / 1983 | T129: 527.3 | X129: 527.3 | Y129: 527.3 | Z129: 0 | AA129: 0 | AB129: 0 | AC129: 527.3 | AD129: 0 | AE129: =VLOOKUP(A129,'личные рез-ты по гонкам списком'!$J$1:$N$1210,2,FALSE) -> М | AF129: 1
A130: Горбиков Кирилл / Gorbikov Kirill / 1982 | S130: 18.25 | X130: 18.25 | Y130: 18.25 | Z130: 0 | AA130: 0 | AB130: 0 | AC130: 18.25 | AD130: 0 | AE130: =VLOOKUP(A130,'личные рез-ты по гонкам списком'!$J$1:$N$1210,2,FALSE) -> М | AF130: 1
A131: Горевцова Евгения / Gorevtsova Evgeniya / 1989 | O131: 168.42 | X131: 168.42 | Y131: 168.42 | Z131: 0 | AA131: 0 | AB131: 0 | AC131: 168.42 | AD131: 0 | AE131: =VLOOKUP(A131,'личные рез-ты по гонкам списком'!$J$1:$N$1210,2,FALSE) -> Ж | AF131: 1
A132: Горелик Юрий / Gorelik Yurij / 1987 | R132: 182.86 | X132: 182.86 | Y132: 182.86 | Z132: 0 | AA132: 0 | AB132: 0 | AC132: 182.86 | AD132: 0 | AE132: =VLOOKUP(A132,'личные рез-ты по гонкам списком'!$J$1:$N$1210,2,FALSE) -> М | AF132: 1
A133: Городко Игорь / Gorodko Igor / 1970 | C133: 87.77 | X133: 87.77 | Y133: 87.77 | Z133: 0 | AA133: 0 | AB133: 0 | AC133: 87.77 | AD133: 0 | AE133: =VLOOKUP(A133,'личные рез-ты по гонкам списком'!$J$1:$N$1210,2,FALSE) -> М | AF133: 1
A134: Горшков Игорь / Gorshkov Igor / 1977 | E134: 102.94 | S134: 127.77 | X134: 230.71 | Y134: =LARGE(B134:W134,1) -> 127.77 | Z134: =IF(COUNT(B134:W134)=1,0,LARGE(B134:W134,2)) -> 102.94 | AA134: =IF(COUNT(B134:W134)<3,0,LARGE(B134:W134,3)) -> 0 | AB134: =IF(COUNT(B134:W134)<4,0,LARGE(B134:W134,4)) -> 0 | AC134: =SUM(Y134:AB134) -> 230.71 | AD134: =AC134-Y134 -> 102.94 | AE134: =VLOOKUP(A134,'личные рез-ты по гонкам списком'!$J$1:$N$1210,2,FALSE) -> М | AF134: =COUNT(B134:W134) -> 2
A135: Гославская Анастасия / Goslavskaya Anastasiya / 1991 | Q135: 137.97 | X135: 137.97 | Y135: 137.97 | Z135: 0 | AA135: 0 | AB135: 0 | AC135: 137.97 | AD135: 0 | AE135: =VLOOKUP(A135,'личные рез-ты по гонкам списком'!$J$1:$N$1210,2,FALSE) -> Ж | AF135: 1
A136: Грабовец Павел / Grabovets Pavel / 1981 | B136: 954.39 | X136: 954.39 | Y136: 954.39 | Z136: 0 | AA136: 0 | AB136: 0 | AC136: 954.39 | AD136: 0 | AE136: =VLOOKUP(A136,'личные рез-ты по гонкам списком'!$J$1:$N$1210,2,FALSE) -> М | AF136: 1
A137: Гракович Ольга / Grakovich Olga / 1994 | L137: 90.96 | X137: 90.96 | Y137: 90.96 | Z137: 0 | AA137: 0 | AB137: 0 | AC137: 90.96 | AD137: 0 | AE137: =VLOOKUP(A137,'личные рез-ты по гонкам списком'!$J$1:$N$1210,2,FALSE) -> Ж | AF137: 1
A138: Гребенчук Максим / Grebenchuk Maksim / 1989 | R138: 153.98 | X138: 153.98 | Y138: 153.98 | Z138: 0 | AA138: 0 | AB138: 0 | AC138: 153.98 | AD138: 0 | AE138: =VLOOKUP(A138,'личные рез-ты по гонкам списком'!$J$1:$N$1210,2,FALSE) -> М | AF138: 1
A139: Грейд Юлия / Grejd Yuliya / 1986 | E139: 194.44 | I139: 164.59 | X139: 359.03 | Y139: 194.44 | Z139: 164.59 | AA139: 0 | AB139: 0 | AC139: 359.03 | AD139: 164.59 | AE139: =VLOOKUP(A139,'личные рез-ты по гонкам списком'!$J$1:$N$1210,2,FALSE) -> Ж | AF139: 2
A140: Грек Илья / Grek Ilya / 1992 | I140: 236.15 | R140: 288.72 | W140: 455.14 | X140: 980.01 | Y140: 455.14 | Z140: 288.72 | AA140: 236.15 | AB140: 0 | AC140: 980.01 | AD140: 524.87 | AE140: =VLOOKUP(A140,'личные рез-ты по гонкам списком'!$J$1:$N$1210,2,FALSE) -> М | AF140: 3
A141: Греков Игорь / Grekov Igor / 1970 | D141: 263.31 | S141: 136.9 | X141: 400.21 | Y141: 263.31 | Z141: 136.9 | AA141: 0 | AB141: 0 | AC141: 400.21 | AD141: 136.9 | AE141: =VLOOKUP(A141,'личные рез-ты по гонкам списком'!$J$1:$N$1210,2,FALSE) -> М | AF141: 2
A142: Гречишкин Алексей / Grechishkin Aleksej / 1983 | L142: 20.4 | X142: 20.4 | Y142: 20.4 | Z142: 0 | AA142: 0 | AB142: 0 | AC142: 20.4 | AD142: 0 | AE142: =VLOOKUP(A142,'личные рез-ты по гонкам списком'!$J$1:$N$1210,2,FALSE) -> М | AF142: 1
A143: Гриб Екатерина / Grib Ekaterina / 1981 | G143: 219.13 | H143: 243.6 | X143: 462.73 | Y143: 243.6 | Z143: 219.13 | AA143: 0 | AB143: 0 | AC143: 462.73 | AD143: 219.13 | AE143: =VLOOKUP(A143,'личные рез-ты по гонкам списком'!$J$1:$N$1210,2,FALSE) -> Ж | AF143: 2
A144: Григорович Руслан / Grigorovich Ruslan / 1987 | G144: 232.02 | X144: 232.02 | Y144: 232.02 | Z144: 0 | AA144: 0 | AB144: 0 | AC144: 232.02 | AD144: 0 | AE144: =VLOOKUP(A144,'личные рез-ты по гонкам списком'!$J$1:$N$1210,2,FALSE) -> М | AF144: 1
A145: Григорьев Никита / Grigorev Nikita / 1990 | P145: 509.9 | X145: 509.9 | Y145: 509.9 | Z145: 0 | AA145: 0 | AB145: 0 | AC145: 509.9 | AD145: 0 | AE145: =VLOOKUP(A145,'личные рез-ты по гонкам списком'!$J$1:$N$1210,2,FALSE) -> М | AF145: 1
A146: Григорьева Светлана / Grigoreva Svetlana / 1984 | E146: 275.46 | L146: 157.1 | X146: 432.56 | Y146: 275.46 | Z146: 157.1 | AA146: 0 | AB146: 0 | AC146: 432.56 | AD146: 157.1 | AE146: =VLOOKUP(A146,'личные рез-ты по гонкам списком'!$J$1:$N$1210,2,FALSE) -> Ж | AF146: 2
A147: Гринько Анастасия / Grinko Anastasiya / 1993 | E147: 178.24 | H147: 257.93 | X147: 436.17 | Y147: 257.93 | Z147: 178.24 | AA147: 0 | AB147: 0 | AC147: 436.17 | AD147: 178.24 | AE147: =VLOOKUP(A147,'личные рез-ты по гонкам списком'!$J$1:$N$1210,2,FALSE) -> Ж | AF147: 2
A148: Грицевич Виталий / Gritsevich Vitalij / 1987 | H148: 146.36 | X148: 146.36 | Y148: 146.36 | Z148: 0 | AA148: 0 | AB148: 0 | AC148: 146.36 | AD148: 0 | AE148: =VLOOKUP(A148,'личные рез-ты по гонкам списком'!$J$1:$N$1210,2,FALSE) -> М | AF148: 1
A149: Грицук Татьяна / Gritsuk Tatyana / 1973 | D149: 276.82 | X149: 276.82 | Y149: 276.82 | Z149: 0 | AA149: 0 | AB149: 0 | AC149: 276.82 | AD149: 0 | AE149: =VLOOKUP(A149,'личные рез-ты по гонкам списком'!$J$1:$N$1210,2,FALSE) -> Ж | AF149: 1
A150: Грошева Елена / Grosheva Elena / 1994 | R150: 59.35 | X150: 59.35 | Y150: 59.35 | Z150: 0 | AA150: 0 | AB150: 0 | AC150: 59.35 | AD150: 0 | AE150: =VLOOKUP(A150,'личные рез-ты по гонкам списком'!$J$1:$N$1210,2,FALSE) -> Ж | AF150: 1
A151: Грушевская Виктория / Grushevskaya Viktoriya / 1992 | Q151: 151.77 | X151: 151.77 | Y151: 151.77 | Z151: 0 | AA151: 0 | AB151: 0 | AC151: 151.77 | AD151: 0 | AE151: =VLOOKUP(A151,'личные рез-ты по гонкам списком'!$J$1:$N$1210,2,FALSE) -> Ж | AF151: 1
A152: Гумбар Илья / Gumbar Ilya / 1989 | M152: 263.77 | X152: 263.77 | Y152: 263.77 | Z152: 0 | AA152: 0 | AB152: 0 | AC152: 263.77 | AD152: 0 | AE152: =VLOOKUP(A152,'личные рез-ты по гонкам списком'!$J$1:$N$1210,2,FALSE) -> М | AF152: 1
A153: Гурская Татьяна / Gurskaya Tatyana / 1980 | B153: 1041.15 | X153: 1041.15 | Y153: 1041.15 | Z153: 0 | AA153: 0 | AB153: 0 | AC153: 1041.15 | AD153: 0 | AE153: =VLOOKUP(A153,'личные рез-ты по гонкам списком'!$J$1:$N$1210,2,FALSE) -> Ж | AF153: 1
A154: Гусаревич Денис / Gusarevich Denis / 1983 | B154: 578.42 | X154: 578.42 | Y154: 578.42 | Z154: 0 | AA154: 0 | AB154: 0 | AC154: 578.42 | AD154: 0 | AE154: =VLOOKUP(A154,'личные рез-ты по гонкам списком'!$J$1:$N$1210,2,FALSE) -> М | AF154: 1
A155: Давыдов Андрей / Davydov Andrej / 1980 | S155: 328.55 | X155: 328.55 | Y155: 328.55 | Z155: 0 | AA155: 0 | AB155: 0 | AC155: 328.55 | AD155: 0 | AE155: =VLOOKUP(A155,'личные рез-ты по гонкам списком'!$J$1:$N$1210,2,FALSE) -> М | AF155: 1
A156: Дальниченко Юрий / Dalnichenko Yurij / 1985 | P156: 412.78 | X156: 412.78 | Y156: 412.78 | Z156: 0 | AA156: 0 | AB156: 0 | AC156: 412.78 | AD156: 0 | AE156: =VLOOKUP(A156,'личные рез-ты по гонкам списком'!$J$1:$N$1210,2,FALSE) -> М | AF156: 1
A157: Даник Даниил / Danik Daniil / 1982 | L157: 91.78 | X157: 91.78 | Y157: 91.78 | Z157: 0 | AA157: 0 | AB157: 0 | AC157: 91.78 | AD157: 0 | AE157: =VLOOKUP(A157,'личные рез-ты по гонкам списком'!$J$1:$N$1210,2,FALSE) -> М | AF157: 1
A158: Даниленко Инесса / Danilenko Inessa / 1984 | Q158: 165.57 | X158: 165.57 | Y158: 165.57 | Z158: 0 | AA158: 0 | AB158: 0 | AC158: 165.57 | AD158: 0 | AE158: =VLOOKUP(A158,'личные рез-ты по гонкам списком'!$J$1:$N$1210,2,FALSE) -> Ж | AF158: 1
A159: Данілаў Віктар / Danіlau Vіktar / 1987 | Q159: 103.71 | X159: 103.71 | Y159: 103.71 | Z159: 0 | AA159: 0 | AB159: 0 | AC159: 103.71 | AD159: 0 | AE159: =VLOOKUP(A159,'личные рез-ты по гонкам списком'!$J$1:$N$1210,2,FALSE) -> М | AF159: 1
A160: Данченко Глеб / Danchenko Gleb / 1986 | H160: 286.07 | X160: 286.07 | Y160: 286.07 | Z160: 0 | AA160: 0 | AB160: 0 | AC160: 286.07 | AD160: 0 | AE160: =VLOOKUP(A160,'личные рез-ты по гонкам списком'!$J$1:$N$1210,2,FALSE) -> М | AF160: 1
A161: Дашин Михаил / Dashin Mihail / 1986 | N161: 217.6 | Q161: 207.42 | R161: 221.35 | X161: 646.37 | Y161: 221.35 | Z161: 217.6 | AA161: 207.42 | AB161: 0 | AC161: 646.37 | AD161: 425.02 | AE161: =VLOOKUP(A161,'личные рез-ты по гонкам списком'!$J$1:$N$1210,2,FALSE) -> М | AF161: 3
A162: Дашкевич Павел / Dashkevich Pavel / 1999 | H162: 86.49 | L162: 112.18 | X162: 198.67 | Y162: 112.18 | Z162: 86.49 | AA162: 0 | AB162: 0 | AC162: 198.67 | AD162: 86.49 | AE162: =VLOOKUP(A162,'личные рез-ты по гонкам списком'!$J$1:$N$1210,2,FALSE) -> М | AF162: 2
A163: Дашкевич Сергей / Dashkevich Sergej / 1996 | H163: 39.92 | X163: 39.92 | Y163: 39.92 | Z163: 0 | AA163: 0 | AB163: 0 | AC163: 39.92 | AD163: 0 | AE163: =VLOOKUP(A163,'личные рез-ты по гонкам списком'!$J$1:$N$1210,2,FALSE) -> М | AF163: 1
A164: Дегтярев Сергей / Degtyarev Sergej / 1983 | D164: 649.51 | F164: 191.41 | P164: 169.97 | X164: 1010.89 | Y164: 649.51 | Z164: 191.41 | AA164: 169.97 | AB164: 0 | AC164: 1010.89 | AD164: 361.38 | AE164: =VLOOKUP(A164,'личные рез-ты по гонкам списком'!$J$1:$N$1210,2,FALSE) -> М | AF164: 3
A165: Дедков Никита / Dedkov Nikita / 1998 | L165: 198.86 | X165: 198.86 | Y165: 198.86 | Z165: 0 | AA165: 0 | AB165: 0 | AC165: 198.86 | AD165: 0 | AE165: =VLOOKUP(A165,'личные рез-ты по гонкам списком'!$J$1:$N$1210,2,FALSE) -> М | AF165: 1
A166: Делендик Максим / Delendik Maksim / 1992 | L166: 152.97 | X166: 152.97 | Y166: 152.97 | Z166: 0 | AA166: 0 | AB166: 0 | AC166: 152.97 | AD166: 0 | AE166: =VLOOKUP(A166,'личные рез-ты по гонкам списком'!$J$1:$N$1210,2,FALSE) -> М | AF166: 1
A167: Делендик Надежда / Delendik Nadezhda / 1987 | C167: 437.76 | M167: 328.86 | X167: 766.62 | Y167: 437.76 | Z167: 328.86 | AA167: 0 | AB167: 0 | AC167: 766.62 | AD167: 328.86 | AE167: =VLOOKUP(A167,'личные рез-ты по гонкам списком'!$J$1:$N$1210,2,FALSE) -> Ж | AF167: 2
A168: Дельянов Одиссей / Delyanov Odissej / 1979 | F168: 357.31 | X168: 357.31 | Y168: 357.31 | Z168: 0 | AA168: 0 | AB168: 0 | AC168: 357.31 | AD168: 0 | AE168: =VLOOKUP(A168,'личные рез-ты по гонкам списком'!$J$1:$N$1210,2,FALSE) -> М | AF168: 1
A169: Демчук Ростислав / Demchuk Rostislav / 1978 | S169: 282.92 | X169: 282.92 | Y169: 282.92 | Z169: 0 | AA169: 0 | AB169: 0 | AC169: 282.92 | AD169: 0 | AE169: =VLOOKUP(A169,'личные рез-ты по гонкам списком'!$J$1:$N$1210,2,FALSE) -> М | AF169: 1
A170: Диксон Катерина / Dikson Katerina / 1993 | T170: 486.5 | X170: 486.5 | Y170: 486.5 | Z170: 0 | AA170: 0 | AB170: 0 | AC170: 486.5 | AD170: 0 | AE170: =VLOOKUP(A170,'личные рез-ты по гонкам списком'!$J$1:$N$1210,2,FALSE) -> Ж | AF170: 1
A171: Домбровский Евгений / Dombrovskij Evgenij / 1987 | H171: 279.42 | X171: 279.42 | Y171: 279.42 | Z171: 0 | AA171: 0 | AB171: 0 | AC171: 279.42 | AD171: 0 | AE171: =VLOOKUP(A171,'личные рез-ты по гонкам списком'!$J$1:$N$1210,2,FALSE) -> М | AF171: 1
A172: Драгун Алина / Dragun Alina / 1993 | C172: 412.75 | X172: 412.75 | Y172: 412.75 | Z172: 0 | AA172: 0 | AB172: 0 | AC172: 412.75 | AD172: 0 | AE172: =VLOOKUP(A172,'личные рез-ты по гонкам списком'!$J$1:$N$1210,2,FALSE) -> Ж | AF172: 1
A173: Драгун Борис / Dragun Boris / 1970 | F173: 248.84 | K173: 298.16 | X173: 547 | Y173: 298.16 | Z173: 248.84 | AA173: 0 | AB173: 0 | AC173: 547 | AD173: 248.84 | AE173: =VLOOKUP(A173,'личные рез-ты по гонкам списком'!$J$1:$N$1210,2,FALSE) -> М | AF173: 2
A174: Дрофа Виталий / Drofa Vitalij / 1970 | O174: 290.91 | X174: 290.91 | Y174: 290.91 | Z174: 0 | AA174: 0 | AB174: 0 | AC174: 290.91 | AD174: 0 | AE174: =VLOOKUP(A174,'личные рез-ты по гонкам списком'!$J$1:$N$1210,2,FALSE) -> М | AF174: 1
A175: Дубков Алексей / Dubkov Aleksej / 1984 | T175: 373.51 | X175: 373.51 | Y175: 373.51 | Z175: 0 | AA175: 0 | AB175: 0 | AC175: 373.51 | AD175: 0 | AE175: =VLOOKUP(A175,'личные рез-ты по гонкам списком'!$J$1:$N$1210,2,FALSE) -> М | AF175: 1
A176: Дубровский Виктор / Dubrovskij Viktor / 1961 | D176: 105.33 | X176: 105.33 | Y176: 105.33 | Z176: 0 | AA176: 0 | AB176: 0 | AC176: 105.33 | AD176: 0 | AE176: =VLOOKUP(A176,'личные рез-ты по гонкам списком'!$J$1:$N$1210,2,FALSE) -> М | AF176: 1
A177: Дубровский Евгений / Dubrovskij Evgenij / 1984 | D177: 87.77 | X177: 87.77 | Y177: 87.77 | Z177: 0 | AA177: 0 | AB177: 0 | AC177: 87.77 | AD177: 0 | AE177: =VLOOKUP(A177,'личные рез-ты по гонкам списком'!$J$1:$N$1210,2,FALSE) -> М | AF177: 1
A178: Дунаева Мария / Dunaeva Mariya / 1983 | H178: 171.95 | X178: 171.95 | Y178: 171.95 | Z178: 0 | AA178: 0 | AB178: 0 | AC178: 171.95 | AD178: 0 | AE178: =VLOOKUP(A178,'личные рез-ты по гонкам списком'!$J$1:$N$1210,2,FALSE) -> Ж | AF178: 1
A179: Дундуков Андрей / Dundukov Andrej / 1985 | G179: 128.9 | L179: 96.88 | X179: 225.78 | Y179: 128.9 | Z179: 96.88 | AA179: 0 | AB179: 0 | AC179: 225.78 | AD179: 96.88 | AE179: =VLOOKUP(A179,'личные рез-ты по гонкам списком'!$J$1:$N$1210,2,FALSE) -> М | AF179: 2
A180: Дурейко Анна / Durejko Anna / 1987 | C180: 12.51 | X180: 12.51 | Y180: 12.51 | Z180: 0 | AA180: 0 | AB180: 0 | AC180: 12.51 | AD180: 0 | AE180: =VLOOKUP(A180,'личные рез-ты по гонкам списком'!$J$1:$N$1210,2,FALSE) -> Ж | AF180: 1
A181: Дышлевич Сергей / Dyshlevich Sergej / 1982 | L181: 188.66 | X181: 188.66 | Y181: 188.66 | Z181: 0 | AA181: 0 | AB181: 0 | AC181: 188.66 | AD181: 0 | AE181: =VLOOKUP(A181,'личные рез-ты по гонкам списком'!$J$1:$N$1210,2,FALSE) -> М | AF181: 1
A182: Евсюченя Александр / Evsyuchenya Aleksandr / 1991 | I182: 332.75 | P182: 400.64 | W182: 736.89 | X182: 1470.28 | Y182: 736.89 | Z182: 400.64 | AA182: 332.75 | AB182: 0 | AC182: 1470.28 | AD182: 733.39 | AE182: =VLOOKUP(A182,'личные рез-ты по гонкам списком'!$J$1:$N$1210,2,FALSE) -> М | AF182: 3
A183: Егорова Дарина / Egorova Darina / 1994 | O183: 231.58 | X183: 231.58 | Y183: 231.58 | Z183: 0 | AA183: 0 | AB183: 0 | AC183: 231.58 | AD183: 0 | AE183: =VLOOKUP(A183,'личные рез-ты по гонкам списком'!$J$1:$N$1210,2,FALSE) -> Ж | AF183: 1
A184: Едомская Вольга / Edomskaya Volga / 1987 | E184: 340.27 | H184: 329.57 | N184: 212.79 | O184: 294.74 | R184: 316.52 | X184: 1493.89 | Y184: 340.27 | Z184: 329.57 | AA184: 316.52 | AB184: 294.74 | AC184: 1281.1 | AD184: 940.83 | AE184: =VLOOKUP(A184,'личные рез-ты по гонкам списком'!$J$1:$N$1210,2,FALSE) -> Ж | AF184: 5
A185: Ермак Алексей / Ermak Aleksej / 1984 | F185: 165.89 | X185: 165.89 | Y185: 165.89 | Z185: 0 | AA185: 0 | AB185: 0 | AC185: 165.89 | AD185: 0 | AE185: =VLOOKUP(A185,'личные рез-ты по гонкам списком'!$J$1:$N$1210,2,FALSE) -> М | AF185: 1
A186: Ермохин Максим / Ermohin Maksim / 1975 | F186: 433.87 | I186: 386.42 | X186: 820.29 | Y186: 433.87 | Z186: 386.42 | AA186: 0 | AB186: 0 | AC186: 820.29 | AD186: 386.42 | AE186: =VLOOKUP(A186,'личные рез-ты по гонкам списком'!$J$1:$N$1210,2,FALSE) -> М | AF186: 2
A187: Жданович Александра / Zhdanovich Aleksandra / 1985 | G187: 232.02 | L187: 206.72 | Q187: 269.05 | X187: 707.79 | Y187: 269.05 | Z187: 232.02 | AA187: 206.72 | AB187: 0 | AC187: 707.79 | AD187: 438.74 | AE187: =VLOOKUP(A187,'личные рез-ты по гонкам списком'!$J$1:$N$1210,2,FALSE) -> Ж | AF187: 3
A188: Жданович Андрей / Zhdanovich Andrej / 1973 | F188: 287.12 | X188: 287.12 | Y188: 287.12 | Z188: 0 | AA188: 0 | AB188: 0 | AC188: 287.12 | AD188: 0 | AE188: =VLOOKUP(A188,'личные рез-ты по гонкам списком'!$J$1:$N$1210,2,FALSE) -> М | AF188: 1
A189: Жданович Максим / Zhdanovich Maksim / 1987 | D189: 561.73 | X189: 561.73 | Y189: 561.73 | Z189: 0 | AA189: 0 | AB189: 0 | AC189: 561.73 | AD189: 0 | AE189: =VLOOKUP(A189,'личные рез-ты по гонкам списком'!$J$1:$N$1210,2,FALSE) -> М | AF189: 1
A190: Жевняк Андрей / Zhevnyak Andrej / 1986 | L190: 193.76 | X190: 193.76 | Y190: 193.76 | Z190: 0 | AA190: 0 | AB190: 0 | AC190: 193.76 | AD190: 0 | AE190: =VLOOKUP(A190,'личные рез-ты по гонкам списком'!$J$1:$N$1210,2,FALSE) -> М | AF190: 1
A191: Жидович Вадим / Zhidovich Vadim / 1984 | D191: 491.52 | E191: 231.61 | I191: 214.68 | M191: 76.73 | X191: 1014.54 | Y191: 491.52 | Z191: 231.61 | AA191: 214.68 | AB191: 76.73 | AC191: 1014.54 | AD191: 523.02 | AE191: =VLOOKUP(A191,'личные рез-ты по гонкам списком'!$J$1:$N$1210,2,FALSE) -> М | AF191: 4
A192: Жила Анастасия / Zhila Anastasiya / 1994 | K192: 298.16 | L192: 223.25 | T192: 291.9 | X192: 813.31 | Y192: 298.16 | Z192: 291.9 | AA192: 223.25 | AB192: 0 | AC192: 813.31 | AD192: 515.15 | AE192: =VLOOKUP(A192,'личные рез-ты по гонкам списком'!$J$1:$N$1210,2,FALSE) -> Ж | AF192: 3
A193: Жук Лия / Zhuk Liya / 1980 | C193: 75.04 | X193: 75.04 | Y193: 75.04 | Z193: 0 | AA193: 0 | AB193: 0 | AC193: 75.04 | AD193: 0 | AE193: =VLOOKUP(A193,'личные рез-ты по гонкам списком'!$J$1:$N$1210,2,FALSE) -> Ж | AF193: 1
A194: Жукова Елизавета / Zhukova Elizaveta / 1989 | Q194: 248.35 | X194: 248.35 | Y194: 248.35 | Z194: 0 | AA194: 0 | AB194: 0 | AC194: 248.35 | AD194: 0 | AE194: =VLOOKUP(A194,'личные рез-ты по гонкам списком'!$J$1:$N$1210,2,FALSE) -> Ж | AF194: 1
A195: Жукович Артем / Zhukovich Artem / 1988 | H195: 93.14 | Q195: 47.14 | R195: 115.49 | X195: 255.77 | Y195: 115.49 | Z195: 93.14 | AA195: 47.14 | AB195: 0 | AC195: 255.77 | AD195: 140.28 | AE195: =VLOOKUP(A195,'личные рез-ты по гонкам списком'!$J$1:$N$1210,2,FALSE) -> М | AF195: 3
A196: Журавлёв Андрей / Zhuravljov Andrej / 1978 | F196: 484.91 | M196: 359.69 | O196: 381.82 | X196: 1226.42 | Y196: 484.91 | Z196: 381.82 | AA196: 359.69 | AB196: 0 | AC196: 1226.42 | AD196: 741.51 | AE196: =VLOOKUP(A196,'личные рез-ты по гонкам списком'!$J$1:$N$1210,2,FALSE) -> М | AF196: 3
A197: Журавлёва Оксана / Zhuravljova Oksana / 1980 | E197: 405.09 | L197: 264.6 | Q197: 275.94 | X197: 945.63 | Y197: 405.09 | Z197: 275.94 | AA197: 264.6 | AB197: 0 | AC197: 945.63 | AD197: 540.54 | AE197: =VLOOKUP(A197,'личные рез-ты по гонкам списком'!$J$1:$N$1210,2,FALSE) -> Ж | AF197: 3
A198: Жучин Алексей / Zhuchin Aleksej / 1983 | G198: 283.57 | H198: 332.64 | X198: 616.21 | Y198: =LARGE(B198:W198,1) -> 332.64 | Z198: =IF(COUNT(B198:W198)=1,0,LARGE(B198:W198,2)) -> 283.57 | AA198: =IF(COUNT(B198:W198)<3,0,LARGE(B198:W198,3)) -> 0 | AB198: =IF(COUNT(B198:W198)<4,0,LARGE(B198:W198,4)) -> 0 | AC198: =SUM(Y198:AB198) -> 616.21 | AD198: =AC198-Y198 -> 283.57 | AE198: =VLOOKUP(A198,'личные рез-ты по гонкам списком'!$J$1:$N$1210,2,FALSE) -> М | AF198: =COUNT(B198:W198) -> 2
A199: Жучина Катерина / Zhuchina Katerina / 1986 | G199: 154.68 | H199: 128.96 | X199: 283.64 | Y199: 154.68 | Z199: 128.96 | AA199: 0 | AB199: 0 | AC199: 283.64 | AD199: 128.96 | AE199: =VLOOKUP(A199,'личные рез-ты по гонкам списком'!$J$1:$N$1210,2,FALSE) -> Ж | AF199: 2
A200: Жучков Алексей / Zhuchkov Aleksej / 1985 | D200: 193.1 | F200: 140.37 | J200: 178.57 | M200: 38.37 | T200: 109.86 | X200: 660.27 | Y200: 193.1 | Z200: 178.57 | AA200: 140.37 | AB200: 109.86 | AC200: 621.9 | AD200: 428.8 | AE200: =VLOOKUP(A200,'личные рез-ты по гонкам списком'!$J$1:$N$1210,2,FALSE) -> М | AF200: 5
A201: Забабуро Сергей / Zababuro Sergej / 1978 | M201: 273.36 | X201: 273.36 | Y201: 273.36 | Z201: 0 | AA201: 0 | AB201: 0 | AC201: 273.36 | AD201: 0 | AE201: =VLOOKUP(A201,'личные рез-ты по гонкам списком'!$J$1:$N$1210,2,FALSE) -> М | AF201: 1
A202: Забелова Юлия / Zabelova Yuliya / 1978 | C202: 87.55 | X202: 87.55 | Y202: 87.55 | Z202: 0 | AA202: 0 | AB202: 0 | AC202: 87.55 | AD202: 0 | AE202: =VLOOKUP(A202,'личные рез-ты по гонкам списком'!$J$1:$N$1210,2,FALSE) -> Ж | AF202: 1
... 573 more rows

Sheet Рейтинг абс_10.2018
A2: № п/п | B2: Фамилия, Имя, Год рождения | C2: Пол | D2: Сумма баллов
A3: 1 | B3: Синица Кирилл / Sinitsa Kirill / 1981 | C3: М | D3: 3941.04 | E3: 7
A4: 2 | B4: Молочко Александр / Molochko Aleksandr / 1981 | C4: М | D4: 3134.41 | E4: 6
A5: 3 | B5: Тюев Даниил / Tyuev Daniil / 1977 | C5: М | D5: 2545.28 | E5: 7
A6: 4 | B6: Крисенков Алексей / Krisenkov Aleksej / 1983 | C6: М | D6: 2426.5 | E6: 7
A7: 5 | B7: Скирук Юлия / Skiruk Yuliya / 1988 | C7: Ж | D7: 2256.36 | E7: 5
A8: 6 | B8: Сулимчик Оксана / Sulimchik Oksana / 1986 | C8: Ж | D8: 2248.83 | E8: 3
A9: 7 | B9: Храмов Антон / Hramov Anton / 1991 | C9: М | D9: 2199.64 | E9: 5
A10: 8 | B10: Попадюк Игорь / Popadyuk Igor / 1982 | C10: М | D10: 2061.48 | E10: 6
A11: 9 | B11: Федорович Николай / Fedorovich Nikolaj / 1959 | C11: М | D11: 2032.55 | E11: 6
A12: 10 | B12: Мальков Валентин / Malkov Valentin / 1988 | C12: М | D12: 2010.14 | E12: 5
A13: 11 | B13: Харитонов Иван / Haritonov Ivan / 1973 | C13: М | D13: 1966.13 | E13: 5
A14: 12 | B14: Леонов Иван / Leonov Ivan / 1986 | C14: М | D14: 1956.11 | E14: 4
A15: 13 | B15: Черкас Александра / Cherkas Aleksandra / 1992 | C15: Ж | D15: 1953.39 | E15: 6
A16: 14 | B16: Исаев Антон / Isaev Anton / 1979 | C16: М | D16: 1862.81 | E16: 2
A17: 15 | B17: Скуратович Антон / Skuratovich Anton / 1985 | C17: М | D17: 1857.4 | E17: 6
A18: 16 | B18: Лысенко Павел / Lysenko Pavel / 1966 | C18: М | D18: 1835.31 | E18: 2
A19: 17 | B19: Березовский Андрей / Berezovskij Andrej / 1973 | C19: М | D19: 1833.01 | E19: 4
A20: 18 | B20: Селютин Владимир / Selyutin Vladimir / 1990 | C20: М | D20: 1827.1 | E20: 6
A21: 19 | B21: Торубарова Татьяна / Torubarova Tatyana / 1983 | C21: Ж | D21: 1813.42 | E21: 3
A22: 20 | B22: Побединский Александр / Pobedinskij Aleksandr / 1983 | C22: М | D22: 1723.11 | E22: 2
A23: 21 | B23: Ласюк Юрий / Lasyuk Yurij / 1987 | C23: М | D23: 1721.04 | E23: 5
A24: 22 | B24: Вагин Андрей / Vagin Andrej / 1989 | C24: М | D24: 1672.58 | E24: 3
A25: 23 | B25: Коровец Богдан / Korovets Bogdan / 1976 | C25: М | D25: 1653.04 | E25: 6
A26: 24 | B26: Бузо Александр / Buzo Aleksandr / 1982 | C26: М | D26: 1646.8 | E26: 5
A27: 25 | B27: Маркевич Денис / Markevich Denis / 1981 | C27: М | D27: 1596.33 | E27: 4
A28: 26 | B28: Хорошавин Вячеслав / Horoshavin Vyacheslav / 1985 | C28: М | D28: 1594.99 | E28: 5
A29: 27 | B29: Борисевич Леонид / Borisevich Leonid / 1969 | C29: М | D29: 1590.61 | E29: 3
A30: 28 | B30: Лойко Сергей / Lojko Sergej / 1985 | C30: М | D30: 1553.7 | E30: 5
A31: 29 | B31: Молчан Александр / Molchan Aleksandr / 1988 | C31: М | D31: 1552.52 | E31: 5
A32: 30 | B32: Тарасенко Павел / Tarasenko Pavel / 1983 | C32: М | D32: 1528.96 | E32: 4
A33: 31 | B33: Володько Андрей / Volodko Andrej / 1986 | C33: М | D33: 1513.7 | E33: 5
A34: 32 | B34: Ходан Александр / Hodan Aleksandr / 1988 | C34: М | D34: 1488.62 | E34: 3
A35: 33 | B35: Евсюченя Александр / Evsyuchenya Aleksandr / 1991 | C35: М | D35: 1470.28 | E35: 3
A36: 34 | B36: Алексеев Алексей / Alekseev Aleksej / 1980 | C36: М | D36: 1458.74 | E36: 4
A37: 35 | B37: Овсиюк Богдан / Ovsiyuk Bogdan / 1993 | C37: М | D37: 1457.13 | E37: 3
A38: 36 | B38: Белая Юлия / Belaya Yuliya / 1988 | C38: Ж | D38: 1450.57 | E38: 4
A39: 37 | B39: Лисовский Виктор / Lisovskij Viktor / 1964 | C39: М | D39: 1415.23 | E39: 4
A40: 38 | B40: Сидоревич Александр / Sidorevich Aleksandr / 1985 | C40: М | D40: 1397.38 | E40: 3
A41: 39 | B41: Глушков Александр / Glushkov Aleksandr / 1980 | C41: М | D41: 1390.12 | E41: 3
A42: 40 | B42: Суховерхая Татьяна / Suhoverhaya Tatyana / 1986 | C42: Ж | D42: 1356.5 | E42: 3
A43: 41 | B43: Цвирбут Юлия / Tsvirbut Yuliya / 1992 | C43: Ж | D43: 1352.71 | E43: 3
A44: 42 | B44: Подрез Ярослав / Podrez Yaroslav / 1996 | C44: М | D44: 1350.06 | E44: 3
A45: 43 | B45: Трубкина Анастасия / Trubkina Anastasiya / 1989 | C45: Ж | D45: 1334.44 | E45: 3
A46: 44 | B46: Лесковец Александр / Leskovets Aleksandr / 1990 | C46: М | D46: 1321.32 | E46: 3
A47: 45 | B47: Мосийчук Максим / Mosijchuk Maksim / 1984 | C47: М | D47: 1292.91 | E47: 3
A48: 46 | B48: Едомская Вольга / Edomskaya Volga / 1987 | C48: Ж | D48: 1281.1 | E48: 5
A49: 47 | B49: Католиков Роман / Katolikov Roman / 1985 | C49: М | D49: 1257.08 | E49: 5
A50: 48 | B50: Герасимук Юрий / Gerasimuk Yurij / 1992 | C50: М | D50: 1255.94 | E50: 3
A51: 49 | B51: Журавлёв Андрей / Zhuravljov Andrej / 1978 | C51: М | D51: 1226.42 | E51: 3
A52: 50 | B52: Лавник Игорь / Lavnik Igor / 1983 | C52: М | D52: 1225.53 | E52: 4
A53: 51 | B53: Кликун Татьяна / Klikun Tatyana / 1989 | C53: Ж | D53: 1225.18 | E53: 4
A54: 52 | B54: Мартысевич Роман / Martysevich Roman / 1993 | C54: М | D54: 1200.08 | E54: 2
A55: 53 | B55: Гилевич Диана / Gilevich Diana / 1993 | C55: Ж | D55: 1178.85 | E55: 3
A56: 54 | B56: Михно Алла / Mihno Alla / 1979 | C56: Ж | D56: 1143.49 | E56: 3
A57: 55 | B57: Суховей Михаил / Suhovej Mihail / 1991 | C57: М | D57: 1118.68 | E57: 2
A58: 56 | B58: Милинкевич Елена / Milinkevich Elena / 1977 | C58: Ж | D58: 1107.72 | E58: 3
A59: 57 | B59: Тихонов Василий / Tihonov Vasilij / 1993 | C59: М | D59: 1086.92 | E59: 2
A60: 58 | B60: Пивень Андрей / Piven Andrej / 1992 | C60: М | D60: 1066.77 | E60: 1
A61: 59 | B61: Печёнов Георгий / Pechjonov Georgij / 1975 | C61: М | D61: 1042.76 | E61: 4
A62: 60 | B62: Генсировский Павел / Gensirovskij Pavel / 1979 | C62: М | D62: 1041.15 | E62: 1
A63: 61 | B63: Гурская Татьяна / Gurskaya Tatyana / 1980 | C63: Ж | D63: 1041.15 | E63: 1
A64: 62 | B64: Рагойша Пётр / Ragojsha Pjotr / 1976 | C64: М | D64: 1041.07 | E64: 2
A65: 63 | B65: Орловский Павел / Orlovskij Pavel / 1989 | C65: М | D65: 1034.49 | E65: 3
A66: 64 | B66: Брытько Роман / Brytko Roman / 1995 | C66: М | D66: 1017.86 | E66: 4
A67: 65 | B67: Жидович Вадим / Zhidovich Vadim / 1984 | C67: М | D67: 1014.54 | E67: 4
A68: 66 | B68: Дегтярев Сергей / Degtyarev Sergej / 1983 | C68: М | D68: 1010.89 | E68: 3
A69: 67 | B69: Невмержицкая Анна / Nevmerzhitskaya Anna / 1997 | C69: Ж | D69: 1000.74 | E69: 3
A70: 68 | B70: Сердитов Вадим / Serditov Vadim / 1993 | C70: М | D70: 996.06 | E70: 2
A71: 69 | B71: Козич Андрей / Kozich Andrej / 1986 | C71: М | D71: 983.31 | E71: 1
A72: 70 | B72: Грек Илья / Grek Ilya / 1992 | C72: М | D72: 980.01 | E72: 3
A73: 71 | B73: Полякова Анна / Polyakova Anna / 1987 | C73: Ж | D73: 977.05 | E73: 5
A74: 72 | B74: Свечников Антон / Svechnikov Anton / 1991 | C74: М | D74: 970.32 | E74: 3
A75: 73 | B75: Палий Андрей / Palij Andrej / 1984 | C75: М | D75: 966.61 | E75: 5
A76: 74 | B76: Грабовец Павел / Grabovets Pavel / 1981 | C76: М | D76: 954.39 | E76: 1
A77: 75 | B77: Шепетько Сергей / Shepetko Sergej / 1987 | C77: М | D77: 954.07 | E77: 6
A78: 76 | B78: Журавлёва Оксана / Zhuravljova Oksana / 1980 | C78: Ж | D78: 945.63 | E78: 3
A79: 77 | B79: Осадчий Константин / Osadchij Konstantin / 1985 | C79: М | D79: 921.29 | E79: 1
A80: 78 | B80: Веремейчик Елена / Veremejchik Elena / 1986 | C80: Ж | D80: 917.61 | E80: 3
A81: 79 | B81: Борисевич Анастасия / Borisevich Anastasiya / 1985 | C81: Ж | D81: 915.02 | E81: 3
A82: 80 | B82: Казарин Дмитрий / Kazarin Dmitrij / 1994 | C82: М | D82: 887.44 | E82: 5
A83: 81 | B83: Пехтерева Татьяна / Pehtereva Tatyana / 1987 | C83: Ж | D83: 887.39 | E83: 3
A84: 82 | B84: Леденёв Андрей / Ledenjov Andrej / 1971 | C84: М | D84: 877.27 | E84: 2
A85: 83 | B85: Астапов Владимир / Astapov Vladimir / 1977 | C85: М | D85: 859.33 | E85: 2
A86: 84 | B86: Крус Виктор / Krus Viktor / 1980 | C86: М | D86: 849.72 | E86: 4
A87: 85 | B87: Шклярик Олег / Shklyarik Oleg / 1970 | C87: М | D87: 839.05 | E87: 3
A88: 86 | B88: Нестерович Сергей / Nesterovich Sergej / 1994 | C88: М | D88: 838.05 | E88: 2
A89: 87 | B89: Плодунов Захар / Plodunov Zahar / 1993 | C89: М | D89: 837.99 | E89: 2
A90: 88 | B90: Казак Дмитрий / Kazak Dmitrij / 1979 | C90: М | D90: 835.01 | E90: 2
A91: 89 | B91: Никонов Максим / Nikonov Maksim / 1979 | C91: М | D91: 828.59 | E91: 2
A92: 90 | B92: Ермохин Максим / Ermohin Maksim / 1975 | C92: М | D92: 820.29 | E92: 2
A93: 91 | B93: Жила Анастасия / Zhila Anastasiya / 1994 | C93: Ж | D93: 813.31 | E93: 3
A94: 92 | B94: Окромешко Антон / Okromeshko Anton / 1990 | C94: М | D94: 809.79 | E94: 1
A95: 93 | B95: Гилевич Кристина / Gilevich Kristina / 1994 | C95: Ж | D95: 806.14 | E95: 2
A96: 94 | B96: Миканович Антон / Mikanovich Anton / 1990 | C96: М | D96: 805.76 | E96: 3
A97: 95 | B97: Карпович Владимир / Karpovich Vladimir / 1983 | C97: М | D97: 804.71 | E97: 4
A98: 96 | B98: Кирcанов Алексей / Kircanov Aleksej / 1981 | C98: М | D98: 800.91 | E98: 2
A99: 97 | B99: Солодкин Сергей / Solodkin Sergej / 1984 | C99: М | D99: 798.46 | E99: 2
A100: 98 | B100: Волков Николай / Volkov Nikolaj / 1989 | C100: М | D100: 780.99 | E100: 2
A101: 99 | B101: Величко Павел / Velichko Pavel / 1982 | C101: М | D101: 779.55 | E101: 2
A102: 100 | B102: McTavish John / McTavish John / 1987 | C102: М | D102: 778.08 | E102: 2
A103: 101 | B103: Фенченко Алексей / Fenchenko Aleksej / 1989 | C103: М | D103: 768.07 | E103: 1
A104: 102 | B104: Делендик Надежда / Delendik Nadezhda / 1987 | C104: Ж | D104: 766.62 | E104: 2
A105: 103 | B105: Лисовский Павел / Lisovskij Pavel / 1986 | C105: М | D105: 761.4 | E105: 2
A106: 104 | B106: Якубовский Игорь / Yakubovskij Igor / 1984 | C106: М | D106: 741.17 | E106: 5
A107: 105 | B107: Кордунская Екатерина / Kordunskaya Ekaterina / 1983 | C107: Ж | D107: 730.53 | E107: 2
A108: 106 | B108: Хамицевич Михаил / Hamitsevich Mihail / 1980 | C108: М | D108: 724.43 | E108: 3
A109: 107 | B109: Титуленко Егор / Titulenko Egor / 1983 | C109: М | D109: 720.56 | E109: 2
A110: 108 | B110: Некрасов Василий / Nekrasov Vasilij / 1986 | C110: М | D110: 715.21 | E110: 1
A111: 109 | B111: Брагин Иван / Bragin Ivan / 1986 | C111: М | D111: 714.28 | E111: 1
A112: 110 | B112: Чернель Татьяна / Chernel Tatyana / 1982 | C112: Ж | D112: 710.82 | E112: 2
A113: 111 | B113: Адамович Ирина / Adamovich Irina / 1973 | C113: Ж | D113: 708.53 | E113: 2
A114: 112 | B114: Жданович Александра / Zhdanovich Aleksandra / 1985 | C114: Ж | D114: 707.79 | E114: 3
A115: 113 | B115: Маковский Дмитрий / Makovskij Dmitrij / 1981 | C115: М | D115: 705.98 | E115: 2
A116: 114 | B116: Попов Юрий / Popov Yurij / 1969 | C116: М | D116: 702.17 | E116: 1
A117: 115 | B117: Новик Анастасия / Novik Anastasiya / 1985 | C117: Ж | D117: 700.5 | E117: 2
A118: 116 | B118: Пухаева Светлана / Puhaeva Svetlana / 1980 | C118: Ж | D118: 697.87 | E118: 2
A119: 117 | B119: Сіпачоў Аляксей / Sіpachou Alyaksej / 1979 | C119: М | D119: 697.53 | E119: 2
A120: 118 | B120: Новікаў Анатоль / Novіkau Anatol / 1984 | C120: М | D120: 694.1 | E120: 1
A121: 119 | B121: Полещук Татьяна / Poleschuk Tatyana / 1988 | C121: Ж | D121: 694.1 | E121: 1
A122: 120 | B122: Балашов Никита / Balashov Nikita / 1983 | C122: М | D122: 685.26 | E122: 2
A123: 121 | B123: Белинская Галина / Belinskaya Galina / 1980 | C123: Ж | D123: 684.25 | E123: 1
A124: 122 | B124: Тимошенко Алёна / Timoshenko Aljona / 1982 | C124: Ж | D124: 683.83 | E124: 2
A125: 123 | B125: Мартынов Дмитрий / Martynov Dmitrij / 1984 | C125: М | D125: 683.5 | E125: 2
A126: 124 | B126: Юкевич Александр / Yukevich Aleksandr / 1983 | C126: М | D126: 678.04 | E126: 2
A127: 125 | B127: Гидлевский Дмитрий / Gidlevskij Dmitrij / 1986 | C127: М | D127: 668.6 | E127: 2
A128: 126 | B128: Выборный Александр / Vybornyj Aleksandr / 1985 | C128: М | D128: 661.15 | E128: 2
A129: 127 | B129: Олин Денис / Olin Denis / 1976 | C129: М | D129: 657.88 | E129: 2
A130: 128 | B130: Лещевич Валерий / Leschevich Valerij / 1989 | C130: М | D130: 655.4 | E130: 2
A131: 129 | B131: Дашин Михаил / Dashin Mihail / 1986 | C131: М | D131: 646.37 | E131: 3
A132: 130 | B132: Арзамасов Илья / Arzamasov Ilya / 1987 | C132: М | D132: 637.16 | E132: 1
A133: 131 | B133: Остаповец Евгений / Ostapovets Evgenij / 1990 | C133: М | D133: 635.24 | E133: 2
A134: 132 | B134: Обухова Екатерина / Obuhova Ekaterina / 1978 | C134: Ж | D134: 631.62 | E134: 1
A135: 133 | B135: Шахметова Наташа / Shahmetova Natasha / 1992 | C135: Ж | D135: 630.76 | E135: 2
A136: 134 | B136: Сикорская Настя / Sikorskaya Nastya / 1983 | C136: Ж | D136: 630.72 | E136: 2
A137: 135 | B137: Бабицкий Кирилл / Babitskij Kirill / 1998 | C137: М | D137: 628.52 | E137: 1
A138: 136 | B138: Шило Руслан / Shilo Ruslan / 1993 | C138: М | D138: 623.79 | E138: 2
A139: 137 | B139: Жучков Алексей / Zhuchkov Aleksej / 1985 | C139: М | D139: 621.9 | E139: 5
A140: 138 | B140: Барановский Алексей / Baranovskij Aleksej / 1981 | C140: М | D140: 619.65 | E140: 2
A141: 139 | B141: Нечаев Владимир / Nechaev Vladimir / 1995 | C141: М | D141: 618.72 | E141: 2
A142: 140 | B142: Кондяр Павел / Kondyar Pavel / 1993 | C142: М | D142: 616.63 | E142: 2
A143: 141 | B143: Жучин Алексей / Zhuchin Aleksej / 1983 | C143: М | D143: 616.21 | E143: 2
A144: 142 | B144: Цвирко Артур / Tsvirko Artur / 1991 | C144: М | D144: 615.19 | E144: 1
A145: 143 | B145: Арабиенко Татьяна / Arabienko Tatyana / 1986 | C145: Ж | D145: 609 | E145: 1
A146: 144 | B146: Медвецкий Денис / Medvetskij Denis / 1986 | C146: М | D146: 604.07 | E146: 4
A147: 145 | B147: Сорокин Денис / Sorokin Denis / 1998 | C147: М | D147: 597.39 | E147: 1
A148: 146 | B148: Прокопович Ростислав / Prokopovich Rostislav / 1982 | C148: М | D148: 596.84 | E148: 1
A149: 147 | B149: Кислицын Артем / Kislitsyn Artem / 1992 | C149: М | D149: 596.32 | E149: 1
A150: 148 | B150: Нагорнюк Михаил / Nagornyuk Mihail / 1984 | C150: М | D150: 593.22 | E150: 1
A151: 149 | B151: Королёв Максим / Koroljov Maksim / 1989 | C151: М | D151: 593.12 | E151: 2
A152: 150 | B152: Зятиков Евгений / Zyatikov Evgenij / 1982 | C152: М | D152: 590.72 | E152: 4
A153: 151 | B153: Лещинский Владимир / Leschinskij Vladimir / 1983 | C153: М | D153: 579.29 | E153: 1
A154: 152 | B154: Куцун Надежда / Kutsun Nadezhda / 1982 | C154: Ж | D154: 578.98 | E154: 1
A155: 153 | B155: Гусаревич Денис / Gusarevich Denis / 1983 | C155: М | D155: 578.42 | E155: 1
A156: 154 | B156: Веремейчик Юрий / Veremejchik Yurij / 1979 | C156: М | D156: 572.58 | E156: 2
A157: 155 | B157: Михно Борис / Mihno Boris / 1982 | C157: М | D157: 570.05 | E157: 3
A158: 156 | B158: Никифоров Дмитрий / Nikiforov Dmitrij / 1989 | C158: М | D158: 565.02 | E158: 2
A159: 157 | B159: Жданович Максим / Zhdanovich Maksim / 1987 | C159: М | D159: 561.73 | E159: 1
A160: 158 | B160: Зеленко Дмитрий / Zelenko Dmitrij / 1987 | C160: М | D160: 559.98 | E160: 2
A161: 159 | B161: Чудаков Владислав / Chudakov Vladislav / 1977 | C161: М | D161: 557.16 | E161: 3
A162: 160 | B162: Колташова Елена / Koltashova Elena / 1984 | C162: Ж | D162: 553.63 | E162: 1
A163: 161 | B163: Иванчик Константин / Ivanchik Konstantin / 1983 | C163: М | D163: 550.69 | E163: 2
A164: 162 | B164: Радиончик Александр / Radionchik Aleksandr / 1985 | C164: М | D164: 550.07 | E164: 3
A165: 163 | B165: Трасковский Дмитрий / Traskovskij Dmitrij / 1986 | C165: М | D165: 549.5 | E165: 1
A166: 164 | B166: Драгун Борис / Dragun Boris / 1970 | C166: М | D166: 547 | E166: 2
A167: 165 | B167: Шапелевич Максим / Shapelevich Maksim / 1987 | C167: М | D167: 544.35 | E167: 3
A168: 166 | B168: Минько Алексей / Minko Aleksej / 1997 | C168: М | D168: 544.18 | E168: 1
A169: 167 | B169: Рачковский Сергей / Rachkovskij Sergej / 1988 | C169: М | D169: 541.83 | E169: 1
A170: 168 | B170: Фомина Ирина / Fomina Irina / 1986 | C170: Ж | D170: 540.02 | E170: 2
A171: 169 | B171: Тофоров Дмитрий / Toforov Dmitrij / 1991 | C171: М | D171: 536.69 | E171: 1
A172: 170 | B172: Гайдуков Александр / Gajdukov Aleksandr / 1989 | C172: М | D172: 535.08 | E172: 2
A173: 171 | B173: Чернышев Дмитрий / Chernyshev Dmitrij / 1987 | C173: М | D173: 533.11 | E173: 2
A174: 172 | B174: Баронов Роман / Baronov Roman / 1993 | C174: М | D174: 530.39 | E174: 2
A175: 173 | B175: Горбач Максим / Gorbach Maksim / 1983 | C175: М | D175: 527.3 | E175: 1
A176: 174 | B176: Ярмончик Игорь / Yarmonchik Igor / 1985 | C176: М | D176: 521.39 | E176: 2
A177: 175 | B177: Чичин Юрий / Chichin Yurij / 1979 | C177: М | D177: 520.88 | E177: 3
A178: 176 | B178: Аржаников Евгений / Arzhanikov Evgenij / 1976 | C178: М | D178: 518.88 | E178: 3
A179: 177 | B179: Михалкин Сергей / Mihalkin Sergej / 1989 | C179: Ж | D179: 516.82 | E179: 1
A180: 178 | B180: Суханова Надежда / Suhanova Nadezhda / 1994 | C180: Ж | D180: 511.08 | E180: 1
A181: 179 | B181: Григорьев Никита / Grigorev Nikita / 1990 | C181: М | D181: 509.9 | E181: 1
A182: 180 | B182: Пучик Александр / Puchik Aleksandr / 1983 | C182: М | D182: 509.07 | E182: 1
A183: 181 | B183: Сафроненко Андрей / Safronenko Andrej / 1984 | C183: М | D183: 505.33 | E183: 1
A184: 182 | B184: Ланин Иван / Lanin Ivan / 1989 | C184: М | D184: 500.97 | E184: 2
A185: 183 | B185: Новиков Денис / Novikov Denis / 1989 | C185: М | D185: 500.64 | E185: 2
A186: 184 | B186: Толкачев Дмитрий / Tolkachev Dmitrij / 1971 | C186: М | D186: 500.3 | E186: 1
A187: 185 | B187: Злобин Денис / Zlobin Denis / 1982 | C187: М | D187: 497.76 | E187: 1
A188: 186 | B188: Кожан Михаил / Kozhan Mihail / 1946 | C188: М | D188: 493.99 | E188: 2
A189: 187 | B189: Арловская Кристина / Arlovskaya Kristina / 1989 | C189: Ж | D189: 493.59 | E189: 2
A190: 188 | B190: Голубева Елена / Golubeva Elena / 1987 | C190: Ж | D190: 493.31 | E190: 2
A191: 189 | B191: Шестаков Геннадий / Shestakov Gennadij / 1962 | C191: М | D191: 491.66 | E191: 1
A192: 190 | B192: Зеленкевич Валентина / Zelenkevich Valentina / 1999 | C192: Ж | D192: 487.79 | E192: 1
A193: 191 | B193: Диксон Катерина / Dikson Katerina / 1993 | C193: Ж | D193: 486.5 | E193: 1
A194: 192 | B194: Бегун Егор / Begun Egor / 1988 | C194: М | D194: 483.08 | E194: 2
A195: 193 | B195: Мурашов Владимир / Murashov Vladimir / 1983 | C195: М | D195: 476.91 | E195: 2
A196: 194 | B196: Кукобникова Вита / Kukobnikova Vita / 1993 | C196: Ж | D196: 476.35 | E196: 3
A197: 195 | B197: Павловская Светлана / Pavlovskaya Svetlana / 1984 | C197: Ж | D197: 474.55 | E197: 2
A198: 196 | B198: Николаевский Станислав / Nikolaevskij Stanislav / 1985 | C198: М | D198: 473.96 | E198: 1
A199: 197 | B199: Радчук Алеся / Radchuk Alesya / 1996 | C199: Ж | D199: 473.71 | E199: 1
A200: 198 | B200: Кохан Виталий / Kohan Vitalij / 1982 | C200: М | D200: 470.69 | E200: 2
A201: 199 | B201: Савич Евгений / Savich Evgenij / 1980 | C201: М | D201: 468.51 | E201: 2
... 571 more rows

Sheet Рейтинг М_10.2018
A2: № п/п | B2: Фамилия, Имя, Год рождения | C2: Пол | D2: Сумма баллов
A3: 1 | B3: Синица Кирилл / Sinitsa Kirill / 1981 | C3: М | D3: 3941.04 | E3: 7
A4: 2 | B4: Молочко Александр / Molochko Aleksandr / 1981 | C4: М | D4: 3134.41 | E4: 6
A5: 3 | B5: Тюев Даниил / Tyuev Daniil / 1977 | C5: М | D5: 2545.28 | E5: 7
A6: 4 | B6: Крисенков Алексей / Krisenkov Aleksej / 1983 | C6: М | D6: 2426.5 | E6: 7
A7: 5 | B7: Храмов Антон / Hramov Anton / 1991 | C7: М | D7: 2199.64 | E7: 5
A8: 6 | B8: Попадюк Игорь / Popadyuk Igor / 1982 | C8: М | D8: 2061.48 | E8: 6
A9: 7 | B9: Федорович Николай / Fedorovich Nikolaj / 1959 | C9: М | D9: 2032.55 | E9: 6
A10: 8 | B10: Мальков Валентин / Malkov Valentin / 1988 | C10: М | D10: 2010.14 | E10: 5
A11: 9 | B11: Харитонов Иван / Haritonov Ivan / 1973 | C11: М | D11: 1966.13 | E11: 5
A12: 10 | B12: Леонов Иван / Leonov Ivan / 1986 | C12: М | D12: 1956.11 | E12: 4
A13: 11 | B13: Исаев Антон / Isaev Anton / 1979 | C13: М | D13: 1862.81 | E13: 2
A14: 12 | B14: Скуратович Антон / Skuratovich Anton / 1985 | C14: М | D14: 1857.4 | E14: 6
A15: 13 | B15: Лысенко Павел / Lysenko Pavel / 1966 | C15: М | D15: 1835.31 | E15: 2
A16: 14 | B16: Березовский Андрей / Berezovskij Andrej / 1973 | C16: М | D16: 1833.01 | E16: 4
A17: 15 | B17: Селютин Владимир / Selyutin Vladimir / 1990 | C17: М | D17: 1827.1 | E17: 6
A18: 16 | B18: Побединский Александр / Pobedinskij Aleksandr / 1983 | C18: М | D18: 1723.11 | E18: 2
A19: 17 | B19: Ласюк Юрий / Lasyuk Yurij / 1987 | C19: М | D19: 1721.04 | E19: 5
A20: 18 | B20: Вагин Андрей / Vagin Andrej / 1989 | C20: М | D20: 1672.58 | E20: 3
A21: 19 | B21: Коровец Богдан / Korovets Bogdan / 1976 | C21: М | D21: 1653.04 | E21: 6
A22: 20 | B22: Бузо Александр / Buzo Aleksandr / 1982 | C22: М | D22: 1646.8 | E22: 5
A23: 21 | B23: Маркевич Денис / Markevich Denis / 1981 | C23: М | D23: 1596.33 | E23: 4
A24: 22 | B24: Хорошавин Вячеслав / Horoshavin Vyacheslav / 1985 | C24: М | D24: 1594.99 | E24: 5
A25: 23 | B25: Борисевич Леонид / Borisevich Leonid / 1969 | C25: М | D25: 1590.61 | E25: 3
A26: 24 | B26: Лойко Сергей / Lojko Sergej / 1985 | C26: М | D26: 1553.7 | E26: 5
A27: 25 | B27: Молчан Александр / Molchan Aleksandr / 1988 | C27: М | D27: 1552.52 | E27: 5
A28: 26 | B28: Тарасенко Павел / Tarasenko Pavel / 1983 | C28: М | D28: 1528.96 | E28: 4
A29: 27 | B29: Володько Андрей / Volodko Andrej / 1986 | C29: М | D29: 1513.7 | E29: 5
A30: 28 | B30: Ходан Александр / Hodan Aleksandr / 1988 | C30: М | D30: 1488.62 | E30: 3
A31: 29 | B31: Евсюченя Александр / Evsyuchenya Aleksandr / 1991 | C31: М | D31: 1470.28 | E31: 3
A32: 30 | B32: Алексеев Алексей / Alekseev Aleksej / 1980 | C32: М | D32: 1458.74 | E32: 4
A33: 31 | B33: Овсиюк Богдан / Ovsiyuk Bogdan / 1993 | C33: М | D33: 1457.13 | E33: 3
A34: 32 | B34: Лисовский Виктор / Lisovskij Viktor / 1964 | C34: М | D34: 1415.23 | E34: 4
A35: 33 | B35: Сидоревич Александр / Sidorevich Aleksandr / 1985 | C35: М | D35: 1397.38 | E35: 3
A36: 34 | B36: Глушков Александр / Glushkov Aleksandr / 1980 | C36: М | D36: 1390.12 | E36: 3
A37: 35 | B37: Подрез Ярослав / Podrez Yaroslav / 1996 | C37: М | D37: 1350.06 | E37: 3
A38: 36 | B38: Лесковец Александр / Leskovets Aleksandr / 1990 | C38: М | D38: 1321.32 | E38: 3
A39: 37 | B39: Мосийчук Максим / Mosijchuk Maksim / 1984 | C39: М | D39: 1292.91 | E39: 3
A40: 38 | B40: Католиков Роман / Katolikov Roman / 1985 | C40: М | D40: 1257.08 | E40: 5
A41: 39 | B41: Герасимук Юрий / Gerasimuk Yurij / 1992 | C41: М | D41: 1255.94 | E41: 3
A42: 40 | B42: Журавлёв Андрей / Zhuravljov Andrej / 1978 | C42: М | D42: 1226.42 | E42: 3
A43: 41 | B43: Лавник Игорь / Lavnik Igor / 1983 | C43: М | D43: 1225.53 | E43: 4
A44: 42 | B44: Мартысевич Роман / Martysevich Roman / 1993 | C44: М | D44: 1200.08 | E44: 2
A45: 43 | B45: Суховей Михаил / Suhovej Mihail / 1991 | C45: М | D45: 1118.68 | E45: 2
A46: 44 | B46: Тихонов Василий / Tihonov Vasilij / 1993 | C46: М | D46: 1086.92 | E46: 2
A47: 45 | B47: Пивень Андрей / Piven Andrej / 1992 | C47: М | D47: 1066.77 | E47: 1
A48: 46 | B48: Печёнов Георгий / Pechjonov Georgij / 1975 | C48: М | D48: 1042.76 | E48: 4
A49: 47 | B49: Генсировский Павел / Gensirovskij Pavel / 1979 | C49: М | D49: 1041.15 | E49: 1
A50: 48 | B50: Рагойша Пётр / Ragojsha Pjotr / 1976 | C50: М | D50: 1041.07 | E50: 2
A51: 49 | B51: Орловский Павел / Orlovskij Pavel / 1989 | C51: М | D51: 1034.49 | E51: 3
A52: 50 | B52: Брытько Роман / Brytko Roman / 1995 | C52: М | D52: 1017.86 | E52: 4
A53: 51 | B53: Жидович Вадим / Zhidovich Vadim / 1984 | C53: М | D53: 1014.54 | E53: 4
A54: 52 | B54: Дегтярев Сергей / Degtyarev Sergej / 1983 | C54: М | D54: 1010.89 | E54: 3
A55: 53 | B55: Сердитов Вадим / Serditov Vadim / 1993 | C55: М | D55: 996.06 | E55: 2
A56: 54 | B56: Козич Андрей / Kozich Andrej / 1986 | C56: М | D56: 983.31 | E56: 1
A57: 55 | B57: Грек Илья / Grek Ilya / 1992 | C57: М | D57: 980.01 | E57: 3
A58: 56 | B58: Свечников Антон / Svechnikov Anton / 1991 | C58: М | D58: 970.32 | E58: 3
A59: 57 | B59: Палий Андрей / Palij Andrej / 1984 | C59: М | D59: 966.61 | E59: 5
A60: 58 | B60: Грабовец Павел / Grabovets Pavel / 1981 | C60: М | D60: 954.39 | E60: 1
A61: 59 | B61: Шепетько Сергей / Shepetko Sergej / 1987 | C61: М | D61: 954.07 | E61: 6
A62: 60 | B62: Осадчий Константин / Osadchij Konstantin / 1985 | C62: М | D62: 921.29 | E62: 1
A63: 61 | B63: Казарин Дмитрий / Kazarin Dmitrij / 1994 | C63: М | D63: 887.44 | E63: 5
A64: 62 | B64: Леденёв Андрей / Ledenjov Andrej / 1971 | C64: М | D64: 877.27 | E64: 2
A65: 63 | B65: Астапов Владимир / Astapov Vladimir / 1977 | C65: М | D65: 859.33 | E65: 2
A66: 64 | B66: Крус Виктор / Krus Viktor / 1980 | C66: М | D66: 849.72 | E66: 4
A67: 65 | B67: Шклярик Олег / Shklyarik Oleg / 1970 | C67: М | D67: 839.05 | E67: 3
A68: 66 | B68: Нестерович Сергей / Nesterovich Sergej / 1994 | C68: М | D68: 838.05 | E68: 2
A69: 67 | B69: Плодунов Захар / Plodunov Zahar / 1993 | C69: М | D69: 837.99 | E69: 2
A70: 68 | B70: Казак Дмитрий / Kazak Dmitrij / 1979 | C70: М | D70: 835.01 | E70: 2
A71: 69 | B71: Никонов Максим / Nikonov Maksim / 1979 | C71: М | D71: 828.59 | E71: 2
A72: 70 | B72: Ермохин Максим / Ermohin Maksim / 1975 | C72: М | D72: 820.29 | E72: 2
A73: 71 | B73: Окромешко Антон / Okromeshko Anton / 1990 | C73: М | D73: 809.79 | E73: 1
A74: 72 | B74: Миканович Антон / Mikanovich Anton / 1990 | C74: М | D74: 805.76 | E74: 3
A75: 73 | B75: Карпович Владимир / Karpovich Vladimir / 1983 | C75: М | D75: 804.71 | E75: 4
A76: 74 | B76: Кирcанов Алексей / Kircanov Aleksej / 1981 | C76: М | D76: 800.91 | E76: 2
A77: 75 | B77: Солодкин Сергей / Solodkin Sergej / 1984 | C77: М | D77: 798.46 | E77: 2
A78: 76 | B78: Волков Николай / Volkov Nikolaj / 1989 | C78: М | D78: 780.99 | E78: 2
A79: 77 | B79: Величко Павел / Velichko Pavel / 1982 | C79: М | D79: 779.55 | E79: 2
A80: 78 | B80: McTavish John / McTavish John / 1987 | C80: М | D80: 778.08 | E80: 2
A81: 79 | B81: Фенченко Алексей / Fenchenko Aleksej / 1989 | C81: М | D81: 768.07 | E81: 1
A82: 80 | B82: Лисовский Павел / Lisovskij Pavel / 1986 | C82: М | D82: 761.4 | E82: 2
A83: 81 | B83: Якубовский Игорь / Yakubovskij Igor / 1984 | C83: М | D83: 741.17 | E83: 5
A84: 82 | B84: Хамицевич Михаил / Hamitsevich Mihail / 1980 | C84: М | D84: 724.43 | E84: 3
A85: 83 | B85: Титуленко Егор / Titulenko Egor / 1983 | C85: М | D85: 720.56 | E85: 2
A86: 84 | B86: Некрасов Василий / Nekrasov Vasilij / 1986 | C86: М | D86: 715.21 | E86: 1
A87: 85 | B87: Брагин Иван / Bragin Ivan / 1986 | C87: М | D87: 714.28 | E87: 1
A88: 86 | B88: Маковский Дмитрий / Makovskij Dmitrij / 1981 | C88: М | D88: 705.98 | E88: 2
A89: 87 | B89: Попов Юрий / Popov Yurij / 1969 | C89: М | D89: 702.17 | E89: 1
A90: 88 | B90: Сіпачоў Аляксей / Sіpachou Alyaksej / 1979 | C90: М | D90: 697.53 | E90: 2
A91: 89 | B91: Новікаў Анатоль / Novіkau Anatol / 1984 | C91: М | D91: 694.1 | E91: 1
A92: 90 | B92: Балашов Никита / Balashov Nikita / 1983 | C92: М | D92: 685.26 | E92: 2
A93: 91 | B93: Мартынов Дмитрий / Martynov Dmitrij / 1984 | C93: М | D93: 683.5 | E93: 2
A94: 92 | B94: Юкевич Александр / Yukevich Aleksandr / 1983 | C94: М | D94: 678.04 | E94: 2
A95: 93 | B95: Гидлевский Дмитрий / Gidlevskij Dmitrij / 1986 | C95: М | D95: 668.6 | E95: 2
A96: 94 | B96: Выборный Александр / Vybornyj Aleksandr / 1985 | C96: М | D96: 661.15 | E96: 2
A97: 95 | B97: Олин Денис / Olin Denis / 1976 | C97: М | D97: 657.88 | E97: 2
A98: 96 | B98: Лещевич Валерий / Leschevich Valerij / 1989 | C98: М | D98: 655.4 | E98: 2
A99: 97 | B99: Дашин Михаил / Dashin Mihail / 1986 | C99: М | D99: 646.37 | E99: 3
A100: 98 | B100: Арзамасов Илья / Arzamasov Ilya / 1987 | C100: М | D100: 637.16 | E100: 1
A101: 99 | B101: Остаповец Евгений / Ostapovets Evgenij / 1990 | C101: М | D101: 635.24 | E101: 2
A102: 100 | B102: Бабицкий Кирилл / Babitskij Kirill / 1998 | C102: М | D102: 628.52 | E102: 1
A103: 101 | B103: Шило Руслан / Shilo Ruslan / 1993 | C103: М | D103: 623.79 | E103: 2
A104: 102 | B104: Жучков Алексей / Zhuchkov Aleksej / 1985 | C104: М | D104: 621.9 | E104: 5
A105: 103 | B105: Барановский Алексей / Baranovskij Aleksej / 1981 | C105: М | D105: 619.65 | E105: 2
A106: 104 | B106: Нечаев Владимир / Nechaev Vladimir / 1995 | C106: М | D106: 618.72 | E106: 2
A107: 105 | B107: Кондяр Павел / Kondyar Pavel / 1993 | C107: М | D107: 616.63 | E107: 2
A108: 106 | B108: Жучин Алексей / Zhuchin Aleksej / 1983 | C108: М | D108: 616.21 | E108: 2
A109: 107 | B109: Цвирко Артур / Tsvirko Artur / 1991 | C109: М | D109: 615.19 | E109: 1
A110: 108 | B110: Медвецкий Денис / Medvetskij Denis / 1986 | C110: М | D110: 604.07 | E110: 4
A111: 109 | B111: Сорокин Денис / Sorokin Denis / 1998 | C111: М | D111: 597.39 | E111: 1
A112: 110 | B112: Прокопович Ростислав / Prokopovich Rostislav / 1982 | C112: М | D112: 596.84 | E112: 1
A113: 111 | B113: Кислицын Артем / Kislitsyn Artem / 1992 | C113: М | D113: 596.32 | E113: 1
A114: 112 | B114: Нагорнюк Михаил / Nagornyuk Mihail / 1984 | C114: М | D114: 593.22 | E114: 1
A115: 113 | B115: Королёв Максим / Koroljov Maksim / 1989 | C115: М | D115: 593.12 | E115: 2
A116: 114 | B116: Зятиков Евгений / Zyatikov Evgenij / 1982 | C116: М | D116: 590.72 | E116: 4
A117: 115 | B117: Лещинский Владимир / Leschinskij Vladimir / 1983 | C117: М | D117: 579.29 | E117: 1
A118: 116 | B118: Гусаревич Денис / Gusarevich Denis / 1983 | C118: М | D118: 578.42 | E118: 1
A119: 117 | B119: Веремейчик Юрий / Veremejchik Yurij / 1979 | C119: М | D119: 572.58 | E119: 2
A120: 118 | B120: Михно Борис / Mihno Boris / 1982 | C120: М | D120: 570.05 | E120: 3
A121: 119 | B121: Никифоров Дмитрий / Nikiforov Dmitrij / 1989 | C121: М | D121: 565.02 | E121: 2
A122: 120 | B122: Жданович Максим / Zhdanovich Maksim / 1987 | C122: М | D122: 561.73 | E122: 1
A123: 121 | B123: Зеленко Дмитрий / Zelenko Dmitrij / 1987 | C123: М | D123: 559.98 | E123: 2
A124: 122 | B124: Чудаков Владислав / Chudakov Vladislav / 1977 | C124: М | D124: 557.16 | E124: 3
A125: 123 | B125: Иванчик Константин / Ivanchik Konstantin / 1983 | C125: М | D125: 550.69 | E125: 2
A126: 124 | B126: Радиончик Александр / Radionchik Aleksandr / 1985 | C126: М | D126: 550.07 | E126: 3
A127: 125 | B127: Трасковский Дмитрий / Traskovskij Dmitrij / 1986 | C127: М | D127: 549.5 | E127: 1
A128: 126 | B128: Драгун Борис / Dragun Boris / 1970 | C128: М | D128: 547 | E128: 2
A129: 127 | B129: Шапелевич Максим / Shapelevich Maksim / 1987 | C129: М | D129: 544.35 | E129: 3
A130: 128 | B130: Минько Алексей / Minko Aleksej / 1997 | C130: М | D130: 544.18 | E130: 1
A131: 129 | B131: Рачковский Сергей / Rachkovskij Sergej / 1988 | C131: М | D131: 541.83 | E131: 1
A132: 130 | B132: Тофоров Дмитрий / Toforov Dmitrij / 1991 | C132: М | D132: 536.69 | E132: 1
A133: 131 | B133: Гайдуков Александр / Gajdukov Aleksandr / 1989 | C133: М | D133: 535.08 | E133: 2
A134: 132 | B134: Чернышев Дмитрий / Chernyshev Dmitrij / 1987 | C134: М | D134: 533.11 | E134: 2
A135: 133 | B135: Баронов Роман / Baronov Roman / 1993 | C135: М | D135: 530.39 | E135: 2
A136: 134 | B136: Горбач Максим / Gorbach Maksim / 1983 | C136: М | D136: 527.3 | E136: 1
A137: 135 | B137: Ярмончик Игорь / Yarmonchik Igor / 1985 | C137: М | D137: 521.39 | E137: 2
A138: 136 | B138: Чичин Юрий / Chichin Yurij / 1979 | C138: М | D138: 520.88 | E138: 3
A139: 137 | B139: Аржаников Евгений / Arzhanikov Evgenij / 1976 | C139: М | D139: 518.88 | E139: 3
A140: 138 | B140: Григорьев Никита / Grigorev Nikita / 1990 | C140: М | D140: 509.9 | E140: 1
A141: 139 | B141: Пучик Александр / Puchik Aleksandr / 1983 | C141: М | D141: 509.07 | E141: 1
A142: 140 | B142: Сафроненко Андрей / Safronenko Andrej / 1984 | C142: М | D142: 505.33 | E142: 1
A143: 141 | B143: Ланин Иван / Lanin Ivan / 1989 | C143: М | D143: 500.97 | E143: 2
A144: 142 | B144: Новиков Денис / Novikov Denis / 1989 | C144: М | D144: 500.64 | E144: 2
A145: 143 | B145: Толкачев Дмитрий / Tolkachev Dmitrij / 1971 | C145: М | D145: 500.3 | E145: 1
A146: 144 | B146: Злобин Денис / Zlobin Denis / 1982 | C146: М | D146: 497.76 | E146: 1
A147: 145 | B147: Кожан Михаил / Kozhan Mihail / 1946 | C147: М | D147: 493.99 | E147: 2
A148: 146 | B148: Шестаков Геннадий / Shestakov Gennadij / 1962 | C148: М | D148: 491.66 | E148: 1
A149: 147 | B149: Бегун Егор / Begun Egor / 1988 | C149: М | D149: 483.08 | E149: 2
A150: 148 | B150: Мурашов Владимир / Murashov Vladimir / 1983 | C150: М | D150: 476.91 | E150: 2
A151: 149 | B151: Николаевский Станислав / Nikolaevskij Stanislav / 1985 | C151: М | D151: 473.96 | E151: 1
A152: 150 | B152: Кохан Виталий / Kohan Vitalij / 1982 | C152: М | D152: 470.69 | E152: 2
A153: 151 | B153: Савич Евгений / Savich Evgenij / 1980 | C153: М | D153: 468.51 | E153: 2
A154: 152 | B154: Ладеев Дмитрий / Ladeev Dmitrij / 1981 | C154: М | D154: 468.31 | E154: 2
A155: 153 | B155: Леверовский Александр / Leverovskij Aleksandr / 1988 | C155: М | D155: 464.23 | E155: 2
A156: 154 | B156: Хадорик Владимир / Hadorik Vladimir / 1986 | C156: М | D156: 463.85 | E156: 2
A157: 155 | B157: Крюков Дима / Kryukov Dima / 1988 | C157: М | D157: 461.34 | E157: 1
A158: 156 | B158: Иванцов Вячеслав / Ivantsov Vyacheslav / 1986 | C158: М | D158: 459.61 | E158: 2
A159: 157 | B159: Заречанский Юрий / Zarechanskij Yurij / 1980 | C159: М | D159: 457.06 | E159: 2
A160: 158 | B160: Бокша Сергей / Boksha Sergej / 1988 | C160: М | D160: 452.57 | E160: 2
A161: 159 | B161: Лукьяненко Александр / Lukyanenko Aleksandr / 1984 | C161: М | D161: 447.64 | E161: 1
A162: 160 | B162: Лукашенок Алексей / Lukashenok Aleksej / 1978 | C162: М | D162: 440.25 | E162: 1
A163: 161 | B163: Куратник Юрий / Kuratnik Yurij / 1987 | C163: М | D163: 438.86 | E163: 1
A164: 162 | B164: Стасевич Александр / Stasevich Aleksandr / 1987 | C164: М | D164: 437.49 | E164: 1
A165: 163 | B165: Богачев Борис / Bogachev Boris / 1991 | C165: М | D165: 437.06 | E165: 1
A166: 164 | B166: Комин Игорь / Komin Igor / 1959 | C166: М | D166: 433.81 | E166: 1
A167: 165 | B167: Поцелуев Сергей / Potseluev Sergej / 1973 | C167: М | D167: 433.46 | E167: 1
A168: 166 | B168: Насвит Дмитрий / Nasvit Dmitrij / 1986 | C168: М | D168: 429.36 | E168: 1
A169: 167 | B169: Хмелевский Антон / Hmelevskij Anton / 1984 | C169: М | D169: 428.94 | E169: 1
A170: 168 | B170: Камышкайло Анатолий / Kamyshkajlo Anatolij / 1981 | C170: М | D170: 427.49 | E170: 1
A171: 169 | B171: Филитарин Дмитрий / Filitarin Dmitrij / 1987 | C171: М | D171: 421.11 | E171: 1
A172: 170 | B172: Захаркин Сергей / Zaharkin Sergej / 1976 | C172: М | D172: 420.34 | E172: 1
A173: 171 | B173: Юлов Герман / Yulov German / 1993 | C173: М | D173: 417.45 | E173: 1
A174: 172 | B174: Дальниченко Юрий / Dalnichenko Yurij / 1985 | C174: М | D174: 412.78 | E174: 1
A175: 173 | B175: Малалетников Павел / Malaletnikov Pavel / 1982 | C175: М | D175: 411.79 | E175: 1
A176: 174 | B176: Чеботаев Сергей / Chebotaev Sergej / 1989 | C176: М | D176: 411.76 | E176: 1
A177: 175 | B177: Пешков Кирилл / Peshkov Kirill / 1989 | C177: М | D177: 410.69 | E177: 1
A178: 176 | B178: Копоть Александр / Kopot Aleksandr / 1992 | C178: М | D178: 404.89 | E178: 1
A179: 177 | B179: Искорцев Алексей / Iskortsev Aleksej / 1980 | C179: М | D179: 404 | E179: 2
A180: 178 | B180: Греков Игорь / Grekov Igor / 1970 | C180: М | D180: 400.21 | E180: 2
A181: 179 | B181: Курилович Дмитрий / Kurilovich Dmitrij / 1998 | C181: М | D181: 400 | E181: 1
A182: 180 | B182: Симогостицкий Александр / Simogostitskij Aleksandr / 1987 | C182: М | D182: 399.45 | E182: 2
A183: 181 | B183: Явтушенко Вадим / Yavtushenko Vadim / 1981 | C183: М | D183: 396.17 | E183: 3
A184: 182 | B184: Фомин Леонид / Fomin Leonid / 1983 | C184: М | D184: 395.64 | E184: 2
A185: 183 | B185: Щербаков Илья / Scherbakov Ilya / 1989 | C185: М | D185: 394.02 | E185: 2
A186: 184 | B186: Бокунович Дмитрий / Bokunovich Dmitrij / 1982 | C186: М | D186: 392.43 | E186: 1
A187: 185 | B187: Медведев Константин / Medvedev Konstantin / 1990 | C187: М | D187: 390.91 | E187: 1
A188: 186 | B188: Иолтуховский Владислав / Ioltuhovskij Vladislav / 1971 | C188: М | D188: 389.58 | E188: 2
A189: 187 | B189: Яцкевич Кирилл / Yatskevich Kirill / 2001 | C189: М | D189: 386.2 | E189: 1
A190: 188 | B190: Никитюк Алексей / Nikityuk Aleksej / 1985 | C190: М | D190: 386.19 | E190: 1
A191: 189 | B191: Таран Виталий / Taran Vitalij / 1983 | C191: М | D191: 386.12 | E191: 2
A192: 190 | B192: Михнюк Виктор / Mihnyuk Viktor / 1990 | C192: М | D192: 386.02 | E192: 1
A193: 191 | B193: Новиченко Антон / Novichenko Anton / 1997 | C193: М | D193: 383.67 | E193: 1
A194: 192 | B194: Осипенко Александр / Osipenko Aleksandr / 1977 | C194: М | D194: 383.31 | E194: 1
A195: 193 | B195: Тривашкевич Евгений / Trivashkevich Evgenij / 1996 | C195: М | D195: 382.83 | E195: 1
A196: 194 | B196: Ключеня Виталий / Klyuchenya Vitalij / 1982 | C196: М | D196: 382.53 | E196: 2
A197: 195 | B197: Комар Артем / Komar Artem / 1998 | C197: М | D197: 382.31 | E197: 3
A198: 196 | B198: Кошур Александр / Koshur Aleksandr / 1988 | C198: М | D198: 377.42 | E198: 1
A199: 197 | B199: Пісарчык Сяргей / Pіsarchyk Syargej / 1980 | C199: М | D199: 374.07 | E199: 1
A200: 198 | B200: Дубков Алексей / Dubkov Aleksej / 1984 | C200: М | D200: 373.51 | E200: 1
A201: 199 | B201: Совпель Максим / Sovpel Maksim / 1993 | C201: М | D201: 372.73 | E201: 1
... 316 more rows

Sheet Рейтинг Ж_10.2018
A2: № п/п | B2: Фамилия, Имя, Год рождения | C2: Пол | D2: Сумма баллов
A3: 1 | B3: Скирук Юлия / Skiruk Yuliya / 1988 | C3: Ж | D3: 2256.36 | E3: 5
A4: 2 | B4: Сулимчик Оксана / Sulimchik Oksana / 1986 | C4: Ж | D4: 2248.83 | E4: 3
A5: 3 | B5: Черкас Александра / Cherkas Aleksandra / 1992 | C5: Ж | D5: 1953.39 | E5: 6
A6: 4 | B6: Торубарова Татьяна / Torubarova Tatyana / 1983 | C6: Ж | D6: 1813.42 | E6: 3
A7: 5 | B7: Белая Юлия / Belaya Yuliya / 1988 | C7: Ж | D7: 1450.57 | E7: 4
A8: 6 | B8: Суховерхая Татьяна / Suhoverhaya Tatyana / 1986 | C8: Ж | D8: 1356.5 | E8: 3
A9: 7 | B9: Цвирбут Юлия / Tsvirbut Yuliya / 1992 | C9: Ж | D9: 1352.71 | E9: 3
A10: 8 | B10: Трубкина Анастасия / Trubkina Anastasiya / 1989 | C10: Ж | D10: 1334.44 | E10: 3
A11: 9 | B11: Едомская Вольга / Edomskaya Volga / 1987 | C11: Ж | D11: 1281.1 | E11: 5
A12: 10 | B12: Кликун Татьяна / Klikun Tatyana / 1989 | C12: Ж | D12: 1225.18 | E12: 4
A13: 11 | B13: Гилевич Диана / Gilevich Diana / 1993 | C13: Ж | D13: 1178.85 | E13: 3
A14: 12 | B14: Михно Алла / Mihno Alla / 1979 | C14: Ж | D14: 1143.49 | E14: 3
A15: 13 | B15: Милинкевич Елена / Milinkevich Elena / 1977 | C15: Ж | D15: 1107.72 | E15: 3
A16: 14 | B16: Гурская Татьяна / Gurskaya Tatyana / 1980 | C16: Ж | D16: 1041.15 | E16: 1
A17: 15 | B17: Невмержицкая Анна / Nevmerzhitskaya Anna / 1997 | C17: Ж | D17: 1000.74 | E17: 3
A18: 16 | B18: Полякова Анна / Polyakova Anna / 1987 | C18: Ж | D18: 977.05 | E18: 5
A19: 17 | B19: Журавлёва Оксана / Zhuravljova Oksana / 1980 | C19: Ж | D19: 945.63 | E19: 3
A20: 18 | B20: Веремейчик Елена / Veremejchik Elena / 1986 | C20: Ж | D20: 917.61 | E20: 3
A21: 19 | B21: Борисевич Анастасия / Borisevich Anastasiya / 1985 | C21: Ж | D21: 915.02 | E21: 3
A22: 20 | B22: Пехтерева Татьяна / Pehtereva Tatyana / 1987 | C22: Ж | D22: 887.39 | E22: 3
A23: 21 | B23: Жила Анастасия / Zhila Anastasiya / 1994 | C23: Ж | D23: 813.31 | E23: 3
A24: 22 | B24: Гилевич Кристина / Gilevich Kristina / 1994 | C24: Ж | D24: 806.14 | E24: 2
A25: 23 | B25: Делендик Надежда / Delendik Nadezhda / 1987 | C25: Ж | D25: 766.62 | E25: 2
A26: 24 | B26: Кордунская Екатерина / Kordunskaya Ekaterina / 1983 | C26: Ж | D26: 730.53 | E26: 2
A27: 25 | B27: Чернель Татьяна / Chernel Tatyana / 1982 | C27: Ж | D27: 710.82 | E27: 2
A28: 26 | B28: Адамович Ирина / Adamovich Irina / 1973 | C28: Ж | D28: 708.53 | E28: 2
A29: 27 | B29: Жданович Александра / Zhdanovich Aleksandra / 1985 | C29: Ж | D29: 707.79 | E29: 3
A30: 28 | B30: Новик Анастасия / Novik Anastasiya / 1985 | C30: Ж | D30: 700.5 | E30: 2
A31: 29 | B31: Пухаева Светлана / Puhaeva Svetlana / 1980 | C31: Ж | D31: 697.87 | E31: 2
A32: 30 | B32: Полещук Татьяна / Poleschuk Tatyana / 1988 | C32: Ж | D32: 694.1 | E32: 1
A33: 31 | B33: Белинская Галина / Belinskaya Galina / 1980 | C33: Ж | D33: 684.25 | E33: 1
A34: 32 | B34: Тимошенко Алёна / Timoshenko Aljona / 1982 | C34: Ж | D34: 683.83 | E34: 2
A35: 33 | B35: Обухова Екатерина / Obuhova Ekaterina / 1978 | C35: Ж | D35: 631.62 | E35: 1
A36: 34 | B36: Шахметова Наташа / Shahmetova Natasha / 1992 | C36: Ж | D36: 630.76 | E36: 2
A37: 35 | B37: Сикорская Настя / Sikorskaya Nastya / 1983 | C37: Ж | D37: 630.72 | E37: 2
A38: 36 | B38: Арабиенко Татьяна / Arabienko Tatyana / 1986 | C38: Ж | D38: 609 | E38: 1
A39: 37 | B39: Куцун Надежда / Kutsun Nadezhda / 1982 | C39: Ж | D39: 578.98 | E39: 1
A40: 38 | B40: Колташова Елена / Koltashova Elena / 1984 | C40: Ж | D40: 553.63 | E40: 1
A41: 39 | B41: Фомина Ирина / Fomina Irina / 1986 | C41: Ж | D41: 540.02 | E41: 2
A42: 40 | B42: Михалкин Сергей / Mihalkin Sergej / 1989 | C42: Ж | D42: 516.82 | E42: 1
A43: 41 | B43: Суханова Надежда / Suhanova Nadezhda / 1994 | C43: Ж | D43: 511.08 | E43: 1
A44: 42 | B44: Арловская Кристина / Arlovskaya Kristina / 1989 | C44: Ж | D44: 493.59 | E44: 2
A45: 43 | B45: Голубева Елена / Golubeva Elena / 1987 | C45: Ж | D45: 493.31 | E45: 2
A46: 44 | B46: Зеленкевич Валентина / Zelenkevich Valentina / 1999 | C46: Ж | D46: 487.79 | E46: 1
A47: 45 | B47: Диксон Катерина / Dikson Katerina / 1993 | C47: Ж | D47: 486.5 | E47: 1
A48: 46 | B48: Кукобникова Вита / Kukobnikova Vita / 1993 | C48: Ж | D48: 476.35 | E48: 3
A49: 47 | B49: Павловская Светлана / Pavlovskaya Svetlana / 1984 | C49: Ж | D49: 474.55 | E49: 2
A50: 48 | B50: Радчук Алеся / Radchuk Alesya / 1996 | C50: Ж | D50: 473.71 | E50: 1
A51: 49 | B51: Широкова Анастасия / Shirokova Anastasiya / 1988 | C51: Ж | D51: 468.13 | E51: 2
A52: 50 | B52: Недведская Елена / Nedvedskaya Elena / 1986 | C52: Ж | D52: 468.02 | E52: 2
A53: 51 | B53: Гриб Екатерина / Grib Ekaterina / 1981 | C53: Ж | D53: 462.73 | E53: 2
A54: 52 | B54: Литвинская Людмила / Litvinskaya Lyudmila / 1977 | C54: Ж | D54: 452.26 | E54: 2
A55: 53 | B55: Калвинковская Ольга / Kalvinkovskaya Olga / 1994 | C55: Ж | D55: 450.27 | E55: 1
A56: 54 | B56: Трухтанова Елена / Truhtanova Elena / 1985 | C56: Ж | D56: 442.91 | E56: 1
A57: 55 | B57: Туровец Ольга / Turovets Olga / 1979 | C57: Ж | D57: 437.98 | E57: 3
A58: 56 | B58: Гринько Анастасия / Grinko Anastasiya / 1993 | C58: Ж | D58: 436.17 | E58: 2
A59: 57 | B59: Григорьева Светлана / Grigoreva Svetlana / 1984 | C59: Ж | D59: 432.56 | E59: 2
A60: 58 | B60: Мурашкина Галина / Murashkina Galina / 1988 | C60: Ж | D60: 429.81 | E60: 2
A61: 59 | B61: Казакевич Ирина / Kazakevich Irina / 1969 | C61: Ж | D61: 421.29 | E61: 1
A62: 60 | B62: Янович Лена / Yanovich Lena / 1996 | C62: Ж | D62: 421.08 | E62: 1
A63: 61 | B63: Таранко Марта / Taranko Marta / 1990 | C63: Ж | D63: 419.34 | E63: 2
A64: 62 | B64: Кшановская Ирина / Kshanovskaya Irina / 1977 | C64: Ж | D64: 418.59 | E64: 2
A65: 63 | B65: Драгун Алина / Dragun Alina / 1993 | C65: Ж | D65: 412.75 | E65: 1
A66: 64 | B66: Сильванович Валерия / Silvanovich Valeriya / 1998 | C66: Ж | D66: 411.38 | E66: 2
A67: 65 | B67: Липницкая Виктория / Lipnitskaya Viktoriya / 1987 | C67: Ж | D67: 408.14 | E67: 2
A68: 66 | B68: Коледа Татьяна / Koleda Tatyana / 1990 | C68: Ж | D68: 400.24 | E68: 1
A69: 67 | B69: Стойчикова Ксения / Stojchikova Kseniya / 1997 | C69: Ж | D69: 389.2 | E69: 1
A70: 68 | B70: Танасейчук Анна / Tanasejchuk Anna / 1983 | C70: Ж | D70: 388.88 | E70: 1
A71: 69 | B71: Медведева Ольга / Medvedeva Olga / 1991 | C71: Ж | D71: 387.73 | E71: 1
A72: 70 | B72: Ткачук Дарья / Tkachuk Darya / 1981 | C72: Ж | D72: 387.54 | E72: 1
A73: 71 | B73: Необердина Мария / Neoberdina Mariya / 1987 | C73: Ж | D73: 379.23 | E73: 2
A74: 72 | B74: Крюкова Наталья / Kryukova Natalya / 1987 | C74: Ж | D74: 378.95 | E74: 1
A75: 73 | B75: Янченко Ксения / Yanchenko Kseniya / 1997 | C75: Ж | D75: 375.22 | E75: 1
A76: 74 | B76: Новикова Галина / Novikova Galina / 1975 | C76: Ж | D76: 374.79 | E76: 1
A77: 75 | B77: Федченко Ярослава / Fedchenko Yaroslava / 2002 | C77: Ж | D77: 370.4 | E77: 3
A78: 76 | B78: Грейд Юлия / Grejd Yuliya / 1986 | C78: Ж | D78: 359.03 | E78: 2
A79: 77 | B79: Куцакова Татьяна / Kutsakova Tatyana / 1987 | C79: Ж | D79: 358.23 | E79: 1
A80: 78 | B80: Зятикова Наталья / Zyatikova Natalya / 1983 | C80: Ж | D80: 356.69 | E80: 3
A81: 79 | B81: Ямбушева Катерина / Yambusheva Katerina / 1987 | C81: Ж | D81: 356.48 | E81: 1
A82: 80 | B82: Варданян Кристина / Vardanyan Kristina / 1981 | C82: Ж | D82: 350.21 | E82: 1
A83: 81 | B83: Войтович Татьяна / Vojtovich Tatyana / 1986 | C83: Ж | D83: 348.74 | E83: 3
A84: 82 | B84: Замахаева Мария / Zamahaeva Mariya / 1985 | C84: Ж | D84: 346.2 | E84: 1
A85: 83 | B85: Сорокина Марина / Sorokina Marina / 1981 | C85: Ж | D85: 340.72 | E85: 1
A86: 84 | B86: Кальвинковская Екатерина / Kalvinkovskaya Ekaterina / 1993 | C86: Ж | D86: 337.7 | E86: 1
A87: 85 | B87: Стойчикова Ксения / Stojchikova Kseniya / 1997 | C87: Ж | D87: 336.84 | E87: 1
A88: 86 | B88: Завалова Анастасия / Zavalova Anastasiya / 1994 | C88: Ж | D88: 335.32 | E88: 2
A89: 87 | B89: Лавриченок Светлана / Lavrichenok Svetlana / 1971 | C89: Ж | D89: 332.18 | E89: 1
A90: 88 | B90: Третьяк Екатерина / Tretyak Ekaterina / 1985 | C90: Ж | D90: 326.42 | E90: 1
A91: 89 | B91: Яцкевич Ольга / Yatskevich Olga / 1988 | C91: Ж | D91: 315.79 | E91: 1
A92: 90 | B92: Шир Алисия / Shir Alisiya / 1982 | C92: Ж | D92: 306.63 | E92: 1
A93: 91 | B93: Александрова Дарья / Aleksandrova Darya / 1995 | C93: Ж | D93: 296.74 | E93: 1
A94: 92 | B94: Коротких Елена / Korotkih Elena / 1984 | C94: Ж | D94: 296.26 | E94: 1
A95: 93 | B95: Козич Галина / Kozich Galina / 1990 | C95: Ж | D95: 289.4 | E95: 1
A96: 94 | B96: Зарубина Наталья / Zarubina Natalya / 1989 | C96: Ж | D96: 286.85 | E96: 1
A97: 95 | B97: Телегина София / Telegina Sofiya / 1991 | C97: Ж | D97: 286.58 | E97: 1
A98: 96 | B98: Марченко Людмила / Marchenko Lyudmila / 1972 | C98: Ж | D98: 284.22 | E98: 2
A99: 97 | B99: Жучина Катерина / Zhuchina Katerina / 1986 | C99: Ж | D99: 283.64 | E99: 2
A100: 98 | B100: Хлопцева Инга / Hloptseva Inga / 1982 | C100: Ж | D100: 283.57 | E100: 1
A101: 99 | B101: Титова Инна / Titova Inna / 1986 | C101: Ж | D101: 281.14 | E101: 1
A102: 100 | B102: Михальчук Евгения / Mihalchuk Evgeniya / | C102: Ж | D102: 276.96 | E102: 1
A103: 101 | B103: Грицук Татьяна / Gritsuk Tatyana / 1973 | C103: Ж | D103: 276.82 | E103: 1
A104: 102 | B104: Кожемякина Анна / Kozhemyakina Anna / 1991 | C104: Ж | D104: 276.78 | E104: 2
A105: 103 | B105: Бондарь Юлия / Bondar Yuliya / 1993 | C105: Ж | D105: 275.16 | E105: 1
A106: 104 | B106: Морозик Юлия / Morozik Yuliya / 1993 | C106: Ж | D106: 273.68 | E106: 1
A107: 105 | B107: Бурак Анжелика / Burak Anzhelika / 1994 | C107: Ж | D107: 273.29 | E107: 2
A108: 106 | B108: Чеснокова Надежда / Chesnokova Nadezhda / 1988 | C108: Ж | D108: 270.68 | E108: 1
A109: 107 | B109: Казимирская Надежда / Kazimirskaya Nadezhda / 1983 | C109: Ж | D109: 267.07 | E109: 1
A110: 108 | B110: Швайковская Ольга / Shvajkovskaya Olga / 1979 | C110: Ж | D110: 263.34 | E110: 1
A111: 109 | B111: Кузеева Марина / Kuzeeva Marina / 1986 | C111: Ж | D111: 262.66 | E111: 1
A112: 110 | B112: Питкевич Екатерина / Pitkevich Ekaterina / 1984 | C112: Ж | D112: 262.15 | E112: 1
A113: 111 | B113: Чеботаева Валерия / Chebotaeva Valeriya / 1993 | C113: Ж | D113: 259.26 | E113: 1
A114: 112 | B114: Шаповалова Ирина / Shapovalova Irina / 1993 | C114: Ж | D114: 257.8 | E114: 1
A115: 113 | B115: Силивонова Виктория / Silivonova Viktoriya / 1994 | C115: Ж | D115: 256.5 | E115: 2
A116: 114 | B116: Малькевич Елена / Malkevich Elena / 1984 | C116: Ж | D116: 256.33 | E116: 1
A117: 115 | B117: Костеневич Ольга / Kostenevich Olga / 1990 | C117: Ж | D117: 255.25 | E117: 1
A118: 116 | B118: Моисеева Вероника / Moiseeva Veronika / 1983 | C118: Ж | D118: 253.47 | E118: 2
A119: 117 | B119: Жукова Елизавета / Zhukova Elizaveta / 1989 | C119: Ж | D119: 248.35 | E119: 1
A120: 118 | B120: Зарубина Ульяна / Zarubina Ulyana / | C120: Ж | D120: 247.28 | E120: 1
A121: 119 | B121: Тарасевич Алёна / Tarasevich Aljona / 1991 | C121: Ж | D121: 247.28 | E121: 1
A122: 120 | B122: Малаховская Татьяна / Malahovskaya Tatyana / 1989 | C122: Ж | D122: 243.05 | E122: 1
A123: 121 | B123: Гецман Мила / Getsman Mila / 1988 | C123: Ж | D123: 241.45 | E123: 1
A124: 122 | B124: Будрик Юлия / Budrik Yuliya / 1995 | C124: Ж | D124: 239.79 | E124: 1
A125: 123 | B125: Зарецкая Оксана / Zaretskaya Oksana / 1982 | C125: Ж | D125: 238.5 | E125: 1
A126: 124 | B126: Нефедова Оксана / Nefedova Oksana / 1979 | C126: Ж | D126: 237.64 | E126: 1
A127: 125 | B127: Купреева Татьяна / Kupreeva Tatyana / 1990 | C127: Ж | D127: 234.55 | E127: 1
A128: 126 | B128: Егорова Дарина / Egorova Darina / 1994 | C128: Ж | D128: 231.58 | E128: 1
A129: 127 | B129: Лесникович Лиана / Lesnikovich Liana / 1988 | C129: Ж | D129: 231.52 | E129: 1
A130: 128 | B130: Пиньковская Ирина / Pinkovskaya Irina / 1986 | C130: Ж | D130: 229.82 | E130: 1
A131: 129 | B131: Ладутько Наталья / Ladutko Natalya / 1974 | C131: Ж | D131: 229.57 | E131: 4
A132: 130 | B132: Новикова Анастасия / Novikova Anastasiya / 1992 | C132: Ж | D132: 227.65 | E132: 1
A133: 131 | B133: Конопацкая Юлия / Konopatskaya Yuliya / 1998 | C133: Ж | D133: 227.5 | E133: 1
A134: 132 | B134: Булеева Наталья / Buleeva Natalya / 1969 | C134: Ж | D134: 226.85 | E134: 1
A135: 133 | B135: Харик Анна / Harik Anna / 1986 | C135: Ж | D135: 225.13 | E135: 1
A136: 134 | B136: Пальвинская Валерия / Palvinskaya Valeriya / 1996 | C136: Ж | D136: 221.45 | E136: 1
A137: 135 | B137: Зеленцова Галина / Zelentsova Galina / 1988 | C137: Ж | D137: 221.3 | E137: 1
A138: 136 | B138: Лисовская Наталья / Lisovskaya Natalya / 1998 | C138: Ж | D138: 219.24 | E138: 1
A139: 137 | B139: Попадюк Виктория / Popadyuk Viktoriya / 1985 | C139: Ж | D139: 217.61 | E139: 1
A140: 138 | B140: Василевич Валентина / Vasilevich Valentina / 1998 | C140: Ж | D140: 215.33 | E140: 2
A141: 139 | B141: Пархимович Ирина / Parhimovich Irina / 1988 | C141: Ж | D141: 214.99 | E141: 1
A142: 140 | B142: Корожан Наталья / Korozhan Natalya / 1974 | C142: Ж | D142: 212.63 | E142: 1
A143: 141 | B143: Литвинка Нина / Litvinka Nina / 1991 | C143: Ж | D143: 210.54 | E143: 1
A144: 142 | B144: Сенникова Светлана / Sennikova Svetlana / 1980 | C144: Ж | D144: 207.72 | E144: 1
A145: 143 | B145: Малышко Татьяна / Malyshko Tatyana / 1983 | C145: Ж | D145: 206.24 | E145: 1
A146: 144 | B146: Струщенко Светлана / Struschenko Svetlana / 1986 | C146: Ж | D146: 204.43 | E146: 1
A147: 145 | B147: Молочко Анна / Molochko Anna / 2006 | C147: Ж | D147: 204.28 | E147: 1
A148: 146 | B148: Тумашик Екатерина / Tumashik Ekaterina / 1984 | C148: Ж | D148: 200.61 | E148: 1
A149: 147 | B149: Красовская Инна / Krasovskaya Inna / 1975 | C149: Ж | D149: 200.12 | E149: 1
A150: 148 | B150: Павлова Анна / Pavlova Anna / 1992 | C150: Ж | D150: 198.45 | E150: 1
A151: 149 | B151: Вдовиченко Ирина / Vdovichenko Irina / 1989 | C151: Ж | D151: 195.97 | E151: 2
A152: 150 | B152: Коновалова Елена / Konovalova Elena / 1975 | C152: Ж | D152: 193.35 | E152: 1
A153: 151 | B153: Фадеева Светлана / Fadeeva Svetlana / 1980 | C153: Ж | D153: 193.16 | E153: 1
A154: 152 | B154: Старовойтова Евгения / Starovojtova Evgeniya / 1996 | C154: Ж | D154: 191.83 | E154: 1
A155: 153 | B155: Цветкова Мария / Tsvetkova Mariya / 1994 | C155: Ж | D155: 189.47 | E155: 1
A156: 154 | B156: Чигорская Татьяна / Chigorskaya Tatyana / 1977 | C156: Ж | D156: 187.94 | E156: 1
A157: 155 | B157: Островцова Марина / Ostrovtsova Marina / 1987 | C157: Ж | D157: 187.61 | E157: 1
A158: 156 | B158: Торопова Мария / Toropova Mariya / 1989 | C158: Ж | D158: 186.28 | E158: 1
A159: 157 | B159: Тмофеева Александр / Tmofeeva Aleksandr / 1990 | C159: Ж | D159: 186.26 | E159: 1
A160: 158 | B160: Рудковская Татьяна / Rudkovskaya Tatyana / 1997 | C160: Ж | D160: 181.91 | E160: 1
A161: 159 | B161: Хурс Елена / Hurs Elena / 1989 | C161: Ж | D161: 179.36 | E161: 1
A162: 160 | B162: Скабицкая Анна / Skabitskaya Anna / 1987 | C162: Ж | D162: 178.75 | E162: 1
A163: 161 | B163: Куликовских Иванна / Kulikovskih Ivanna / 1974 | C163: Ж | D163: 175.1 | E163: 1
A164: 162 | B164: Косач Надежда / Kosach Nadezhda / 1981 | C164: Ж | D164: 172.47 | E164: 1
A165: 163 | B165: Дунаева Мария / Dunaeva Mariya / 1983 | C165: Ж | D165: 171.95 | E165: 1
A166: 164 | B166: Крипа Светлана / Kripa Svetlana / 1989 | C166: Ж | D166: 170.23 | E166: 1
A167: 165 | B167: Горевцова Евгения / Gorevtsova Evgeniya / 1989 | C167: Ж | D167: 168.42 | E167: 1
A168: 166 | B168: Шевченко Алёна / Shevchenko Aljona / | C168: Ж | D168: 168.15 | E168: 1
A169: 167 | B169: Селищева Ирина / Selischeva Irina / 1983 | C169: Ж | D169: 167.57 | E169: 1
A170: 168 | B170: Кукареко Екатерина / Kukareko Ekaterina / 1986 | C170: Ж | D170: 166.09 | E170: 1
A171: 169 | B171: Даниленко Инесса / Danilenko Inessa / 1984 | C171: Ж | D171: 165.57 | E171: 1
A172: 170 | B172: Кузнецова Наталья / Kuznetsova Natalya / 1984 | C172: Ж | D172: 162.6 | E172: 1
A173: 171 | B173: Трубкина Инна / Trubkina Inna / 1972 | C173: Ж | D173: 162.03 | E173: 1
A174: 172 | B174: Минич Ольга / Minich Olga / 1989 | C174: Ж | D174: 161.72 | E174: 1
A175: 173 | B175: Лаханич Мария / Lahanich Mariya / 1991 | C175: Ж | D175: 158.67 | E175: 1
A176: 174 | B176: Занеуская Ганна / Zaneuskaya Ganna / 1994 | C176: Ж | D176: 158.26 | E176: 1
A177: 175 | B177: Гладкова Анна / Gladkova Anna / 1985 | C177: Ж | D177: 154.19 | E177: 2
A178: 176 | B178: Стракович Екатерина / Strakovich Ekaterina / 1991 | C178: Ж | D178: 153.21 | E178: 1
A179: 177 | B179: Грушевская Виктория / Grushevskaya Viktoriya / 1992 | C179: Ж | D179: 151.77 | E179: 1
A180: 178 | B180: Хинец Анна / Hinets Anna / 1986 | C180: Ж | D180: 150.09 | E180: 1
A181: 179 | B181: Русакова Татьяна / Rusakova Tatyana / 1979 | C181: Ж | D181: 148.84 | E181: 1
A182: 180 | B182: Ильюшенок Юлия / Ilyushenok Yuliya / 1987 | C182: Ж | D182: 148.37 | E182: 1
A183: 181 | B183: Писарик Маргарита / Pisarik Margarita / 1988 | C183: Ж | D183: 148.37 | E183: 1
A184: 182 | B184: Струщенко Светлана / Struschenko Svetlana / 1986 | C184: Ж | D184: 147.37 | E184: 1
A185: 183 | B185: Сильченко Наталья / Silchenko Natalya / | C185: Ж | D185: 145.83 | E185: 1
A186: 184 | B186: Позднева Мария / Pozdneva Mariya / 2001 | C186: Ж | D186: 144.87 | E186: 1
A187: 185 | B187: Гарбар Екатерина / Garbar Ekaterina / 1989 | C187: Ж | D187: 140.57 | E187: 1
A188: 186 | B188: Абаркина Елена / Abarkina Elena / 1983 | C188: Ж | D188: 140.32 | E188: 2
A189: 187 | B189: Гославская Анастасия / Goslavskaya Anastasiya / 1991 | C189: Ж | D189: 137.97 | E189: 1
A190: 188 | B190: Лапко Оля / Lapko Olya / 1992 | C190: Ж | D190: 137.02 | E190: 1
A191: 189 | B191: Ковалёва Катерина / Kovaljova Katerina / 1987 | C191: Ж | D191: 132.3 | E191: 1
A192: 190 | B192: Кравченко Марина / Kravchenko Marina / 1990 | C192: Ж | D192: 132.24 | E192: 2
A193: 191 | B193: Степук Наталья / Stepuk Natalya / 1984 | C193: Ж | D193: 131.07 | E193: 1
A194: 192 | B194: Зеленко Диана / Zelenko Diana / 1988 | C194: Ж | D194: 128.9 | E194: 1
A195: 193 | B195: Казак Наталья / Kazak Natalya / 1979 | C195: Ж | D195: 125.84 | E195: 2
A196: 194 | B196: Морозова Екатерина / Morozova Ekaterina / 1978 | C196: Ж | D196: 125.07 | E196: 1
A197: 195 | B197: Тенюго Татьяна / Tenyugo Tatyana / 1978 | C197: Ж | D197: 124.17 | E197: 1
A198: 196 | B198: Антонова Мария / Antonova Mariya / 1980 | C198: Ж | D198: 118.7 | E198: 1
A199: 197 | B199: Белоцкая Елена / Belotskaya Elena / 1987 | C199: Ж | D199: 116.01 | E199: 1
A200: 198 | B200: Терехова Татьяна / Terehova Tatyana / 1982 | C200: Ж | D200: 115.76 | E200: 1
A201: 199 | B201: Левчук Ирина / Levchuk Irina / 1974 | C201: Ж | D201: 114.63 | E201: 1
... 56 more rows
